BIOGUIDE_ID,OFFICE,QUARTER,PROGRAM,CATEGORY,SORT SEQUENCE,DATE,TRANSCODE,RECORDID,PAYEE,START DATE,END DATE,PURPOSE,AMOUNT                                                                                                                                           ,YEAR
,2022 OFFICE OF THE SPEAKER,3,OFFICIAL EXPENSES - LEADERSHIP,SUPPLIES AND MATERIALS,DETAIL,2022-08-22,AP,1590367,OCCASIONS CATERERS,2022-07-02,2022-07-02,FOOD & BEVERAGE,2925,2022
,2022 OFFICE OF THE SPEAKER,3,OFFICIAL EXPENSES - LEADERSHIP,SUPPLIES AND MATERIALS,DETAIL,2022-08-23,AP,1590369,OCCASIONS CATERERS,2022-07-14,2022-07-14,FOOD & BEVERAGE,10595,2022
,2022 OFFICE OF THE SPEAKER,3,OFFICIAL EXPENSES - LEADERSHIP,SUPPLIES AND MATERIALS,DETAIL,2022-08-24,AP,1590373,OCCASIONS CATERERS,2022-07-19,2022-07-19,FOOD & BEVERAGE,8676.7,2022
,2022 OFFICE OF THE SPEAKER,3,OFFICIAL EXPENSES - LEADERSHIP,SUPPLIES AND MATERIALS,SUBTOTAL,   ,   ,   ,   ,   ,   ,SUPPLIES AND MATERIALS TOTALS:,22196.7,2022
,2022 OFFICE OF THE SPEAKER,3,OFFICIAL EXPENSES - LEADERSHIP,SUPPLIES AND MATERIALS,SUBTOTAL,   ,   ,   ,   ,   ,   ,OFFICIAL EXPENSES - LEADERSHIP TOTALS:,22196.7,2022
,2022 OFFICE OF THE SPEAKER,3,GENERAL EXPENDITURES,PERSONNEL COMPENSATION,DETAIL,   ,   ,   ,BENNETT AARON M.,2022-07-01,2022-09-30,DIRECTOR OF SPEECHWRITING,21249.99,2022
,2022 OFFICE OF THE SPEAKER,3,GENERAL EXPENDITURES,PERSONNEL COMPENSATION,DETAIL,   ,   ,   ,BERRET EMILY C,2022-07-01,2022-09-30,DEPUTY CHIEF OF STAFF,50925,2022
,2022 OFFICE OF THE SPEAKER,3,GENERAL EXPENDITURES,PERSONNEL COMPENSATION,DETAIL,   ,   ,   ,BLANKENSHIP ALLISON W,2022-07-01,2022-09-30,FLOOR ASSISTANT,17499.99,2022
,2022 OFFICE OF THE SPEAKER,3,GENERAL EXPENDITURES,PERSONNEL COMPENSATION,DETAIL,   ,   ,   ,CAPRON MARGARET W.,2022-07-01,2022-09-30,SENIOR ADV FOR POLICY & COMM,36924.24,2022
,2022 OFFICE OF THE SPEAKER,3,GENERAL EXPENDITURES,PERSONNEL COMPENSATION,DETAIL,   ,   ,   ,CHERRY STEPHANIE,2022-07-01,2022-09-30,DIRECTOR OF MEDIA AFFAIRS,23750.01,2022
,2022 OFFICE OF THE SPEAKER,3,GENERAL EXPENDITURES,PERSONNEL COMPENSATION,DETAIL,   ,   ,   ,COCHRAN COURTNEY E.,2022-07-01,2022-09-30,DIRECTOR OF STRATEGIC PLANNING,32499.99,2022
,2022 OFFICE OF THE SPEAKER,3,GENERAL EXPENDITURES,PERSONNEL COMPENSATION,DETAIL,   ,   ,   ,CONNELLY HENRY V,2022-07-01,2022-09-30,COMMUNICATIONS DIRECTOR,48674.99,2022
,2022 OFFICE OF THE SPEAKER,3,GENERAL EXPENDITURES,PERSONNEL COMPENSATION,DETAIL,   ,   ,   ,COOLEY ALEXA L.,2022-07-25,2022-09-30,PRESS ASSISTANT,8666.67,2022
,2022 OFFICE OF THE SPEAKER,3,GENERAL EXPENDITURES,PERSONNEL COMPENSATION,DETAIL,   ,   ,   ,COOLEY ALEXA L.,2022-07-01,2022-08-31,PRESS ASSISTANT (OVERTIME),348.86,2022
,2022 OFFICE OF THE SPEAKER,3,GENERAL EXPENDITURES,PERSONNEL COMPENSATION,DETAIL,   ,   ,   ,DEGRAFF KENNETH B.,2022-06-01,2022-09-30,SENIOR POLICY ADVISOR,37916.65,2022
,2022 OFFICE OF THE SPEAKER,3,GENERAL EXPENDITURES,PERSONNEL COMPENSATION,DETAIL,   ,   ,   ,EDMONSON ROBERT D,2022-07-01,2022-09-30,POLICY ADVISOR,39999.99,2022
,2022 OFFICE OF THE SPEAKER,3,GENERAL EXPENDITURES,PERSONNEL COMPENSATION,DETAIL,   ,   ,   ,FIELDS MCKENZIE R,2022-07-01,2022-09-30,POLICY ADVISOR,24999.99,2022
,2022 OFFICE OF THE SPEAKER,3,GENERAL EXPENDITURES,PERSONNEL COMPENSATION,DETAIL,   ,   ,   ,FISCHER JR ROBERT V.,2022-07-01,2022-09-30,ASST FLOOR CHIEF,47675.03,2022
,2022 OFFICE OF THE SPEAKER,3,GENERAL EXPENDITURES,PERSONNEL COMPENSATION,DETAIL,   ,   ,   ,FLEET II JAMES P,2022-07-01,2022-09-30,SENIOR ADVISOR,300,2022
,2022 OFFICE OF THE SPEAKER,3,GENERAL EXPENDITURES,PERSONNEL COMPENSATION,DETAIL,   ,   ,   ,GREENER APRIL L.,2022-07-01,2022-09-30,RESEARCH DIRECTOR,29499.99,2022
,2022 OFFICE OF THE SPEAKER,3,GENERAL EXPENDITURES,PERSONNEL COMPENSATION,DETAIL,   ,   ,   ,HAMILTON WENDY D,2022-07-01,2022-09-30,OUTREACH & MEMBER SERVICES ADV,24999.99,2022
,2022 OFFICE OF THE SPEAKER,3,GENERAL EXPENDITURES,PERSONNEL COMPENSATION,DETAIL,   ,   ,   ,HAMMILL ANDREW T.,2022-07-01,2022-09-30,DEPUTY CHIEF OF STAFF,50925,2022
,2022 OFFICE OF THE SPEAKER,3,GENERAL EXPENDITURES,PERSONNEL COMPENSATION,DETAIL,   ,   ,   ,HAN LEAH J.,2022-07-01,2022-09-30,SPECIAL ASST TO THE EXECUTIVE,16249.99,2022
,2022 OFFICE OF THE SPEAKER,3,GENERAL EXPENDITURES,PERSONNEL COMPENSATION,DETAIL,   ,   ,   ,HOLLANDER EVAN D.,2022-07-01,2022-09-30,EXECUTIVE DIRECTOR,42075,2022
,2022 OFFICE OF THE SPEAKER,3,GENERAL EXPENDITURES,PERSONNEL COMPENSATION,DETAIL,   ,   ,   ,HOLMES NATHANIEL J,2022-07-01,2022-09-30,DEP DIR/SCHEDULING & ADVANCE,19500,2022
,2022 OFFICE OF THE SPEAKER,3,GENERAL EXPENDITURES,PERSONNEL COMPENSATION,DETAIL,   ,   ,   ,IACOBELLIS SAMUEL C,2022-07-01,2022-09-30,DPTY DIR INTERGOV AFFAIRS ADV,24999.99,2022
,2022 OFFICE OF THE SPEAKER,3,GENERAL EXPENDITURES,PERSONNEL COMPENSATION,DETAIL,   ,   ,   ,JACKSON AUDRA L,2022-07-01,2022-09-30,ASST MGR FOR THE DEM CLOAKROOM,20000.01,2022
,2022 OFFICE OF THE SPEAKER,3,GENERAL EXPENDITURES,PERSONNEL COMPENSATION,DETAIL,   ,   ,   ,JALDIN PAZ HUGO,2022-07-01,2022-09-30,DEPUTY IT DIRECTOR,25223.76,2022
,2022 OFFICE OF THE SPEAKER,3,GENERAL EXPENDITURES,PERSONNEL COMPENSATION,DETAIL,   ,   ,   ,KAPLAN EMMA L,2022-07-01,2022-09-30,DEPUTY FLOOR DIRECTOR,32500,2022
,2022 OFFICE OF THE SPEAKER,3,GENERAL EXPENDITURES,PERSONNEL COMPENSATION,DETAIL,   ,   ,   ,KEATING ROSE M,2022-07-01,2022-09-30,ASST FLOOR MANAGER,35000.01,2022
,2022 OFFICE OF THE SPEAKER,3,GENERAL EXPENDITURES,PERSONNEL COMPENSATION,DETAIL,   ,   ,   ,KEITA KAMILAH Z,2022-07-01,2022-09-30,IT DIRECTOR,28694.88,2022
,2022 OFFICE OF THE SPEAKER,3,GENERAL EXPENDITURES,PERSONNEL COMPENSATION,DETAIL,   ,   ,   ,KISKER GRAYSON S.,2022-07-01,2022-09-30,DIGITAL ASSISTANT,12083.33,2022
,2022 OFFICE OF THE SPEAKER,3,GENERAL EXPENDITURES,PERSONNEL COMPENSATION,DETAIL,   ,   ,   ,KISKER GRAYSON S.,2022-06-01,2022-08-31,DIGITAL ASSISTANT (OVERTIME),10498.98,2022
,2022 OFFICE OF THE SPEAKER,3,GENERAL EXPENDITURES,PERSONNEL COMPENSATION,DETAIL,   ,   ,   ,KONFORTY NADAV G.,2022-07-01,2022-09-11,STAFF ASSISTANT,9368.05,2022
,2022 OFFICE OF THE SPEAKER,3,GENERAL EXPENDITURES,PERSONNEL COMPENSATION,DETAIL,   ,   ,   ,KONFORTY NADAV G.,2022-09-12,2022-09-30,SPEC ASST FOR OPERATIONS,2638.89,2022
,2022 OFFICE OF THE SPEAKER,3,GENERAL EXPENDITURES,PERSONNEL COMPENSATION,DETAIL,   ,   ,   ,KONFORTY NADAV G.,2022-06-01,2022-08-31,STAFF ASSISTANT (OVERTIME),3468.26,2022
,2022 OFFICE OF THE SPEAKER,3,GENERAL EXPENDITURES,PERSONNEL COMPENSATION,DETAIL,   ,   ,   ,KRAGER IAN W.,2022-07-01,2022-09-30,PRESS ASSISTANT,11666.67,2022
,2022 OFFICE OF THE SPEAKER,3,GENERAL EXPENDITURES,PERSONNEL COMPENSATION,DETAIL,   ,   ,   ,KRAGER IAN W.,2022-06-01,2022-08-31,PRESS ASSISTANT (OVERTIME),8810.59,2022
,2022 OFFICE OF THE SPEAKER,3,GENERAL EXPENDITURES,PERSONNEL COMPENSATION,DETAIL,   ,   ,   ,KUNDANIS GEORGE,2022-07-01,2022-09-30,DEPUTY CHIEF OF STAFF,50925,2022
,2022 OFFICE OF THE SPEAKER,3,GENERAL EXPENDITURES,PERSONNEL COMPENSATION,DETAIL,   ,   ,   ,LEE SERYEUNG,2022-07-01,2022-09-30,PRESS SECRETARY,27500.01,2022
,2022 OFFICE OF THE SPEAKER,3,GENERAL EXPENDITURES,PERSONNEL COMPENSATION,DETAIL,   ,   ,   ,LIZARRAGA JAIME E.,2022-07-01,2022-07-17,SENIOR ADVISOR,9619.17,2022
,2022 OFFICE OF THE SPEAKER,3,GENERAL EXPENDITURES,PERSONNEL COMPENSATION,DETAIL,   ,   ,   ,LIZARRAGA JAIME E.,2022-07-01,2022-07-17,SENIOR ADVISOR (OTHER COMPENSATION),7355.83,2022
,2022 OFFICE OF THE SPEAKER,3,GENERAL EXPENDITURES,PERSONNEL COMPENSATION,DETAIL,   ,   ,   ,MANGRUM PEARL J.,2022-07-01,2022-09-30,FINANCIAL ADMINISTRATOR,38750.01,2022
,2022 OFFICE OF THE SPEAKER,3,GENERAL EXPENDITURES,PERSONNEL COMPENSATION,DETAIL,   ,   ,   ,MANSBACH SHANA G,2022-07-01,2022-09-30,DEPUTY COMMUNICATIONS DIR,33750,2022
,2022 OFFICE OF THE SPEAKER,3,GENERAL EXPENDITURES,PERSONNEL COMPENSATION,DETAIL,   ,   ,   ,MARRON BRENNA K.,2022-07-01,2022-09-30,DEPUTY EXEC DIRECTOR,30075,2022
,2022 OFFICE OF THE SPEAKER,3,GENERAL EXPENDITURES,PERSONNEL COMPENSATION,DETAIL,   ,   ,   ,MARROW JAMES A.,2022-07-01,2022-09-30,CREATIVE DIRECTOR,15624.99,2022
,2022 OFFICE OF THE SPEAKER,3,GENERAL EXPENDITURES,PERSONNEL COMPENSATION,DETAIL,   ,   ,   ,MCCULLOUGH MARY T.,2022-07-01,2022-09-30,CHIEF OF STAFF,50925,2022
,2022 OFFICE OF THE SPEAKER,3,GENERAL EXPENDITURES,PERSONNEL COMPENSATION,DETAIL,   ,   ,   ,MCCULLOUGH WILLIAM J,2022-07-01,2022-09-30,DEPUTY PRESS SECRETARY,15624.99,2022
,2022 OFFICE OF THE SPEAKER,3,GENERAL EXPENDITURES,PERSONNEL COMPENSATION,DETAIL,   ,   ,   ,MELTZER RICHARD,2022-07-01,2022-09-30,POLICY DIRECTOR,50925,2022
,2022 OFFICE OF THE SPEAKER,3,GENERAL EXPENDITURES,PERSONNEL COMPENSATION,DETAIL,   ,   ,   ,MITCHELL TOUSSAINT V.,2022-07-01,2022-09-01,STAFF ASSISTANT,7625,2022
,2022 OFFICE OF THE SPEAKER,3,GENERAL EXPENDITURES,PERSONNEL COMPENSATION,DETAIL,   ,   ,   ,MITCHELL TOUSSAINT V.,2022-06-01,2022-08-31,STAFF ASSISTANT (OVERTIME),3074.79,2022
,2022 OFFICE OF THE SPEAKER,3,GENERAL EXPENDITURES,PERSONNEL COMPENSATION,DETAIL,   ,   ,   ,MITCHELL TOUSSAINT V.,2022-09-01,2022-09-01,STAFF ASSISTANT (OTHER COMPENSATION),1375,2022
,2022 OFFICE OF THE SPEAKER,3,GENERAL EXPENDITURES,PERSONNEL COMPENSATION,DETAIL,   ,   ,   ,MONGE KATHERINE S,2022-07-01,2022-09-30,SENIOR COUNSEL,50191.66,2022
,2022 OFFICE OF THE SPEAKER,3,GENERAL EXPENDITURES,PERSONNEL COMPENSATION,DETAIL,   ,   ,   ,PARKER WYNDEE R.,2022-07-01,2022-09-30,NATIONAL SECURITY ADVISOR,50925,2022
,2022 OFFICE OF THE SPEAKER,3,GENERAL EXPENDITURES,PERSONNEL COMPENSATION,DETAIL,   ,   ,   ,PAZ JR CARLOS,2022-07-01,2022-07-18,SENIOR COMMUNICATIONS ADVISOR,7250,2022
,2022 OFFICE OF THE SPEAKER,3,GENERAL EXPENDITURES,PERSONNEL COMPENSATION,DETAIL,   ,   ,   ,PAZ JR CARLOS,2022-07-01,2022-07-18,SENIOR COMMUNICATIONS ADVISOR (OTHER COMPENSATION),12105.35,2022
,2022 OFFICE OF THE SPEAKER,3,GENERAL EXPENDITURES,PERSONNEL COMPENSATION,DETAIL,   ,   ,   ,PRESLEY JESSICA A,2022-07-01,2022-09-30,DIRECTOR OF DIGITAL STRATEGY,24999.99,2022
,2022 OFFICE OF THE SPEAKER,3,GENERAL EXPENDITURES,PERSONNEL COMPENSATION,DETAIL,   ,   ,   ,PRICE REVA B.,2022-07-01,2022-09-30,OUTREACH DIR & SENIOR ADVISOR,38674.5,2022
,2022 OFFICE OF THE SPEAKER,3,GENERAL EXPENDITURES,PERSONNEL COMPENSATION,DETAIL,   ,   ,   ,PRIMUS WENDELL E.,2022-07-01,2022-09-30,SR HLTH/BUDGET POLICY ADV,50925,2022
,2022 OFFICE OF THE SPEAKER,3,GENERAL EXPENDITURES,PERSONNEL COMPENSATION,DETAIL,   ,   ,   ,REED MICHAEL D.,2022-07-01,2022-09-30,DIR OF MBR SVCS & SENIOR ADV,40833.33,2022
,2022 OFFICE OF THE SPEAKER,3,GENERAL EXPENDITURES,PERSONNEL COMPENSATION,DETAIL,   ,   ,   ,RISTUCCIA ISABELLA M.,2022-07-01,2022-09-30,PRESS ASSISTANT,11666.67,2022
,2022 OFFICE OF THE SPEAKER,3,GENERAL EXPENDITURES,PERSONNEL COMPENSATION,DETAIL,   ,   ,   ,RISTUCCIA ISABELLA M.,2022-06-01,2022-08-31,PRESS ASSISTANT (OVERTIME),6084.67,2022
,2022 OFFICE OF THE SPEAKER,3,GENERAL EXPENDITURES,PERSONNEL COMPENSATION,DETAIL,   ,   ,   ,RUDD DIANA,2022-07-01,2022-09-30,MEMBER SERVICES DIR/COUNSEL,32499.99,2022
,2022 OFFICE OF THE SPEAKER,3,GENERAL EXPENDITURES,PERSONNEL COMPENSATION,DETAIL,   ,   ,   ,RUIZ XENIA F,2022-07-01,2022-09-30,OUTREACH DIRECTOR,35000.01,2022
,2022 OFFICE OF THE SPEAKER,3,GENERAL EXPENDITURES,PERSONNEL COMPENSATION,DETAIL,   ,   ,   ,RUSSELL MAYA A,2022-07-01,2022-09-30,DIGITAL DIRECTOR,15758.34,2022
,2022 OFFICE OF THE SPEAKER,3,GENERAL EXPENDITURES,PERSONNEL COMPENSATION,DETAIL,   ,   ,   ,SCANNELL BROOKE A,2022-07-01,2022-09-30,SENIOR POLICY ADVISOR,12000,2022
,2022 OFFICE OF THE SPEAKER,3,GENERAL EXPENDITURES,PERSONNEL COMPENSATION,DETAIL,   ,   ,   ,SHAIQ SAMAH N.,2022-07-01,2022-09-30,SENIOR PRESS ASSISTANT,13583.33,2022
,2022 OFFICE OF THE SPEAKER,3,GENERAL EXPENDITURES,PERSONNEL COMPENSATION,DETAIL,   ,   ,   ,SHAIQ SAMAH N.,2022-06-01,2022-08-31,SENIOR PRESS ASSISTANT (OVERTIME),10190.7,2022
,2022 OFFICE OF THE SPEAKER,3,GENERAL EXPENDITURES,PERSONNEL COMPENSATION,DETAIL,   ,   ,   ,SMITH KELSEY L,2022-07-01,2022-09-30,DIR. OF SCHEDULING & ADVANCE,21249.99,2022
,2022 OFFICE OF THE SPEAKER,3,GENERAL EXPENDITURES,PERSONNEL COMPENSATION,DETAIL,   ,   ,   ,SOENKSEN AMY C,2022-07-01,2022-09-30,DIR INTERGOV AFFAIRS MBR/SCVS,35000.01,2022
,2022 OFFICE OF THE SPEAKER,3,GENERAL EXPENDITURES,PERSONNEL COMPENSATION,DETAIL,   ,   ,   ,SONG ANNA J.,2022-07-01,2022-09-30,OUTREACH ASSISTANT,12624.99,2022
,2022 OFFICE OF THE SPEAKER,3,GENERAL EXPENDITURES,PERSONNEL COMPENSATION,DETAIL,   ,   ,   ,STERN KEITH L.,2022-07-01,2022-09-30,DIRECTOR OF FLOOR OPERATIONS,50925,2022
,2022 OFFICE OF THE SPEAKER,3,GENERAL EXPENDITURES,PERSONNEL COMPENSATION,DETAIL,   ,   ,   ,SUN SELINA A.,2022-07-01,2022-09-30,DISTRICT SCHED/SPECIAL ASSIST,20000.01,2022
,2022 OFFICE OF THE SPEAKER,3,GENERAL EXPENDITURES,PERSONNEL COMPENSATION,DETAIL,   ,   ,   ,TECKLENBURG MICHAEL H.,2022-07-01,2022-09-30,COUNSEL,41250,2022
,2022 OFFICE OF THE SPEAKER,3,GENERAL EXPENDITURES,PERSONNEL COMPENSATION,DETAIL,   ,   ,   ,TRAUBERMAN JACOB M,2022-06-01,2022-09-30,SPECIAL ADVISOR TO THE SPEAKER,26666.66,2022
,2022 OFFICE OF THE SPEAKER,3,GENERAL EXPENDITURES,PERSONNEL COMPENSATION,DETAIL,   ,   ,   ,URRY ALEXANDER M.,2022-07-01,2022-09-30,POLICY ADVISOR,27500.01,2022
,2022 OFFICE OF THE SPEAKER,3,GENERAL EXPENDITURES,PERSONNEL COMPENSATION,DETAIL,   ,   ,   ,VERMILYEA SYDNEY S.,2022-07-01,2022-09-30,DPTY DIR SCHED/ADVANCE ASSOC,17499.99,2022
,2022 OFFICE OF THE SPEAKER,3,GENERAL EXPENDITURES,PERSONNEL COMPENSATION,DETAIL,   ,   ,   ,WEBER JOHN M.,2022-07-01,2022-09-30,DEPUTY DIR OF SPEECHWRITING,16250.01,2022
,2022 OFFICE OF THE SPEAKER,3,GENERAL EXPENDITURES,PERSONNEL COMPENSATION,DETAIL,   ,   ,   ,WOLTERS KATE,2022-07-01,2022-09-30,DIRECTOR OF SPECIAL EVENTS,2499.99,2022
,2022 OFFICE OF THE SPEAKER,3,GENERAL EXPENDITURES,PERSONNEL COMPENSATION,SUBTOTAL,   ,   ,   ,   ,   ,   ,PERSONNEL COMPENSATION TOTALS:,1826939.78,2022
,2022 OFFICE OF THE SPEAKER,3,GENERAL EXPENDITURES,TRAVEL,DETAIL,2022-07-08,AP,1576301,SUN SELINA A.,2022-06-10,2022-06-17,TAXI/RIDE SHARE,81.25,2022
,2022 OFFICE OF THE SPEAKER,3,GENERAL EXPENDITURES,TRAVEL,DETAIL,2022-07-08,AP,1576303,BLANKENSHIP ALLISON W.,2022-06-22,2022-06-23,TAXI/RIDE SHARE,68.09,2022
,2022 OFFICE OF THE SPEAKER,3,GENERAL EXPENDITURES,TRAVEL,DETAIL,2022-07-08,AP,1576416,HAN LEAH J.,2022-04-05,2022-04-05,TAXI/RIDE SHARE,19.59,2022
,2022 OFFICE OF THE SPEAKER,3,GENERAL EXPENDITURES,TRAVEL,DETAIL,2022-07-08,AP,1576416,HAN LEAH J.,2022-05-11,2022-05-16,TAXI/RIDE SHARE,64.68,2022
,2022 OFFICE OF THE SPEAKER,3,GENERAL EXPENDITURES,TRAVEL,DETAIL,2022-07-08,AP,1576416,HAN LEAH J.,2022-06-07,2022-06-23,TAXI/RIDE SHARE,67.88,2022
,2022 OFFICE OF THE SPEAKER,3,GENERAL EXPENDITURES,TRAVEL,DETAIL,2022-07-13,AP,1577038,HAMMILL ANDREW T.,2022-07-03,2022-07-03,TAXI/RIDE SHARE,174.8,2022
,2022 OFFICE OF THE SPEAKER,3,GENERAL EXPENDITURES,TRAVEL,DETAIL,2022-07-13,AP,1577061,SMITH KELSEY L.,2022-05-29,2022-05-30,LODGING,970.67,2022
,2022 OFFICE OF THE SPEAKER,3,GENERAL EXPENDITURES,TRAVEL,DETAIL,2022-07-13,AP,1577061,SMITH KELSEY L.,2022-06-06,2022-06-24,WI-FI ON TRAVEL,26.99,2022
,2022 OFFICE OF THE SPEAKER,3,GENERAL EXPENDITURES,TRAVEL,DETAIL,2022-07-13,AP,1577061,SMITH KELSEY L.,2022-05-29,2022-05-29,TAXI/RIDE SHARE,35.23,2022
,2022 OFFICE OF THE SPEAKER,3,GENERAL EXPENDITURES,TRAVEL,DETAIL,2022-07-13,AP,1577061,SMITH KELSEY L.,2022-05-17,2022-05-17,PARKING,20,2022
,2022 OFFICE OF THE SPEAKER,3,GENERAL EXPENDITURES,TRAVEL,DETAIL,2022-07-15,AP,1577504,CITIBANK GOV CARD SERVICE,2022-05-05,2022-05-09,AIRFARE COMMERCIAL TRANSPORT,19.85,2022
,2022 OFFICE OF THE SPEAKER,3,GENERAL EXPENDITURES,TRAVEL,DETAIL,2022-07-15,AP,1577504,CITIBANK GOV CARD SERVICE,2022-05-27,2022-05-30,LODGING,2912.01,2022
,2022 OFFICE OF THE SPEAKER,3,GENERAL EXPENDITURES,TRAVEL,DETAIL,2022-07-18,AP,1578267,PAZ JR CARLOS,2022-05-14,2022-05-15,LODGING,548.57,2022
,2022 OFFICE OF THE SPEAKER,3,GENERAL EXPENDITURES,TRAVEL,DETAIL,2022-07-18,AP,1578267,PAZ JR CARLOS,2022-05-14,2022-05-15,PARKING,48,2022
,2022 OFFICE OF THE SPEAKER,3,GENERAL EXPENDITURES,TRAVEL,DETAIL,2022-07-21,AP,1577498,CITIBANK GOV CARD SERVICE,2022-05-27,2022-05-27,AIRFARE COMMERCIAL TRANSPORT,341.6,2022
,2022 OFFICE OF THE SPEAKER,3,GENERAL EXPENDITURES,TRAVEL,DETAIL,2022-07-21,AP,1577498,CITIBANK GOV CARD SERVICE,2022-05-27,2022-05-29,AIRFARE COMMERCIAL TRANSPORT,-363.2,2022
,2022 OFFICE OF THE SPEAKER,3,GENERAL EXPENDITURES,TRAVEL,DETAIL,2022-07-21,AP,1577498,CITIBANK GOV CARD SERVICE,2022-05-29,2022-05-29,AIRFARE COMMERCIAL TRANSPORT,62.6,2022
,2022 OFFICE OF THE SPEAKER,3,GENERAL EXPENDITURES,TRAVEL,DETAIL,2022-07-21,AP,1577498,CITIBANK GOV CARD SERVICE,2022-05-27,2022-05-28,LODGING,3882.68,2022
,2022 OFFICE OF THE SPEAKER,3,GENERAL EXPENDITURES,TRAVEL,DETAIL,2022-07-21,AP,1577498,CITIBANK GOV CARD SERVICE,2022-05-29,2022-05-30,LODGING,970.67,2022
,2022 OFFICE OF THE SPEAKER,3,GENERAL EXPENDITURES,TRAVEL,DETAIL,2022-07-21,AP,1577498,CITIBANK GOV CARD SERVICE,2022-05-27,2022-05-27,MEALS,134.82,2022
,2022 OFFICE OF THE SPEAKER,3,GENERAL EXPENDITURES,TRAVEL,DETAIL,2022-07-21,AP,1577498,CITIBANK GOV CARD SERVICE,2022-06-06,2022-06-06,MEALS,26.61,2022
,2022 OFFICE OF THE SPEAKER,3,GENERAL EXPENDITURES,TRAVEL,DETAIL,2022-07-21,AP,1577498,CITIBANK GOV CARD SERVICE,2022-06-08,2022-06-08,MEALS,129.28,2022
,2022 OFFICE OF THE SPEAKER,3,GENERAL EXPENDITURES,TRAVEL,DETAIL,2022-07-21,AP,1577498,CITIBANK GOV CARD SERVICE,2022-06-09,2022-06-09,MEALS,65.98,2022
,2022 OFFICE OF THE SPEAKER,3,GENERAL EXPENDITURES,TRAVEL,DETAIL,2022-07-21,AP,1577498,CITIBANK GOV CARD SERVICE,2022-05-27,2022-05-27,WI-FI ON TRAVEL,14.95,2022
,2022 OFFICE OF THE SPEAKER,3,GENERAL EXPENDITURES,TRAVEL,DETAIL,2022-07-21,AP,1577498,CITIBANK GOV CARD SERVICE,2022-06-23,2022-06-23,TAXI/RIDE SHARE,79.5,2022
,2022 OFFICE OF THE SPEAKER,3,GENERAL EXPENDITURES,TRAVEL,DETAIL,2022-07-27,AP,1582905,HAMMILL ANDREW T.,2022-06-27,2022-07-04,PARKING,187,2022
,2022 OFFICE OF THE SPEAKER,3,GENERAL EXPENDITURES,TRAVEL,DETAIL,2022-07-28,AP,1583490,CITIBANK GOV CARD SERVICE,2022-06-09,2022-06-09,AIRFARE COMMERCIAL TRANSPORT,148.6,2022
,2022 OFFICE OF THE SPEAKER,3,GENERAL EXPENDITURES,TRAVEL,DETAIL,2022-07-28,AP,1583490,CITIBANK GOV CARD SERVICE,2022-06-17,2022-06-17,AIRFARE COMMERCIAL TRANSPORT,306.6,2022
,2022 OFFICE OF THE SPEAKER,3,GENERAL EXPENDITURES,TRAVEL,DETAIL,2022-07-28,AP,1583490,CITIBANK GOV CARD SERVICE,2022-06-18,2022-06-18,AIRFARE COMMERCIAL TRANSPORT,360.6,2022
,2022 OFFICE OF THE SPEAKER,3,GENERAL EXPENDITURES,TRAVEL,DETAIL,2022-07-28,AP,1583490,CITIBANK GOV CARD SERVICE,2022-06-17,2022-06-18,LODGING,522.8,2022
,2022 OFFICE OF THE SPEAKER,3,GENERAL EXPENDITURES,TRAVEL,DETAIL,2022-07-28,AP,1583490,CITIBANK GOV CARD SERVICE,2022-06-09,2022-06-09,MEALS,17.57,2022
,2022 OFFICE OF THE SPEAKER,3,GENERAL EXPENDITURES,TRAVEL,DETAIL,2022-07-28,AP,1583490,CITIBANK GOV CARD SERVICE,2022-06-09,2022-06-09,TAXI/RIDE SHARE,83.36,2022
,2022 OFFICE OF THE SPEAKER,3,GENERAL EXPENDITURES,TRAVEL,DETAIL,2022-08-10,AP,1585690,FLEET II JAMES P,2022-07-27,2022-07-27,PRIVATE AUTO MILEAGE,248.75,2022
,2022 OFFICE OF THE SPEAKER,3,GENERAL EXPENDITURES,TRAVEL,DETAIL,2022-08-10,AP,1585691,BLANKENSHIP ALLISON W.,2022-07-26,2022-07-29,TAXI/RIDE SHARE,31.6,2022
,2022 OFFICE OF THE SPEAKER,3,GENERAL EXPENDITURES,TRAVEL,DETAIL,2022-08-10,AP,1585829,CITIBANK GOV CARD SERVICE,2022-08-05,2022-08-05,AIRFARE COMMERCIAL TRANSPORT,617.5,2022
,2022 OFFICE OF THE SPEAKER,3,GENERAL EXPENDITURES,TRAVEL,DETAIL,2022-08-18,AP,1586983,CITIBANK GOV CARD SERVICE,2022-07-21,2022-07-21,AIRFARE COMMERCIAL TRANSPORT,227.6,2022
,2022 OFFICE OF THE SPEAKER,3,GENERAL EXPENDITURES,TRAVEL,DETAIL,2022-08-18,AP,1586983,CITIBANK GOV CARD SERVICE,2022-07-22,2022-07-22,AIRFARE COMMERCIAL TRANSPORT,163.6,2022
,2022 OFFICE OF THE SPEAKER,3,GENERAL EXPENDITURES,TRAVEL,DETAIL,2022-08-18,AP,1586983,CITIBANK GOV CARD SERVICE,2022-07-21,2022-07-22,LODGING,151.62,2022
,2022 OFFICE OF THE SPEAKER,3,GENERAL EXPENDITURES,TRAVEL,DETAIL,2022-08-18,AP,1586983,CITIBANK GOV CARD SERVICE,2022-07-21,2022-07-21,MEALS,17.79,2022
,2022 OFFICE OF THE SPEAKER,3,GENERAL EXPENDITURES,TRAVEL,DETAIL,2022-08-18,AP,1586983,CITIBANK GOV CARD SERVICE,2022-07-22,2022-07-22,MEALS,77.76,2022
,2022 OFFICE OF THE SPEAKER,3,GENERAL EXPENDITURES,TRAVEL,DETAIL,2022-08-18,AP,1586983,CITIBANK GOV CARD SERVICE,2022-07-21,2022-07-21,WI-FI ON TRAVEL,4.95,2022
,2022 OFFICE OF THE SPEAKER,3,GENERAL EXPENDITURES,TRAVEL,DETAIL,2022-08-18,AP,1586983,CITIBANK GOV CARD SERVICE,2022-07-21,2022-07-21,TAXI/RIDE SHARE,35.32,2022
,2022 OFFICE OF THE SPEAKER,3,GENERAL EXPENDITURES,TRAVEL,DETAIL,2022-08-18,AP,1586983,CITIBANK GOV CARD SERVICE,2022-07-22,2022-07-22,TAXI/RIDE SHARE,170.16,2022
,2022 OFFICE OF THE SPEAKER,3,GENERAL EXPENDITURES,TRAVEL,DETAIL,2022-08-18,AP,1587218,CITIBANK GOV CARD SERVICE,2022-07-21,2022-07-21,AIRFARE COMMERCIAL TRANSPORT,227.6,2022
,2022 OFFICE OF THE SPEAKER,3,GENERAL EXPENDITURES,TRAVEL,DETAIL,2022-08-18,AP,1587218,CITIBANK GOV CARD SERVICE,2022-07-22,2022-07-22,AIRFARE COMMERCIAL TRANSPORT,163.6,2022
,2022 OFFICE OF THE SPEAKER,3,GENERAL EXPENDITURES,TRAVEL,DETAIL,2022-08-18,AP,1587218,CITIBANK GOV CARD SERVICE,2022-06-24,2022-06-26,LODGING,533.88,2022
,2022 OFFICE OF THE SPEAKER,3,GENERAL EXPENDITURES,TRAVEL,DETAIL,2022-08-18,AP,1587218,CITIBANK GOV CARD SERVICE,2022-07-21,2022-07-22,LODGING,274.74,2022
,2022 OFFICE OF THE SPEAKER,3,GENERAL EXPENDITURES,TRAVEL,DETAIL,2022-08-18,AP,1587218,CITIBANK GOV CARD SERVICE,2022-06-24,2022-06-24,MEALS,94.43,2022
,2022 OFFICE OF THE SPEAKER,3,GENERAL EXPENDITURES,TRAVEL,DETAIL,2022-08-18,AP,1587218,CITIBANK GOV CARD SERVICE,2022-06-25,2022-06-25,MEALS,54.53,2022
,2022 OFFICE OF THE SPEAKER,3,GENERAL EXPENDITURES,TRAVEL,DETAIL,2022-08-18,AP,1587218,CITIBANK GOV CARD SERVICE,2022-07-21,2022-07-21,MEALS,105.1,2022
,2022 OFFICE OF THE SPEAKER,3,GENERAL EXPENDITURES,TRAVEL,DETAIL,2022-08-18,AP,1587218,CITIBANK GOV CARD SERVICE,2022-07-22,2022-07-22,MEALS,49.45,2022
,2022 OFFICE OF THE SPEAKER,3,GENERAL EXPENDITURES,TRAVEL,DETAIL,2022-08-18,AP,1587218,CITIBANK GOV CARD SERVICE,2022-06-25,2022-06-25,TAXI/RIDE SHARE,20.47,2022
,2022 OFFICE OF THE SPEAKER,3,GENERAL EXPENDITURES,TRAVEL,DETAIL,2022-08-18,AP,1587218,CITIBANK GOV CARD SERVICE,2022-06-26,2022-06-26,TAXI/RIDE SHARE,9.58,2022
,2022 OFFICE OF THE SPEAKER,3,GENERAL EXPENDITURES,TRAVEL,DETAIL,2022-08-18,AP,1587218,CITIBANK GOV CARD SERVICE,2022-07-21,2022-07-21,TAXI/RIDE SHARE,52.86,2022
,2022 OFFICE OF THE SPEAKER,3,GENERAL EXPENDITURES,TRAVEL,DETAIL,2022-08-18,AP,1587218,CITIBANK GOV CARD SERVICE,2022-07-22,2022-07-22,TAXI/RIDE SHARE,49.86,2022
,2022 OFFICE OF THE SPEAKER,3,GENERAL EXPENDITURES,TRAVEL,DETAIL,2022-08-18,AP,1587228,LEE SERYEUNG,2022-05-04,2022-05-04,AIRFARE COMMERCIAL TRANSPORT,914.6,2022
,2022 OFFICE OF THE SPEAKER,3,GENERAL EXPENDITURES,TRAVEL,DETAIL,2022-08-31,AP,1592551,FLEET II JAMES P,2022-08-26,2022-08-27,LODGING,319.39,2022
,2022 OFFICE OF THE SPEAKER,3,GENERAL EXPENDITURES,TRAVEL,DETAIL,2022-08-31,AP,1592551,FLEET II JAMES P,2022-08-26,2022-08-26,MEALS,84.04,2022
,2022 OFFICE OF THE SPEAKER,3,GENERAL EXPENDITURES,TRAVEL,DETAIL,2022-08-31,AP,1592551,FLEET II JAMES P,2022-08-26,2022-08-26,PRIVATE AUTO MILEAGE,230,2022
,2022 OFFICE OF THE SPEAKER,3,GENERAL EXPENDITURES,TRAVEL,DETAIL,2022-08-31,AP,1592551,FLEET II JAMES P,2022-08-26,2022-08-26,PARKING,48.98,2022
,2022 OFFICE OF THE SPEAKER,3,GENERAL EXPENDITURES,TRAVEL,DETAIL,2022-09-14,AP,1593674,CITIBANK GOV CARD SERVICE,2022-07-27,2022-07-27,TAXI/RIDE SHARE,25.24,2022
,2022 OFFICE OF THE SPEAKER,3,GENERAL EXPENDITURES,TRAVEL,DETAIL,2022-09-14,AP,1595465,CITIBANK GOV CARD SERVICE,2022-08-23,2022-08-23,AIRFARE COMMERCIAL TRANSPORT,505.17,2022
,2022 OFFICE OF THE SPEAKER,3,GENERAL EXPENDITURES,TRAVEL,DETAIL,2022-09-14,AP,1595465,CITIBANK GOV CARD SERVICE,2022-08-25,2022-08-25,AIRFARE COMMERCIAL TRANSPORT,494.81,2022
,2022 OFFICE OF THE SPEAKER,3,GENERAL EXPENDITURES,TRAVEL,DETAIL,2022-09-14,AP,1595465,CITIBANK GOV CARD SERVICE,2022-08-30,2022-09-01,AIRFARE COMMERCIAL TRANSPORT,237.2,2022
,2022 OFFICE OF THE SPEAKER,3,GENERAL EXPENDITURES,TRAVEL,DETAIL,2022-09-14,AP,1595465,CITIBANK GOV CARD SERVICE,2022-09-06,2022-09-06,AIRFARE COMMERCIAL TRANSPORT,827.2,2022
,2022 OFFICE OF THE SPEAKER,3,GENERAL EXPENDITURES,TRAVEL,DETAIL,2022-09-14,AP,1595465,CITIBANK GOV CARD SERVICE,2022-08-25,2022-08-25,WI-FI ON TRAVEL,9.95,2022
,2022 OFFICE OF THE SPEAKER,3,GENERAL EXPENDITURES,TRAVEL,DETAIL,2022-09-21,AP,1598524,CITIBANK GOV CARD SERVICE,2022-08-24,2022-08-24,AIRFARE COMMERCIAL TRANSPORT,78.59,2022
,2022 OFFICE OF THE SPEAKER,3,GENERAL EXPENDITURES,TRAVEL,DETAIL,2022-09-21,AP,1598524,CITIBANK GOV CARD SERVICE,2022-08-25,2022-08-25,AIRFARE COMMERCIAL TRANSPORT,889.8,2022
,2022 OFFICE OF THE SPEAKER,3,GENERAL EXPENDITURES,TRAVEL,DETAIL,2022-09-21,AP,1598524,CITIBANK GOV CARD SERVICE,2022-08-22,2022-08-24,LODGING,653.54,2022
,2022 OFFICE OF THE SPEAKER,3,GENERAL EXPENDITURES,TRAVEL,DETAIL,2022-09-21,AP,1598524,CITIBANK GOV CARD SERVICE,2022-08-21,2022-08-21,MEALS,13.56,2022
,2022 OFFICE OF THE SPEAKER,3,GENERAL EXPENDITURES,TRAVEL,DETAIL,2022-09-21,AP,1598524,CITIBANK GOV CARD SERVICE,2022-08-22,2022-08-22,MEALS,168.87,2022
,2022 OFFICE OF THE SPEAKER,3,GENERAL EXPENDITURES,TRAVEL,DETAIL,2022-09-21,AP,1598524,CITIBANK GOV CARD SERVICE,2022-08-23,2022-08-23,MEALS,24.38,2022
,2022 OFFICE OF THE SPEAKER,3,GENERAL EXPENDITURES,TRAVEL,DETAIL,2022-09-21,AP,1598524,CITIBANK GOV CARD SERVICE,2022-08-24,2022-08-24,MEALS,219.18,2022
,2022 OFFICE OF THE SPEAKER,3,GENERAL EXPENDITURES,TRAVEL,DETAIL,2022-09-21,AP,1598524,CITIBANK GOV CARD SERVICE,2022-08-22,2022-08-22,WI-FI ON TRAVEL,8,2022
,2022 OFFICE OF THE SPEAKER,3,GENERAL EXPENDITURES,TRAVEL,DETAIL,2022-09-21,AP,1598524,CITIBANK GOV CARD SERVICE,2022-08-24,2022-08-24,WI-FI ON TRAVEL,10,2022
,2022 OFFICE OF THE SPEAKER,3,GENERAL EXPENDITURES,TRAVEL,DETAIL,2022-09-21,AP,1598524,CITIBANK GOV CARD SERVICE,2022-08-25,2022-08-25,WI-FI ON TRAVEL,9.95,2022
,2022 OFFICE OF THE SPEAKER,3,GENERAL EXPENDITURES,TRAVEL,DETAIL,2022-09-21,AP,1598524,CITIBANK GOV CARD SERVICE,2022-07-28,2022-07-28,TAXI/RIDE SHARE,11.26,2022
,2022 OFFICE OF THE SPEAKER,3,GENERAL EXPENDITURES,TRAVEL,DETAIL,2022-09-21,AP,1598524,CITIBANK GOV CARD SERVICE,2022-07-29,2022-07-29,TAXI/RIDE SHARE,15.25,2022
,2022 OFFICE OF THE SPEAKER,3,GENERAL EXPENDITURES,TRAVEL,DETAIL,2022-09-21,AP,1598524,CITIBANK GOV CARD SERVICE,2022-07-30,2022-07-30,TAXI/RIDE SHARE,13.89,2022
,2022 OFFICE OF THE SPEAKER,3,GENERAL EXPENDITURES,TRAVEL,DETAIL,2022-09-21,AP,1598524,CITIBANK GOV CARD SERVICE,2022-08-19,2022-08-19,TAXI/RIDE SHARE,65.68,2022
,2022 OFFICE OF THE SPEAKER,3,GENERAL EXPENDITURES,TRAVEL,DETAIL,2022-09-21,AP,1598524,CITIBANK GOV CARD SERVICE,2022-08-22,2022-08-22,TAXI/RIDE SHARE,120.53,2022
,2022 OFFICE OF THE SPEAKER,3,GENERAL EXPENDITURES,TRAVEL,DETAIL,2022-09-21,AP,1598524,CITIBANK GOV CARD SERVICE,2022-08-23,2022-08-23,TAXI/RIDE SHARE,35.03,2022
,2022 OFFICE OF THE SPEAKER,3,GENERAL EXPENDITURES,TRAVEL,DETAIL,2022-09-21,AP,1598524,CITIBANK GOV CARD SERVICE,2022-08-24,2022-08-24,TAXI/RIDE SHARE,80.62,2022
,2022 OFFICE OF THE SPEAKER,3,GENERAL EXPENDITURES,TRAVEL,DETAIL,2022-09-21,AP,1598524,CITIBANK GOV CARD SERVICE,2022-08-25,2022-08-25,TAXI/RIDE SHARE,56.44,2022
,2022 OFFICE OF THE SPEAKER,3,GENERAL EXPENDITURES,TRAVEL,DETAIL,2022-09-21,AP,1598565,CITIBANK GOV CARD SERVICE,2022-05-08,2022-05-09,AIRFARE COMMERCIAL TRANSPORT,-700.19,2022
,2022 OFFICE OF THE SPEAKER,3,GENERAL EXPENDITURES,TRAVEL,DETAIL,2022-09-21,AP,1598565,CITIBANK GOV CARD SERVICE,2022-08-24,2022-08-24,AIRFARE COMMERCIAL TRANSPORT,203.6,2022
,2022 OFFICE OF THE SPEAKER,3,GENERAL EXPENDITURES,TRAVEL,DETAIL,2022-09-21,AP,1598565,CITIBANK GOV CARD SERVICE,2022-08-25,2022-08-26,AIRFARE COMMERCIAL TRANSPORT,203.6,2022
,2022 OFFICE OF THE SPEAKER,3,GENERAL EXPENDITURES,TRAVEL,DETAIL,2022-09-21,AP,1598565,CITIBANK GOV CARD SERVICE,2022-08-24,2022-08-24,MEALS,76.91,2022
,2022 OFFICE OF THE SPEAKER,3,GENERAL EXPENDITURES,TRAVEL,DETAIL,2022-09-21,AP,1598565,CITIBANK GOV CARD SERVICE,2022-08-24,2022-08-24,WI-FI ON TRAVEL,8,2022
,2022 OFFICE OF THE SPEAKER,3,GENERAL EXPENDITURES,TRAVEL,DETAIL,2022-09-21,AP,1598565,CITIBANK GOV CARD SERVICE,2022-07-28,2022-07-28,TAXI/RIDE SHARE,64.39,2022
,2022 OFFICE OF THE SPEAKER,3,GENERAL EXPENDITURES,TRAVEL,DETAIL,2022-09-21,AP,1598565,CITIBANK GOV CARD SERVICE,2022-08-24,2022-08-24,TAXI/RIDE SHARE,143.36,2022
,2022 OFFICE OF THE SPEAKER,3,GENERAL EXPENDITURES,TRAVEL,DETAIL,2022-09-21,AP,1598565,CITIBANK GOV CARD SERVICE,2022-08-25,2022-08-25,TAXI/RIDE SHARE,8.92,2022
,2022 OFFICE OF THE SPEAKER,3,GENERAL EXPENDITURES,TRAVEL,DETAIL,2022-09-21,AP,1600115,SUN SELINA A.,2022-08-31,2022-08-31,TAXI/RIDE SHARE,36.48,2022
,2022 OFFICE OF THE SPEAKER,3,GENERAL EXPENDITURES,TRAVEL,SUBTOTAL,   ,   ,   ,   ,   ,   ,TRAVEL TOTALS:,21628.6,2022
,2022 OFFICE OF THE SPEAKER,3,GENERAL EXPENDITURES,RENT  COMMUNICATION  UTILITIES,DETAIL,2022-07-08,AP,1576307,FEDEX,2022-06-09,2022-06-09,POSTAGE / COURIER / BOX RENTAL,14.65,2022
,2022 OFFICE OF THE SPEAKER,3,GENERAL EXPENDITURES,RENT  COMMUNICATION  UTILITIES,DETAIL,2022-07-08,AP,1576309,FEDEX,2022-04-14,2022-04-14,POSTAGE / COURIER / BOX RENTAL,46.22,2022
,2022 OFFICE OF THE SPEAKER,3,GENERAL EXPENDITURES,RENT  COMMUNICATION  UTILITIES,DETAIL,2022-07-26,GL,EMS0117018, ,2022-06-01,2022-06-30,DC TELECOM EQUIP (TRANSFER),232,2022
,2022 OFFICE OF THE SPEAKER,3,GENERAL EXPENDITURES,RENT  COMMUNICATION  UTILITIES,DETAIL,2022-07-26,GL,EMS0117018, ,2022-06-01,2022-06-30,DC TELECOM SERV (TRANSFER),1227.5,2022
,2022 OFFICE OF THE SPEAKER,3,GENERAL EXPENDITURES,RENT  COMMUNICATION  UTILITIES,DETAIL,2022-07-26,GL,EMS0117018, ,2022-06-01,2022-06-30,DC TELECOM TOLLS (TRANSFER),8468.72,2022
,2022 OFFICE OF THE SPEAKER,3,GENERAL EXPENDITURES,RENT  COMMUNICATION  UTILITIES,DETAIL,2022-07-27,GL,MED0117064, ,2022-07-15,2022-07-22,HIR GRAPHICS (TRANSFER),179.5,2022
,2022 OFFICE OF THE SPEAKER,3,GENERAL EXPENDITURES,RENT  COMMUNICATION  UTILITIES,DETAIL,2022-08-10,AP,1585692,FEDEX,2022-07-11,2022-07-11,POSTAGE / COURIER / BOX RENTAL,5.26,2022
,2022 OFFICE OF THE SPEAKER,3,GENERAL EXPENDITURES,RENT  COMMUNICATION  UTILITIES,DETAIL,2022-08-25,GL,EMS0117770, ,2022-07-01,2022-07-31,DC TELECOM EQUIP (TRANSFER),328,2022
,2022 OFFICE OF THE SPEAKER,3,GENERAL EXPENDITURES,RENT  COMMUNICATION  UTILITIES,DETAIL,2022-08-25,GL,EMS0117770, ,2022-07-01,2022-07-31,DC TELECOM SERV (TRANSFER),1235.25,2022
,2022 OFFICE OF THE SPEAKER,3,GENERAL EXPENDITURES,RENT  COMMUNICATION  UTILITIES,DETAIL,2022-08-25,GL,EMS0117770, ,2022-07-01,2022-07-31,DC TELECOM TOLLS (TRANSFER),7862.84,2022
,2022 OFFICE OF THE SPEAKER,3,GENERAL EXPENDITURES,RENT  COMMUNICATION  UTILITIES,DETAIL,2022-08-25,GL,MED0117762, ,2022-07-27,2022-08-19,HIR GRAPHICS (TRANSFER),428,2022
,2022 OFFICE OF THE SPEAKER,3,GENERAL EXPENDITURES,RENT  COMMUNICATION  UTILITIES,DETAIL,2022-09-22,AP,1598569,CITI PCARD-FEDEX OFFIC13000013037,2022-08-21,2022-08-21,POSTAGE / COURIER / BOX RENTAL,17.5,2022
,2022 OFFICE OF THE SPEAKER,3,GENERAL EXPENDITURES,RENT  COMMUNICATION  UTILITIES,DETAIL,2022-09-28,GL,EMS0118774, ,2022-08-01,2022-08-31,DC TELECOM EQUIP (TRANSFER),232,2022
,2022 OFFICE OF THE SPEAKER,3,GENERAL EXPENDITURES,RENT  COMMUNICATION  UTILITIES,DETAIL,2022-09-28,GL,EMS0118774, ,2022-08-01,2022-08-31,DC TELECOM SERV (TRANSFER),1219.75,2022
,2022 OFFICE OF THE SPEAKER,3,GENERAL EXPENDITURES,RENT  COMMUNICATION  UTILITIES,DETAIL,2022-09-28,GL,EMS0118774, ,2022-08-01,2022-08-31,DC TELECOM TOLLS (TRANSFER),11297.79,2022
,2022 OFFICE OF THE SPEAKER,3,GENERAL EXPENDITURES,RENT  COMMUNICATION  UTILITIES,SUBTOTAL,   ,   ,   ,   ,   ,   ,RENT  COMMUNICATION  UTILITIES TOTALS:,32794.98,2022
,2022 OFFICE OF THE SPEAKER,3,GENERAL EXPENDITURES,PRINTING AND REPRODUCTION,DETAIL,2022-07-13,AP,1577043,SHARP ELECTRONICS CORPORATIION,2022-03-24,2022-06-24,NON-FRANKABLE PRINTING & REPRO,262.74,2022
,2022 OFFICE OF THE SPEAKER,3,GENERAL EXPENDITURES,PRINTING AND REPRODUCTION,DETAIL,2022-07-13,AP,1577046,ACCURATE WORD,2022-06-30,2022-06-30,NON-FRANKABLE PRINTING & REPRO,43,2022
,2022 OFFICE OF THE SPEAKER,3,GENERAL EXPENDITURES,PRINTING AND REPRODUCTION,DETAIL,2022-07-21,AP,1577498,CITIBANK GOV CARD SERVICE,2022-05-28,2022-05-28,NON-FRANKABLE PRINTING & REPRO,44.89,2022
,2022 OFFICE OF THE SPEAKER,3,GENERAL EXPENDITURES,PRINTING AND REPRODUCTION,DETAIL,2022-07-21,AP,1578258,CITI PCARD-FACEBK  4QYKWFT2M2,2022-06-23,2022-06-25,ADVERTISEMENTS,750,2022
,2022 OFFICE OF THE SPEAKER,3,GENERAL EXPENDITURES,PRINTING AND REPRODUCTION,DETAIL,2022-07-21,AP,1578258,CITI PCARD-FACEBK  5HATGEXZL2,2022-06-24,2022-06-26,ADVERTISEMENTS,750,2022
,2022 OFFICE OF THE SPEAKER,3,GENERAL EXPENDITURES,PRINTING AND REPRODUCTION,DETAIL,2022-07-21,AP,1578258,CITI PCARD-FACEBK  7FUPMF32M2,2022-06-22,2022-06-24,ADVERTISEMENTS,750,2022
,2022 OFFICE OF THE SPEAKER,3,GENERAL EXPENDITURES,PRINTING AND REPRODUCTION,DETAIL,2022-07-21,AP,1578258,CITI PCARD-FACEBK  AZHMKFP2M2,2022-06-18,2022-06-22,ADVERTISEMENTS,750,2022
,2022 OFFICE OF THE SPEAKER,3,GENERAL EXPENDITURES,PRINTING AND REPRODUCTION,DETAIL,2022-07-21,AP,1578258,CITI PCARD-FACEBK  C8FDUEK2M2,2022-06-11,2022-06-16,ADVERTISEMENTS,750,2022
,2022 OFFICE OF THE SPEAKER,3,GENERAL EXPENDITURES,PRINTING AND REPRODUCTION,DETAIL,2022-07-21,AP,1578258,CITI PCARD-FACEBK  DXY4LEF2M2,2022-05-23,2022-05-25,ADVERTISEMENTS,736.89,2022
,2022 OFFICE OF THE SPEAKER,3,GENERAL EXPENDITURES,PRINTING AND REPRODUCTION,DETAIL,2022-07-21,AP,1578258,CITI PCARD-FACEBK  HCGKRFPZL2,2022-06-17,2022-06-19,ADVERTISEMENTS,750,2022
,2022 OFFICE OF THE SPEAKER,3,GENERAL EXPENDITURES,PRINTING AND REPRODUCTION,DETAIL,2022-07-21,AP,1578258,CITI PCARD-FACEBK  J34B5EXZL2,2022-06-02,2022-06-11,ADVERTISEMENTS,750,2022
,2022 OFFICE OF THE SPEAKER,3,GENERAL EXPENDITURES,PRINTING AND REPRODUCTION,DETAIL,2022-07-21,AP,1578258,CITI PCARD-FACEBK  M7C3MFB2M2,2022-06-25,2022-06-26,ADVERTISEMENTS,750,2022
,2022 OFFICE OF THE SPEAKER,3,GENERAL EXPENDITURES,PRINTING AND REPRODUCTION,DETAIL,2022-07-21,AP,1578258,CITI PCARD-FACEBK  NU55AEXZL2,2022-06-15,2022-06-17,ADVERTISEMENTS,750,2022
,2022 OFFICE OF THE SPEAKER,3,GENERAL EXPENDITURES,PRINTING AND REPRODUCTION,DETAIL,2022-07-21,AP,1578258,CITI PCARD-FACEBK  QP5F5GTZL2,2022-06-25,2022-06-27,ADVERTISEMENTS,750,2022
,2022 OFFICE OF THE SPEAKER,3,GENERAL EXPENDITURES,PRINTING AND REPRODUCTION,DETAIL,2022-07-27,GL,MED0117064, ,2022-07-18,2022-07-26,PHOTOGRAPHIC (TRANSFER),273.9,2022
,2022 OFFICE OF THE SPEAKER,3,GENERAL EXPENDITURES,PRINTING AND REPRODUCTION,DETAIL,2022-08-10,AP,1586209,ACCURATE WORD,2022-07-28,2022-07-28,NON-FRANKABLE PRINTING & REPRO,1453,2022
,2022 OFFICE OF THE SPEAKER,3,GENERAL EXPENDITURES,PRINTING AND REPRODUCTION,DETAIL,2022-08-12,AP,1586211,ACCURATE WORD,2022-08-02,2022-08-02,NON-FRANKABLE PRINTING & REPRO,86,2022
,2022 OFFICE OF THE SPEAKER,3,GENERAL EXPENDITURES,PRINTING AND REPRODUCTION,DETAIL,2022-08-18,AP,1586688,CITI PCARD-FACEBK  85Z7ZF32M2,2022-07-07,2022-07-09,ADVERTISEMENTS,750,2022
,2022 OFFICE OF THE SPEAKER,3,GENERAL EXPENDITURES,PRINTING AND REPRODUCTION,DETAIL,2022-08-18,AP,1586688,CITI PCARD-FACEBK  8KCLAGP2M2,2022-07-20,2022-07-21,ADVERTISEMENTS,750,2022
,2022 OFFICE OF THE SPEAKER,3,GENERAL EXPENDITURES,PRINTING AND REPRODUCTION,DETAIL,2022-08-18,AP,1586688,CITI PCARD-FACEBK  9CVEQFF2M2,2022-07-11,2022-07-11,ADVERTISEMENTS,30.07,2022
,2022 OFFICE OF THE SPEAKER,3,GENERAL EXPENDITURES,PRINTING AND REPRODUCTION,DETAIL,2022-08-18,AP,1586688,CITI PCARD-FACEBK  AKR7CG72M2,2022-07-10,2022-07-11,ADVERTISEMENTS,750,2022
,2022 OFFICE OF THE SPEAKER,3,GENERAL EXPENDITURES,PRINTING AND REPRODUCTION,DETAIL,2022-08-18,AP,1586688,CITI PCARD-FACEBK  D5988GT2M2,2022-07-07,2022-07-07,ADVERTISEMENTS,750,2022
,2022 OFFICE OF THE SPEAKER,3,GENERAL EXPENDITURES,PRINTING AND REPRODUCTION,DETAIL,2022-08-18,AP,1586688,CITI PCARD-FACEBK  G9HABG72M2,2022-07-09,2022-07-10,ADVERTISEMENTS,750,2022
,2022 OFFICE OF THE SPEAKER,3,GENERAL EXPENDITURES,PRINTING AND REPRODUCTION,DETAIL,2022-08-18,AP,1586688,CITI PCARD-FACEBK  JK7XBG72M2,2022-07-10,2022-07-11,ADVERTISEMENTS,750,2022
,2022 OFFICE OF THE SPEAKER,3,GENERAL EXPENDITURES,PRINTING AND REPRODUCTION,DETAIL,2022-08-18,AP,1586688,CITI PCARD-FACEBK  JMUWDFK2M2,2022-07-07,2022-07-08,ADVERTISEMENTS,750,2022
,2022 OFFICE OF THE SPEAKER,3,GENERAL EXPENDITURES,PRINTING AND REPRODUCTION,DETAIL,2022-08-18,AP,1586688,CITI PCARD-FACEBK  LSKM8GT2M2,2022-07-07,2022-07-08,ADVERTISEMENTS,750,2022
,2022 OFFICE OF THE SPEAKER,3,GENERAL EXPENDITURES,PRINTING AND REPRODUCTION,DETAIL,2022-08-18,AP,1586688,CITI PCARD-FACEBK  PC5B3G72M2,2022-06-26,2022-06-27,ADVERTISEMENTS,492.38,2022
,2022 OFFICE OF THE SPEAKER,3,GENERAL EXPENDITURES,PRINTING AND REPRODUCTION,DETAIL,2022-08-18,AP,1586688,CITI PCARD-FACEBK  PHKG2G32M2,2022-07-09,2022-07-11,ADVERTISEMENTS,750,2022
,2022 OFFICE OF THE SPEAKER,3,GENERAL EXPENDITURES,PRINTING AND REPRODUCTION,DETAIL,2022-08-18,AP,1586688,CITI PCARD-FACEBK  S6QVTEXZL2,2022-07-08,2022-07-10,ADVERTISEMENTS,750,2022
,2022 OFFICE OF THE SPEAKER,3,GENERAL EXPENDITURES,PRINTING AND REPRODUCTION,DETAIL,2022-08-18,AP,1586688,CITI PCARD-FACEBK  V2NL9GT2M2,2022-07-08,2022-07-09,ADVERTISEMENTS,750,2022
,2022 OFFICE OF THE SPEAKER,3,GENERAL EXPENDITURES,PRINTING AND REPRODUCTION,DETAIL,2022-08-18,AP,1586688,CITI PCARD-FACEBK 3ENEMGPZL2,2022-07-22,2022-07-23,ADVERTISEMENTS,750,2022
,2022 OFFICE OF THE SPEAKER,3,GENERAL EXPENDITURES,PRINTING AND REPRODUCTION,DETAIL,2022-08-18,AP,1586688,CITI PCARD-FACEBK 3KDM9GB2M2,2022-07-21,2022-07-22,ADVERTISEMENTS,81.15,2022
,2022 OFFICE OF THE SPEAKER,3,GENERAL EXPENDITURES,PRINTING AND REPRODUCTION,DETAIL,2022-08-18,AP,1586688,CITI PCARD-FACEBK 53DM9GB2M2,2022-07-20,2022-07-22,ADVERTISEMENTS,751.28,2022
,2022 OFFICE OF THE SPEAKER,3,GENERAL EXPENDITURES,PRINTING AND REPRODUCTION,DETAIL,2022-08-18,AP,1586688,CITI PCARD-FACEBK 59V3FGP2M2,2022-07-26,2022-07-27,ADVERTISEMENTS,750,2022
,2022 OFFICE OF THE SPEAKER,3,GENERAL EXPENDITURES,PRINTING AND REPRODUCTION,DETAIL,2022-08-18,AP,1586688,CITI PCARD-FACEBK 6Q9DDGB2M2,2022-07-26,2022-07-27,ADVERTISEMENTS,750,2022
,2022 OFFICE OF THE SPEAKER,3,GENERAL EXPENDITURES,PRINTING AND REPRODUCTION,DETAIL,2022-08-18,AP,1586688,CITI PCARD-FACEBK 7PQ5GG32M2,2022-07-27,2022-07-27,ADVERTISEMENTS,750,2022
,2022 OFFICE OF THE SPEAKER,3,GENERAL EXPENDITURES,PRINTING AND REPRODUCTION,DETAIL,2022-08-18,AP,1586688,CITI PCARD-FACEBK 8AEBAFXZL2,2022-07-27,2022-07-27,ADVERTISEMENTS,750,2022
,2022 OFFICE OF THE SPEAKER,3,GENERAL EXPENDITURES,PRINTING AND REPRODUCTION,DETAIL,2022-08-18,AP,1586688,CITI PCARD-FACEBK A95LEG32M2,2022-07-24,2022-07-25,ADVERTISEMENTS,750,2022
,2022 OFFICE OF THE SPEAKER,3,GENERAL EXPENDITURES,PRINTING AND REPRODUCTION,DETAIL,2022-08-18,AP,1586688,CITI PCARD-FACEBK D6USNGPZL2,2022-07-24,2022-07-25,ADVERTISEMENTS,750,2022
,2022 OFFICE OF THE SPEAKER,3,GENERAL EXPENDITURES,PRINTING AND REPRODUCTION,DETAIL,2022-08-18,AP,1586688,CITI PCARD-FACEBK DRRKCGP2M2,2022-07-22,2022-07-24,ADVERTISEMENTS,750,2022
,2022 OFFICE OF THE SPEAKER,3,GENERAL EXPENDITURES,PRINTING AND REPRODUCTION,DETAIL,2022-08-18,AP,1586688,CITI PCARD-FACEBK EQ4ZMGPZL2,2022-07-24,2022-07-24,ADVERTISEMENTS,750,2022
,2022 OFFICE OF THE SPEAKER,3,GENERAL EXPENDITURES,PRINTING AND REPRODUCTION,DETAIL,2022-08-18,AP,1586688,CITI PCARD-FACEBK FVUBBGB2M2,2022-07-24,2022-07-24,ADVERTISEMENTS,750,2022
,2022 OFFICE OF THE SPEAKER,3,GENERAL EXPENDITURES,PRINTING AND REPRODUCTION,DETAIL,2022-08-18,AP,1586688,CITI PCARD-FACEBK G2H5AFXZL2,2022-07-26,2022-07-27,ADVERTISEMENTS,750,2022
,2022 OFFICE OF THE SPEAKER,3,GENERAL EXPENDITURES,PRINTING AND REPRODUCTION,DETAIL,2022-08-18,AP,1586688,CITI PCARD-FACEBK H2PBMGT2M2,2022-07-22,2022-07-23,ADVERTISEMENTS,750,2022
,2022 OFFICE OF THE SPEAKER,3,GENERAL EXPENDITURES,PRINTING AND REPRODUCTION,DETAIL,2022-08-18,AP,1586688,CITI PCARD-FACEBK HXTBPG72M2,2022-07-24,2022-07-25,ADVERTISEMENTS,750,2022
,2022 OFFICE OF THE SPEAKER,3,GENERAL EXPENDITURES,PRINTING AND REPRODUCTION,DETAIL,2022-08-18,AP,1586688,CITI PCARD-FACEBK PWSVNG72M2,2022-07-24,2022-07-24,ADVERTISEMENTS,750,2022
,2022 OFFICE OF THE SPEAKER,3,GENERAL EXPENDITURES,PRINTING AND REPRODUCTION,DETAIL,2022-08-18,AP,1586688,CITI PCARD-FACEBK R76GCG32M2,2022-07-21,2022-07-22,ADVERTISEMENTS,750,2022
,2022 OFFICE OF THE SPEAKER,3,GENERAL EXPENDITURES,PRINTING AND REPRODUCTION,DETAIL,2022-08-18,AP,1586688,CITI PCARD-FACEBK RJZTQG72M2,2022-07-25,2022-07-27,ADVERTISEMENTS,750,2022
,2022 OFFICE OF THE SPEAKER,3,GENERAL EXPENDITURES,PRINTING AND REPRODUCTION,DETAIL,2022-08-18,AP,1586688,CITI PCARD-FACEBK TYBF2GF2M2,2022-07-27,2022-07-27,ADVERTISEMENTS,750,2022
,2022 OFFICE OF THE SPEAKER,3,GENERAL EXPENDITURES,PRINTING AND REPRODUCTION,DETAIL,2022-08-18,AP,1586688,CITI PCARD-FACEBK UHN2UFK2M2,2022-07-25,2022-07-26,ADVERTISEMENTS,750,2022
,2022 OFFICE OF THE SPEAKER,3,GENERAL EXPENDITURES,PRINTING AND REPRODUCTION,DETAIL,2022-08-18,AP,1586688,CITI PCARD-FACEBK W4FEDGB2M2,2022-07-26,2022-07-27,ADVERTISEMENTS,750,2022
,2022 OFFICE OF THE SPEAKER,3,GENERAL EXPENDITURES,PRINTING AND REPRODUCTION,DETAIL,2022-08-18,AP,1586688,CITI PCARD-FACEBK X492MGPZL2,2022-07-21,2022-07-23,ADVERTISEMENTS,750,2022
,2022 OFFICE OF THE SPEAKER,3,GENERAL EXPENDITURES,PRINTING AND REPRODUCTION,DETAIL,2022-08-18,AP,1586688,CITI PCARD-FACEBK XV8VDGP2M2,2022-07-24,2022-07-26,ADVERTISEMENTS,750,2022
,2022 OFFICE OF THE SPEAKER,3,GENERAL EXPENDITURES,PRINTING AND REPRODUCTION,DETAIL,2022-08-18,AP,1586688,CITI PCARD-FACEBK YSLYRFK2M2,2022-07-22,2022-07-23,ADVERTISEMENTS,750,2022
,2022 OFFICE OF THE SPEAKER,3,GENERAL EXPENDITURES,PRINTING AND REPRODUCTION,DETAIL,2022-08-25,GL,MED0117762, ,2022-08-10,2022-08-17,PHOTOGRAPHIC (TRANSFER),60,2022
,2022 OFFICE OF THE SPEAKER,3,GENERAL EXPENDITURES,PRINTING AND REPRODUCTION,DETAIL,2022-09-22,AP,1598569,CITI PCARD-FACEBK 24WLAH72M2,2022-08-18,2022-08-18,ADVERTISEMENTS,749.82,2022
,2022 OFFICE OF THE SPEAKER,3,GENERAL EXPENDITURES,PRINTING AND REPRODUCTION,DETAIL,2022-09-22,AP,1598569,CITI PCARD-FACEBK 4VBL2HP2M2,2022-08-21,2022-08-21,ADVERTISEMENTS,750,2022
,2022 OFFICE OF THE SPEAKER,3,GENERAL EXPENDITURES,PRINTING AND REPRODUCTION,DETAIL,2022-09-22,AP,1598569,CITI PCARD-FACEBK 55W9BH72M2,2022-08-18,2022-08-19,ADVERTISEMENTS,750,2022
,2022 OFFICE OF THE SPEAKER,3,GENERAL EXPENDITURES,PRINTING AND REPRODUCTION,DETAIL,2022-09-22,AP,1598569,CITI PCARD-FACEBK 5F9SFHTZL2,2022-08-19,2022-08-20,ADVERTISEMENTS,750,2022
,2022 OFFICE OF THE SPEAKER,3,GENERAL EXPENDITURES,PRINTING AND REPRODUCTION,DETAIL,2022-09-22,AP,1598569,CITI PCARD-FACEBK 5F9WBHT2M2,2022-08-21,2022-08-21,ADVERTISEMENTS,750,2022
,2022 OFFICE OF THE SPEAKER,3,GENERAL EXPENDITURES,PRINTING AND REPRODUCTION,DETAIL,2022-09-22,AP,1598569,CITI PCARD-FACEBK 5LW92HP2M2,2022-08-20,2022-08-21,ADVERTISEMENTS,750,2022
,2022 OFFICE OF THE SPEAKER,3,GENERAL EXPENDITURES,PRINTING AND REPRODUCTION,DETAIL,2022-09-22,AP,1598569,CITI PCARD-FACEBK 9LNBGG32M2,2022-07-27,2022-07-28,ADVERTISEMENTS,750,2022
,2022 OFFICE OF THE SPEAKER,3,GENERAL EXPENDITURES,PRINTING AND REPRODUCTION,DETAIL,2022-09-22,AP,1598569,CITI PCARD-FACEBK FF5TFGK2M2,2022-08-19,2022-08-20,ADVERTISEMENTS,750,2022
,2022 OFFICE OF THE SPEAKER,3,GENERAL EXPENDITURES,PRINTING AND REPRODUCTION,DETAIL,2022-09-22,AP,1598569,CITI PCARD-FACEBK KLG8KG32M2,2022-07-27,2022-07-28,ADVERTISEMENTS,247.89,2022
,2022 OFFICE OF THE SPEAKER,3,GENERAL EXPENDITURES,PRINTING AND REPRODUCTION,DETAIL,2022-09-22,AP,1598569,CITI PCARD-FACEBK LQSP9HT2M2,2022-08-18,2022-08-19,ADVERTISEMENTS,750,2022
,2022 OFFICE OF THE SPEAKER,3,GENERAL EXPENDITURES,PRINTING AND REPRODUCTION,DETAIL,2022-09-22,AP,1598569,CITI PCARD-FACEBK PMZ6FHTZL2,2022-08-18,2022-08-19,ADVERTISEMENTS,750,2022
,2022 OFFICE OF THE SPEAKER,3,GENERAL EXPENDITURES,PRINTING AND REPRODUCTION,DETAIL,2022-09-22,AP,1598569,CITI PCARD-FACEBK PPTJZGP2M2,2022-08-19,2022-08-20,ADVERTISEMENTS,750,2022
,2022 OFFICE OF THE SPEAKER,3,GENERAL EXPENDITURES,PRINTING AND REPRODUCTION,DETAIL,2022-09-22,AP,1598569,CITI PCARD-FACEBK YTGP4HB2M2,2022-08-21,2022-08-21,ADVERTISEMENTS,280.86,2022
,2022 OFFICE OF THE SPEAKER,3,GENERAL EXPENDITURES,PRINTING AND REPRODUCTION,DETAIL,2022-09-27,GL,MED0118656, ,2022-09-26,2022-09-26,PHOTOGRAPHIC (TRANSFER),20,2022
,2022 OFFICE OF THE SPEAKER,3,GENERAL EXPENDITURES,PRINTING AND REPRODUCTION,SUBTOTAL,   ,   ,   ,   ,   ,   ,PRINTING AND REPRODUCTION TOTALS:,45363.87,2022
,2022 OFFICE OF THE SPEAKER,3,GENERAL EXPENDITURES,SUPPLIES AND MATERIALS,DETAIL,2022-07-08,AP,1576284,CITI PCARD-INSTACART,2022-06-03,2022-06-03,FOOD & BEVERAGE,617.84,2022
,2022 OFFICE OF THE SPEAKER,3,GENERAL EXPENDITURES,SUPPLIES AND MATERIALS,DETAIL,2022-07-08,AP,1576284,CITI PCARD-POTBELLY # 140,2022-06-06,2022-06-06,FOOD & BEVERAGE,1200.78,2022
,2022 OFFICE OF THE SPEAKER,3,GENERAL EXPENDITURES,SUPPLIES AND MATERIALS,DETAIL,2022-07-08,AP,1576284,CITI PCARD-POTBELLY # 140,2022-06-13,2022-06-13,FOOD & BEVERAGE,1200.78,2022
,2022 OFFICE OF THE SPEAKER,3,GENERAL EXPENDITURES,SUPPLIES AND MATERIALS,DETAIL,2022-07-08,AP,1576284,CITI PCARD-POTBELLY # 140,2022-06-21,2022-06-21,FOOD & BEVERAGE,1200.78,2022
,2022 OFFICE OF THE SPEAKER,3,GENERAL EXPENDITURES,SUPPLIES AND MATERIALS,DETAIL,2022-07-08,AP,1576304,TOULIES EN FLEUR,2022-02-07,2022-03-28,HABITATION EXPENSE,1925,2022
,2022 OFFICE OF THE SPEAKER,3,GENERAL EXPENDITURES,SUPPLIES AND MATERIALS,DETAIL,2022-07-08,AP,1576306,TOULIES EN FLEUR,2022-04-05,2022-06-21,HABITATION EXPENSE,3080,2022
,2022 OFFICE OF THE SPEAKER,3,GENERAL EXPENDITURES,SUPPLIES AND MATERIALS,DETAIL,2022-07-08,AP,1576353,TOULIES EN FLEUR,2022-03-09,2022-03-09,HABITATION EXPENSE,375,2022
,2022 OFFICE OF THE SPEAKER,3,GENERAL EXPENDITURES,SUPPLIES AND MATERIALS,DETAIL,2022-07-21,AP,1578258,CITI PCARD-AMAZON.COM 961OA4CN3 AMZN,2022-06-08,2022-06-08,OFFICE SUPPLIES (OUTSIDE),236.96,2022
,2022 OFFICE OF THE SPEAKER,3,GENERAL EXPENDITURES,SUPPLIES AND MATERIALS,DETAIL,2022-07-21,AP,1578258,CITI PCARD-AMZN Mktp US 413CG9SQ3,2022-06-08,2022-06-08,OFFICE SUPPLIES (OUTSIDE),559.78,2022
,2022 OFFICE OF THE SPEAKER,3,GENERAL EXPENDITURES,SUPPLIES AND MATERIALS,DETAIL,2022-07-21,AP,1578258,CITI PCARD-AMZN Mktp US PV6FZ2DW3,2022-06-08,2022-06-08,OFFICE SUPPLIES (OUTSIDE),58.99,2022
,2022 OFFICE OF THE SPEAKER,3,GENERAL EXPENDITURES,SUPPLIES AND MATERIALS,DETAIL,2022-07-21,AP,1578258,CITI PCARD-ASANA.COM,2022-06-17,2022-07-16,SOFTWARE  LESS THAN  $500,129.28,2022
,2022 OFFICE OF THE SPEAKER,3,GENERAL EXPENDITURES,SUPPLIES AND MATERIALS,DETAIL,2022-07-21,AP,1578258,CITI PCARD-B&H PHOTO 800-606-6969,2022-06-08,2022-06-08,OFFICE SUPPLIES (OUTSIDE),1000.56,2022
,2022 OFFICE OF THE SPEAKER,3,GENERAL EXPENDITURES,SUPPLIES AND MATERIALS,DETAIL,2022-07-21,AP,1578258,CITI PCARD-B&H PHOTO 800-606-6969,2022-06-24,2022-06-24,OFFICE SUPPLIES (OUTSIDE),209.25,2022
,2022 OFFICE OF THE SPEAKER,3,GENERAL EXPENDITURES,SUPPLIES AND MATERIALS,DETAIL,2022-07-21,AP,1578258,CITI PCARD-DESCRIPT,2022-06-25,2022-07-25,SOFTWARE  LESS THAN  $500,30,2022
,2022 OFFICE OF THE SPEAKER,3,GENERAL EXPENDITURES,SUPPLIES AND MATERIALS,DETAIL,2022-07-21,AP,1578258,CITI PCARD-LIVEU INC,2022-06-15,2022-07-15,SOFTWARE  LESS THAN  $500,312.7,2022
,2022 OFFICE OF THE SPEAKER,3,GENERAL EXPENDITURES,SUPPLIES AND MATERIALS,DETAIL,2022-07-21,AP,1578258,CITI PCARD-LIVEU INC  TRIAL OVER,2022-06-25,2022-07-25,SOFTWARE  LESS THAN  $500,48.15,2022
,2022 OFFICE OF THE SPEAKER,3,GENERAL EXPENDITURES,SUPPLIES AND MATERIALS,DETAIL,2022-07-21,AP,1578258,CITI PCARD-NETGEAR INC,2022-06-14,2022-06-14,OFFICE SUPPLIES (OUTSIDE),455.79,2022
,2022 OFFICE OF THE SPEAKER,3,GENERAL EXPENDITURES,SUPPLIES AND MATERIALS,DETAIL,2022-07-21,AP,1578258,CITI PCARD-RESTREAM INC.,2022-06-18,2022-07-18,SOFTWARE  LESS THAN  $500,99,2022
,2022 OFFICE OF THE SPEAKER,3,GENERAL EXPENDITURES,SUPPLIES AND MATERIALS,DETAIL,2022-07-21,AP,1578258,CITI PCARD-RYTR - AI WRITER,2022-06-21,2022-07-21,SOFTWARE  LESS THAN  $500,290,2022
,2022 OFFICE OF THE SPEAKER,3,GENERAL EXPENDITURES,SUPPLIES AND MATERIALS,DETAIL,2022-07-21,AP,1578258,CITI PCARD-WWW.TWITTER.COM,2022-06-13,2022-07-13,SOFTWARE  LESS THAN  $500,2.99,2022
,2022 OFFICE OF THE SPEAKER,3,GENERAL EXPENDITURES,SUPPLIES AND MATERIALS,DETAIL,2022-07-27,AP,1582916,CDW GOVERNMENT LLC,2022-06-28,2022-06-28,OFFICE SUPPLIES (OUTSIDE),668.24,2022
,2022 OFFICE OF THE SPEAKER,3,GENERAL EXPENDITURES,SUPPLIES AND MATERIALS,DETAIL,2022-07-27,AP,1582936,BERRET EMILY C.,2022-07-22,2022-07-22,FOOD & BEVERAGE,873.27,2022
,2022 OFFICE OF THE SPEAKER,3,GENERAL EXPENDITURES,SUPPLIES AND MATERIALS,DETAIL,2022-07-31,GL,RMS0117194, ,2022-07-01,2022-07-31,OFFICE SUPPLY (TRANSFER),855.13,2022
,2022 OFFICE OF THE SPEAKER,3,GENERAL EXPENDITURES,SUPPLIES AND MATERIALS,DETAIL,2022-08-10,AP,1585492,SODEXO INC & AFFILIATES,2022-07-15,2022-07-15,FOOD & BEVERAGE,230.15,2022
,2022 OFFICE OF THE SPEAKER,3,GENERAL EXPENDITURES,SUPPLIES AND MATERIALS,DETAIL,2022-08-10,AP,1585494,SODEXO INC & AFFILIATES,2022-07-18,2022-07-18,FOOD & BEVERAGE,60.63,2022
,2022 OFFICE OF THE SPEAKER,3,GENERAL EXPENDITURES,SUPPLIES AND MATERIALS,DETAIL,2022-08-10,AP,1585495,SODEXO INC & AFFILIATES,2022-07-18,2022-07-18,FOOD & BEVERAGE,276.58,2022
,2022 OFFICE OF THE SPEAKER,3,GENERAL EXPENDITURES,SUPPLIES AND MATERIALS,DETAIL,2022-08-10,AP,1585497,SODEXO INC & AFFILIATES,2022-07-19,2022-07-19,FOOD & BEVERAGE,276.58,2022
,2022 OFFICE OF THE SPEAKER,3,GENERAL EXPENDITURES,SUPPLIES AND MATERIALS,DETAIL,2022-08-10,AP,1585498,SODEXO INC & AFFILIATES,2022-07-26,2022-07-26,FOOD & BEVERAGE,60.63,2022
,2022 OFFICE OF THE SPEAKER,3,GENERAL EXPENDITURES,SUPPLIES AND MATERIALS,DETAIL,2022-08-10,AP,1585502,SODEXO INC & AFFILIATES,2022-07-26,2022-07-26,FOOD & BEVERAGE,276.58,2022
,2022 OFFICE OF THE SPEAKER,3,GENERAL EXPENDITURES,SUPPLIES AND MATERIALS,DETAIL,2022-08-10,AP,1585503,SODEXO INC & AFFILIATES,2022-07-13,2022-07-13,FOOD & BEVERAGE,60.63,2022
,2022 OFFICE OF THE SPEAKER,3,GENERAL EXPENDITURES,SUPPLIES AND MATERIALS,DETAIL,2022-08-10,AP,1585504,SODEXO INC & AFFILIATES,2022-07-19,2022-07-19,WATER,257.83,2022
,2022 OFFICE OF THE SPEAKER,3,GENERAL EXPENDITURES,SUPPLIES AND MATERIALS,DETAIL,2022-08-10,AP,1585508,SODEXO INC & AFFILIATES,2022-06-07,2022-06-07,FOOD & BEVERAGE,60.63,2022
,2022 OFFICE OF THE SPEAKER,3,GENERAL EXPENDITURES,SUPPLIES AND MATERIALS,DETAIL,2022-08-10,AP,1585509,SODEXO INC & AFFILIATES,2022-06-07,2022-06-07,FOOD & BEVERAGE,276.58,2022
,2022 OFFICE OF THE SPEAKER,3,GENERAL EXPENDITURES,SUPPLIES AND MATERIALS,DETAIL,2022-08-10,AP,1585511,SODEXO INC & AFFILIATES,2022-06-13,2022-06-13,FOOD & BEVERAGE,60.63,2022
,2022 OFFICE OF THE SPEAKER,3,GENERAL EXPENDITURES,SUPPLIES AND MATERIALS,DETAIL,2022-08-10,AP,1585513,SODEXO INC & AFFILIATES,2022-06-13,2022-06-13,FOOD & BEVERAGE,276.58,2022
,2022 OFFICE OF THE SPEAKER,3,GENERAL EXPENDITURES,SUPPLIES AND MATERIALS,DETAIL,2022-08-10,AP,1585515,SODEXO INC & AFFILIATES,2022-06-21,2022-06-21,FOOD & BEVERAGE,60.63,2022
,2022 OFFICE OF THE SPEAKER,3,GENERAL EXPENDITURES,SUPPLIES AND MATERIALS,DETAIL,2022-08-10,AP,1585516,SODEXO INC & AFFILIATES,2022-06-21,2022-06-21,FOOD & BEVERAGE,276.58,2022
,2022 OFFICE OF THE SPEAKER,3,GENERAL EXPENDITURES,SUPPLIES AND MATERIALS,DETAIL,2022-08-10,AP,1585691,BLANKENSHIP ALLISON W.,2022-06-28,2022-06-28,FOOD & BEVERAGE,17.5,2022
,2022 OFFICE OF THE SPEAKER,3,GENERAL EXPENDITURES,SUPPLIES AND MATERIALS,DETAIL,2022-08-10,AP,1585691,BLANKENSHIP ALLISON W.,2022-07-01,2022-07-01,FOOD & BEVERAGE,82,2022
,2022 OFFICE OF THE SPEAKER,3,GENERAL EXPENDITURES,SUPPLIES AND MATERIALS,DETAIL,2022-08-10,AP,1586196,CITI PCARD-IC  INSTACART,2022-07-11,2022-07-11,FOOD & BEVERAGE,257.8,2022
,2022 OFFICE OF THE SPEAKER,3,GENERAL EXPENDITURES,SUPPLIES AND MATERIALS,DETAIL,2022-08-10,AP,1586196,CITI PCARD-IC  INSTACART,2022-07-19,2022-07-19,FOOD & BEVERAGE,86.22,2022
,2022 OFFICE OF THE SPEAKER,3,GENERAL EXPENDITURES,SUPPLIES AND MATERIALS,DETAIL,2022-08-10,AP,1586196,CITI PCARD-POTBELLY # 140,2022-07-11,2022-07-11,FOOD & BEVERAGE,1200.78,2022
,2022 OFFICE OF THE SPEAKER,3,GENERAL EXPENDITURES,SUPPLIES AND MATERIALS,DETAIL,2022-08-10,AP,1586196,CITI PCARD-POTBELLY # 140,2022-07-18,2022-07-18,FOOD & BEVERAGE,1200.78,2022
,2022 OFFICE OF THE SPEAKER,3,GENERAL EXPENDITURES,SUPPLIES AND MATERIALS,DETAIL,2022-08-10,AP,1586196,CITI PCARD-POTBELLY # 140,2022-07-25,2022-07-25,FOOD & BEVERAGE,1200.78,2022
,2022 OFFICE OF THE SPEAKER,3,GENERAL EXPENDITURES,SUPPLIES AND MATERIALS,DETAIL,2022-08-10,AP,1586196,CITI PCARD-WE THE PIZZA,2022-07-13,2022-07-13,FOOD & BEVERAGE,483.58,2022
,2022 OFFICE OF THE SPEAKER,3,GENERAL EXPENDITURES,SUPPLIES AND MATERIALS,DETAIL,2022-08-11,AP,1585483,SODEXO INC & AFFILIATES,2022-05-16,2022-05-16,WATER,257.83,2022
,2022 OFFICE OF THE SPEAKER,3,GENERAL EXPENDITURES,SUPPLIES AND MATERIALS,DETAIL,2022-08-11,AP,1585487,SODEXO INC & AFFILIATES,2022-07-12,2022-07-12,FOOD & BEVERAGE,250.3,2022
,2022 OFFICE OF THE SPEAKER,3,GENERAL EXPENDITURES,SUPPLIES AND MATERIALS,DETAIL,2022-08-11,AP,1585491,SODEXO INC & AFFILIATES,2022-07-12,2022-07-12,FOOD & BEVERAGE,276.58,2022
,2022 OFFICE OF THE SPEAKER,3,GENERAL EXPENDITURES,SUPPLIES AND MATERIALS,DETAIL,2022-08-18,AP,1586688,CITI PCARD-ASANA.COM,2022-07-17,2022-08-16,SOFTWARE  LESS THAN  $500,129.28,2022
,2022 OFFICE OF THE SPEAKER,3,GENERAL EXPENDITURES,SUPPLIES AND MATERIALS,DETAIL,2022-08-18,AP,1586688,CITI PCARD-BUS  INSIDER BI PRIME,2022-07-12,2023-07-12,PUBLICATIONS/REFERENCE MAT'L,99,2022
,2022 OFFICE OF THE SPEAKER,3,GENERAL EXPENDITURES,SUPPLIES AND MATERIALS,DETAIL,2022-08-18,AP,1586688,CITI PCARD-DESCRIPT,2022-07-25,2022-08-25,SOFTWARE  LESS THAN  $500,30,2022
,2022 OFFICE OF THE SPEAKER,3,GENERAL EXPENDITURES,SUPPLIES AND MATERIALS,DETAIL,2022-08-18,AP,1586688,CITI PCARD-DESIGNS AI,2022-07-21,2023-07-20,SOFTWARE  LESS THAN  $500,228,2022
,2022 OFFICE OF THE SPEAKER,3,GENERAL EXPENDITURES,SUPPLIES AND MATERIALS,DETAIL,2022-08-18,AP,1586688,CITI PCARD-LIVEU INC,2022-07-15,2022-08-15,SOFTWARE  LESS THAN  $500,312.7,2022
,2022 OFFICE OF THE SPEAKER,3,GENERAL EXPENDITURES,SUPPLIES AND MATERIALS,DETAIL,2022-08-18,AP,1586688,CITI PCARD-LIVEU INC,2022-07-25,2022-08-25,SOFTWARE  LESS THAN  $500,48.15,2022
,2022 OFFICE OF THE SPEAKER,3,GENERAL EXPENDITURES,SUPPLIES AND MATERIALS,DETAIL,2022-08-18,AP,1586688,CITI PCARD-PUNCHBOWL.NEWS,2022-07-12,2023-07-12,PUBLICATIONS/REFERENCE MAT'L,300,2022
,2022 OFFICE OF THE SPEAKER,3,GENERAL EXPENDITURES,SUPPLIES AND MATERIALS,DETAIL,2022-08-18,AP,1586688,CITI PCARD-RESTREAM INC.,2022-07-18,2022-08-17,SOFTWARE  LESS THAN  $500,99,2022
,2022 OFFICE OF THE SPEAKER,3,GENERAL EXPENDITURES,SUPPLIES AND MATERIALS,DETAIL,2022-08-18,AP,1586688,CITI PCARD-THEDAILYBEASONLINE,2022-07-12,2023-07-12,PUBLICATIONS/REFERENCE MAT'L,35,2022
,2022 OFFICE OF THE SPEAKER,3,GENERAL EXPENDITURES,SUPPLIES AND MATERIALS,DETAIL,2022-08-18,AP,1586688,CITI PCARD-WWW.TWITTER.COM,2022-07-13,2022-08-12,SOFTWARE  LESS THAN  $500,2.99,2022
,2022 OFFICE OF THE SPEAKER,3,GENERAL EXPENDITURES,SUPPLIES AND MATERIALS,DETAIL,2022-08-18,AP,1590622,CAPITAL GIFTS LLC,2022-07-27,2022-07-27,OFFICE SUPPLIES (OUTSIDE),6783.17,2022
,2022 OFFICE OF THE SPEAKER,3,GENERAL EXPENDITURES,SUPPLIES AND MATERIALS,DETAIL,2022-08-31,AP,1591998,JAMES HENRY CLAYPOOL II,2022-04-07,2022-04-07,FOOD & BEVERAGE,4524.9,2022
,2022 OFFICE OF THE SPEAKER,3,GENERAL EXPENDITURES,SUPPLIES AND MATERIALS,DETAIL,2022-08-31,AP,1593200,GOVCONNECTION INC,2022-05-21,2022-05-21,OFFICE SUPPLIES (OUTSIDE) QTY - 4,1911.84,2022
,2022 OFFICE OF THE SPEAKER,3,GENERAL EXPENDITURES,SUPPLIES AND MATERIALS,DETAIL,2022-08-31,AP,1593200,GOVCONNECTION INC,2022-05-21,2022-05-21,OFFICE SUPPLIES (OUTSIDE) QTY - 2,2675.9,2022
,2022 OFFICE OF THE SPEAKER,3,GENERAL EXPENDITURES,SUPPLIES AND MATERIALS,DETAIL,2022-08-31,GL,RMS0117993, ,2022-08-01,2022-08-31,OFFICE SUPPLY (TRANSFER),359.71,2022
,2022 OFFICE OF THE SPEAKER,3,GENERAL EXPENDITURES,SUPPLIES AND MATERIALS,DETAIL,2022-09-01,AP,1592993,CISION US INC,2022-04-25,2023-04-24,SOFTWARE  LESS THAN  $500,5000,2022
,2022 OFFICE OF THE SPEAKER,3,GENERAL EXPENDITURES,SUPPLIES AND MATERIALS,DETAIL,2022-09-14,AP,1594479,CITI PCARD-CVS/PHARMACY #11231,2022-08-04,2022-08-04,FOOD & BEVERAGE,68.3,2022
,2022 OFFICE OF THE SPEAKER,3,GENERAL EXPENDITURES,SUPPLIES AND MATERIALS,DETAIL,2022-09-14,AP,1594479,CITI PCARD-CVS/PHARMACY #11231,2022-08-04,2022-08-04,OFFICE SUPPLIES (OUTSIDE),10.46,2022
,2022 OFFICE OF THE SPEAKER,3,GENERAL EXPENDITURES,SUPPLIES AND MATERIALS,DETAIL,2022-09-14,AP,1594479,CITI PCARD-GRUBHUB  CHIPOTLE,2022-07-15,2022-07-15,FOOD & BEVERAGE,43,2022
,2022 OFFICE OF THE SPEAKER,3,GENERAL EXPENDITURES,SUPPLIES AND MATERIALS,DETAIL,2022-09-14,AP,1594479,CITI PCARD-IC  INSTACART,2022-07-29,2022-07-29,FOOD & BEVERAGE,19.75,2022
,2022 OFFICE OF THE SPEAKER,3,GENERAL EXPENDITURES,SUPPLIES AND MATERIALS,DETAIL,2022-09-14,AP,1594479,CITI PCARD-IC  INSTACART,2022-08-05,2022-08-05,FOOD & BEVERAGE,66.45,2022
,2022 OFFICE OF THE SPEAKER,3,GENERAL EXPENDITURES,SUPPLIES AND MATERIALS,DETAIL,2022-09-14,AP,1594479,CITI PCARD-IC  INSTACART,2022-08-22,2022-08-22,FOOD & BEVERAGE,463.58,2022
,2022 OFFICE OF THE SPEAKER,3,GENERAL EXPENDITURES,SUPPLIES AND MATERIALS,DETAIL,2022-09-14,AP,1594479,CITI PCARD-PERSONAL PAYMENT,2022-07-15,2022-07-15,FOOD & BEVERAGE,-43,2022
,2022 OFFICE OF THE SPEAKER,3,GENERAL EXPENDITURES,SUPPLIES AND MATERIALS,DETAIL,2022-09-14,AP,1594479,CITI PCARD-WHOLEFDS SCP #10563,2022-08-04,2022-08-04,FOOD & BEVERAGE,32.97,2022
,2022 OFFICE OF THE SPEAKER,3,GENERAL EXPENDITURES,SUPPLIES AND MATERIALS,DETAIL,2022-09-15,AP,1596070,TOULIES EN FLEUR,2022-07-12,2022-07-26,HABITATION EXPENSE,1445,2022
,2022 OFFICE OF THE SPEAKER,3,GENERAL EXPENDITURES,SUPPLIES AND MATERIALS,DETAIL,2022-09-15,AP,1596076,EDMONSON ROBERT D,2022-09-07,2022-09-07,FOOD & BEVERAGE,90.37,2022
,2022 OFFICE OF THE SPEAKER,3,GENERAL EXPENDITURES,SUPPLIES AND MATERIALS,DETAIL,2022-09-21,AP,1596072,GEORGE W ALLEN LLC,2022-08-15,2022-08-15,OFFICE SUPPLIES (OUTSIDE),130.25,2022
,2022 OFFICE OF THE SPEAKER,3,GENERAL EXPENDITURES,SUPPLIES AND MATERIALS,DETAIL,2022-09-22,AP,1598569,CITI PCARD-AMZN MKTP US O337A9IK3 AM,2022-07-28,2022-07-28,OFFICE SUPPLIES (OUTSIDE),34.99,2022
,2022 OFFICE OF THE SPEAKER,3,GENERAL EXPENDITURES,SUPPLIES AND MATERIALS,DETAIL,2022-09-22,AP,1598569,CITI PCARD-ASANA.COM,2022-08-17,2022-09-16,SOFTWARE  LESS THAN  $500,129.28,2022
,2022 OFFICE OF THE SPEAKER,3,GENERAL EXPENDITURES,SUPPLIES AND MATERIALS,DETAIL,2022-09-22,AP,1598569,CITI PCARD-Amazon.com U30TM3GC3,2022-07-28,2022-07-28,OFFICE SUPPLIES (OUTSIDE),114.99,2022
,2022 OFFICE OF THE SPEAKER,3,GENERAL EXPENDITURES,SUPPLIES AND MATERIALS,DETAIL,2022-09-22,AP,1598569,CITI PCARD-DESCRIPT,2022-08-25,2022-09-25,SOFTWARE  LESS THAN  $500,30,2022
,2022 OFFICE OF THE SPEAKER,3,GENERAL EXPENDITURES,SUPPLIES AND MATERIALS,DETAIL,2022-09-22,AP,1598569,CITI PCARD-LIVEU INC,2022-08-15,2022-09-15,SOFTWARE  LESS THAN  $500,312.7,2022
,2022 OFFICE OF THE SPEAKER,3,GENERAL EXPENDITURES,SUPPLIES AND MATERIALS,DETAIL,2022-09-22,AP,1598569,CITI PCARD-LIVEU INC,2022-08-25,2022-09-25,SOFTWARE  LESS THAN  $500,48.15,2022
,2022 OFFICE OF THE SPEAKER,3,GENERAL EXPENDITURES,SUPPLIES AND MATERIALS,DETAIL,2022-09-22,AP,1598569,CITI PCARD-RESTREAM INC.,2022-08-18,2022-09-18,SOFTWARE  LESS THAN  $500,99,2022
,2022 OFFICE OF THE SPEAKER,3,GENERAL EXPENDITURES,SUPPLIES AND MATERIALS,DETAIL,2022-09-22,AP,1598569,CITI PCARD-SPROUT SOCIAL INC,2022-08-09,2022-09-09,SOFTWARE  LESS THAN  $500,169,2022
,2022 OFFICE OF THE SPEAKER,3,GENERAL EXPENDITURES,SUPPLIES AND MATERIALS,DETAIL,2022-09-22,AP,1598569,CITI PCARD-WWW.TWITTER.COM,2022-08-13,2022-09-13,SOFTWARE  LESS THAN  $500,2.99,2022
,2022 OFFICE OF THE SPEAKER,3,GENERAL EXPENDITURES,SUPPLIES AND MATERIALS,DETAIL,2022-09-30,GL,RMS0118964, ,2022-09-01,2022-09-30,OFFICE SUPPLY (TRANSFER),1005.1,2022
,2022 OFFICE OF THE SPEAKER,3,GENERAL EXPENDITURES,SUPPLIES AND MATERIALS,SUBTOTAL,   ,   ,   ,   ,   ,   ,SUPPLIES AND MATERIALS TOTALS:,50068.63,2022
,2022 OFFICE OF THE SPEAKER,3,GENERAL EXPENDITURES,EQUIPMENT,DETAIL,2022-07-29,GL,MNT0117166, ,2022-07-01,2022-07-31,MAINTENANCE / REPAIRS,1009,2022
,2022 OFFICE OF THE SPEAKER,3,GENERAL EXPENDITURES,EQUIPMENT,DETAIL,2022-08-11,AP,1586590,CDW GOVERNMENT LLC,2022-07-11,2022-07-11,COMPUTER HARDW PURCH  LESS THAN $25 000,4007.34,2022
,2022 OFFICE OF THE SPEAKER,3,GENERAL EXPENDITURES,EQUIPMENT,DETAIL,2022-08-11,AP,1586590,CDW GOVERNMENT LLC,2022-07-11,2022-07-11,WARRANTIES,252.3,2022
,2022 OFFICE OF THE SPEAKER,3,GENERAL EXPENDITURES,EQUIPMENT,DETAIL,2022-08-19,AP,1587269,CITI PCARD-DISTRICT CAMERA,2022-06-24,2022-06-24,COMPUTER HARDW PURCH  LESS THAN $25 000,1899,2022
,2022 OFFICE OF THE SPEAKER,3,GENERAL EXPENDITURES,EQUIPMENT,DETAIL,2022-08-31,GL,MNT0117948, ,2022-08-01,2022-08-31,MAINTENANCE / REPAIRS,1009,2022
,2022 OFFICE OF THE SPEAKER,3,GENERAL EXPENDITURES,EQUIPMENT,DETAIL,2022-09-30,GL,MNT0118823, ,2022-09-01,2022-09-30,MAINTENANCE / REPAIRS,1009,2022
,2022 OFFICE OF THE SPEAKER,3,GENERAL EXPENDITURES,EQUIPMENT,SUBTOTAL,   ,   ,   ,   ,   ,   ,EQUIPMENT TOTALS:,9185.64,2022
,2022 OFFICE OF THE SPEAKER,3,GENERAL EXPENDITURES,EQUIPMENT,SUBTOTAL,   ,   ,   ,   ,   ,   ,GENERAL EXPENDITURES TOTALS:,1985981.5,2022
,2022 OFFICE OF THE SPEAKER,3,GENERAL EXPENDITURES,EQUIPMENT,GRAND TOTAL FOR ORGANIZATION,   ,   ,   ,   ,   ,   ,OFFICE TOTALS: ,2008178.2,2022
,2022 OFFICE OF THE SPEAKER,3,INTERN ALLOWANCES,PERSONNEL COMPENSATION,DETAIL,   ,   ,   ,ADMETE ABEGAEL M.,2022-07-01,2022-07-29,SPEAKER PAID INTERN - HOUSE PR,1392,2022
,2022 OFFICE OF THE SPEAKER,3,INTERN ALLOWANCES,PERSONNEL COMPENSATION,DETAIL,   ,   ,   ,ALIOTO-PIER MICHELA G.,2022-06-24,2022-07-29,SPEAKER PAID INTERN - HOUSE PR,1728,2022
,2022 OFFICE OF THE SPEAKER,3,INTERN ALLOWANCES,PERSONNEL COMPENSATION,DETAIL,   ,   ,   ,EDWARDS JOHN M.,2022-07-01,2022-07-08,SPEAKER PAID INTERN - HOUSE PR,384,2022
,2022 OFFICE OF THE SPEAKER,3,INTERN ALLOWANCES,PERSONNEL COMPENSATION,DETAIL,   ,   ,   ,GALEANO NOEMI E.,2022-07-01,2022-07-29,SPEAKER PAID INTERN - HOUSE PR,1392,2022
,2022 OFFICE OF THE SPEAKER,3,INTERN ALLOWANCES,PERSONNEL COMPENSATION,DETAIL,   ,   ,   ,GERGES GIANNA K.,2022-08-29,2022-09-30,SPEAKER PAID INTERN - HOUSE PR,2048,2022
,2022 OFFICE OF THE SPEAKER,3,INTERN ALLOWANCES,PERSONNEL COMPENSATION,DETAIL,   ,   ,   ,JOHNSON LILY E.,2022-09-12,2022-09-30,SPEAKER PAID INTERN - HOUSE PR,1520,2022
,2022 OFFICE OF THE SPEAKER,3,INTERN ALLOWANCES,PERSONNEL COMPENSATION,DETAIL,   ,   ,   ,MONDOLFI EDGARDO I.,2022-07-01,2022-08-12,SPEAKER PAID INTERN - HOUSE PR,2520,2022
,2022 OFFICE OF THE SPEAKER,3,INTERN ALLOWANCES,PERSONNEL COMPENSATION,DETAIL,   ,   ,   ,ROGERS GEORGE T.,2022-09-06,2022-09-30,SPEAKER PAID INTERN - HOUSE PR,1600,2022
,2022 OFFICE OF THE SPEAKER,3,INTERN ALLOWANCES,PERSONNEL COMPENSATION,DETAIL,   ,   ,   ,SANFORD CORNELIUS L.,2022-09-07,2022-09-30,SPEAKER PAID INTERN - HOUSE PR,960,2022
,2022 OFFICE OF THE SPEAKER,3,INTERN ALLOWANCES,PERSONNEL COMPENSATION,DETAIL,   ,   ,   ,YITZHAKI ELLA B.,2022-07-01,2022-08-05,SPEAKER PAID INTERN - HOUSE PR,1680,2022
,2022 OFFICE OF THE SPEAKER,3,INTERN ALLOWANCES,PERSONNEL COMPENSATION,SUBTOTAL,   ,   ,   ,   ,   ,   ,PERSONNEL COMPENSATION TOTALS:,15224,2022
,2022 OFFICE OF THE SPEAKER,3,INTERN ALLOWANCES,PERSONNEL COMPENSATION,SUBTOTAL,   ,   ,   ,   ,   ,   ,INTERN ALLOWANCES TOTALS:,15224,2022
,2022 OFFICE OF THE SPEAKER,3,INTERN ALLOWANCES,PERSONNEL COMPENSATION,GRAND TOTAL FOR ORGANIZATION,   ,   ,   ,   ,   ,   ,OFFICE TOTALS: ,15224,2022
,2022 OFFICE OF THE MAJORITY LEADER,3,GENERAL EXPENDITURES,PERSONNEL COMPENSATION,DETAIL,   ,   ,   ,ABOUCHAR KEITH S.,2022-07-01,2022-09-30,SENIOR POLICY ADVISOR,47700,2022
,2022 OFFICE OF THE MAJORITY LEADER,3,GENERAL EXPENDITURES,PERSONNEL COMPENSATION,DETAIL,   ,   ,   ,ADAMS JOSIAH C.,2022-07-01,2022-09-30,DEPUTY SCHEDULER,15000,2022
,2022 OFFICE OF THE MAJORITY LEADER,3,GENERAL EXPENDITURES,PERSONNEL COMPENSATION,DETAIL,   ,   ,   ,BAUSERMAN TRENTON D,2022-07-01,2022-08-31,SENIOR POLICY ADVISOR,13291.67,2022
,2022 OFFICE OF THE MAJORITY LEADER,3,GENERAL EXPENDITURES,PERSONNEL COMPENSATION,DETAIL,   ,   ,   ,BAYER JOHN S,2022-07-01,2022-07-31,MEMBER SERVICES & OUTREACH ADV,9583.33,2022
,2022 OFFICE OF THE MAJORITY LEADER,3,GENERAL EXPENDITURES,PERSONNEL COMPENSATION,DETAIL,   ,   ,   ,BAYER JOHN S,2022-08-01,2022-09-30,MEMBER SERVICES & FLOOR ADVISO,19166.66,2022
,2022 OFFICE OF THE MAJORITY LEADER,3,GENERAL EXPENDITURES,PERSONNEL COMPENSATION,DETAIL,   ,   ,   ,BEAN HARLEIGH J.,2022-07-01,2022-09-30,DIR OF OPS & STRAT PLANNING,28749.99,2022
,2022 OFFICE OF THE MAJORITY LEADER,3,GENERAL EXPENDITURES,PERSONNEL COMPENSATION,DETAIL,   ,   ,   ,BROWN CHLOE M.,2022-07-01,2022-09-30,RESEARCH AND OUTREACH ADVISOR,28749.99,2022
,2022 OFFICE OF THE MAJORITY LEADER,3,GENERAL EXPENDITURES,PERSONNEL COMPENSATION,DETAIL,   ,   ,   ,COVEY-BRANDT ALEXIS,2022-07-01,2022-09-30,CHIEF OF STAFF,50925,2022
,2022 OFFICE OF THE MAJORITY LEADER,3,GENERAL EXPENDITURES,PERSONNEL COMPENSATION,DETAIL,   ,   ,   ,DUCKWORTH BRIAN A.,2022-07-01,2022-09-30,SENIOR MEMBER SERVICES ADVISOR,24999.99,2022
,2022 OFFICE OF THE MAJORITY LEADER,3,GENERAL EXPENDITURES,PERSONNEL COMPENSATION,DETAIL,   ,   ,   ,DWYER STEPHEN,2022-07-01,2022-09-30,DIGITAL DIR & POLICY ADV,26645.84,2022
,2022 OFFICE OF THE MAJORITY LEADER,3,GENERAL EXPENDITURES,PERSONNEL COMPENSATION,DETAIL,   ,   ,   ,FRY COURTNEY,2022-07-01,2022-09-30,FLOOR DIRECTOR,50200,2022
,2022 OFFICE OF THE MAJORITY LEADER,3,GENERAL EXPENDITURES,PERSONNEL COMPENSATION,DETAIL,   ,   ,   ,IOZZI MARK P,2022-07-01,2022-09-30,SENIOR POLICY ADVISOR,26658.33,2022
,2022 OFFICE OF THE MAJORITY LEADER,3,GENERAL EXPENDITURES,PERSONNEL COMPENSATION,DETAIL,   ,   ,   ,JACKSON JAMIE L,2022-07-01,2022-09-30,SENIOR COUNSEL,47283.33,2022
,2022 OFFICE OF THE MAJORITY LEADER,3,GENERAL EXPENDITURES,PERSONNEL COMPENSATION,DETAIL,   ,   ,   ,JEYADEV VIDHYA S.,2022-07-01,2022-09-30,PRESS ASSISTANT,15110.01,2022
,2022 OFFICE OF THE MAJORITY LEADER,3,GENERAL EXPENDITURES,PERSONNEL COMPENSATION,DETAIL,   ,   ,   ,LEUSCHEN JAMES P.,2022-07-01,2022-09-30,POLICY DIRECTOR,50200,2022
,2022 OFFICE OF THE MAJORITY LEADER,3,GENERAL EXPENDITURES,PERSONNEL COMPENSATION,DETAIL,   ,   ,   ,MEHRAN NICOLETTE,2022-07-01,2022-09-30,STAFF ASSISTANT,13749.99,2022
,2022 OFFICE OF THE MAJORITY LEADER,3,GENERAL EXPENDITURES,PERSONNEL COMPENSATION,DETAIL,   ,   ,   ,MERZ JULIE E,2022-07-01,2022-08-31,MEMBER SERVICES DIRECTOR,31249.99,2022
,2022 OFFICE OF THE MAJORITY LEADER,3,GENERAL EXPENDITURES,PERSONNEL COMPENSATION,DETAIL,   ,   ,   ,MULKERRIN MARGARET A,2022-07-01,2022-09-30,COMMUNICATIONS DIRECTOR,35000.01,2022
,2022 OFFICE OF THE MAJORITY LEADER,3,GENERAL EXPENDITURES,PERSONNEL COMPENSATION,DETAIL,   ,   ,   ,RODRIGUEZ RAYMOND E.,2022-07-01,2022-09-30,NATIONAL PRESS SECRETARY,23750.01,2022
,2022 OFFICE OF THE MAJORITY LEADER,3,GENERAL EXPENDITURES,PERSONNEL COMPENSATION,DETAIL,   ,   ,   ,ROMICK BRIAN,2022-07-01,2022-09-30,DEPUTY CHIEF OF STAFF,50925,2022
,2022 OFFICE OF THE MAJORITY LEADER,3,GENERAL EXPENDITURES,PERSONNEL COMPENSATION,DETAIL,   ,   ,   ,ROWE DEBORAH M,2022-07-01,2022-09-30,SENIOR FLOOR ADVISOR,33750,2022
,2022 OFFICE OF THE MAJORITY LEADER,3,GENERAL EXPENDITURES,PERSONNEL COMPENSATION,DETAIL,   ,   ,   ,SAGE NICHOLAS H.,2022-08-15,2022-09-30,DEPUTY SPEECHWRITER,6445.11,2022
,2022 OFFICE OF THE MAJORITY LEADER,3,GENERAL EXPENDITURES,PERSONNEL COMPENSATION,DETAIL,   ,   ,   ,SALAZAR HANNAH L.,2022-07-01,2022-09-30,STAFF ASSISTANT,13749.99,2022
,2022 OFFICE OF THE MAJORITY LEADER,3,GENERAL EXPENDITURES,PERSONNEL COMPENSATION,DETAIL,   ,   ,   ,SALAZAR RAYMOND J.,2022-07-01,2022-09-30,DEPUTY FLOOR DIRECTOR & SR ADV,37500,2022
,2022 OFFICE OF THE MAJORITY LEADER,3,GENERAL EXPENDITURES,PERSONNEL COMPENSATION,DETAIL,   ,   ,   ,SNYDER RACHEL N.,2022-07-01,2022-09-30,SENIOR POLICY ADVISOR,18125.01,2022
,2022 OFFICE OF THE MAJORITY LEADER,3,GENERAL EXPENDITURES,PERSONNEL COMPENSATION,DETAIL,   ,   ,   ,SPAK MICHAEL J,2022-07-01,2022-09-30,SPECIAL ASSISTANT,17499.99,2022
,2022 OFFICE OF THE MAJORITY LEADER,3,GENERAL EXPENDITURES,PERSONNEL COMPENSATION,DETAIL,   ,   ,   ,URRABAZO CLAUDIA,2022-07-01,2022-09-30,DEP. MBR SER DIR & SR ADV,37500,2022
,2022 OFFICE OF THE MAJORITY LEADER,3,GENERAL EXPENDITURES,PERSONNEL COMPENSATION,DETAIL,   ,   ,   ,WEISSMANN ADAM,2022-07-01,2022-09-30,SPEECHWRITER,32499.99,2022
,2022 OFFICE OF THE MAJORITY LEADER,3,GENERAL EXPENDITURES,PERSONNEL COMPENSATION,SUBTOTAL,   ,   ,   ,   ,   ,   ,PERSONNEL COMPENSATION TOTALS:,806009.23,2022
,2022 OFFICE OF THE MAJORITY LEADER,3,GENERAL EXPENDITURES,TRAVEL,DETAIL,2022-08-31,AP,1592375,MULKERRIN MARGARET A.,2022-03-01,2022-03-31,TAXI/RIDE SHARE,317.82,2022
,2022 OFFICE OF THE MAJORITY LEADER,3,GENERAL EXPENDITURES,TRAVEL,DETAIL,2022-09-01,AP,1592379,MULKERRIN MARGARET A.,2022-04-01,2022-04-27,TAXI/RIDE SHARE,111.01,2022
,2022 OFFICE OF THE MAJORITY LEADER,3,GENERAL EXPENDITURES,TRAVEL,DETAIL,2022-09-01,AP,1592379,MULKERRIN MARGARET A.,2022-05-06,2022-05-18,TAXI/RIDE SHARE,150.58,2022
,2022 OFFICE OF THE MAJORITY LEADER,3,GENERAL EXPENDITURES,TRAVEL,DETAIL,2022-09-01,AP,1592389,BEAN HARLEIGH J.,2022-06-23,2022-07-14,TAXI/RIDE SHARE,62.22,2022
,2022 OFFICE OF THE MAJORITY LEADER,3,GENERAL EXPENDITURES,TRAVEL,DETAIL,2022-09-01,AP,1592389,BEAN HARLEIGH J.,2022-07-26,2022-07-29,TAXI/RIDE SHARE,31.68,2022
,2022 OFFICE OF THE MAJORITY LEADER,3,GENERAL EXPENDITURES,TRAVEL,SUBTOTAL,   ,   ,   ,   ,   ,   ,TRAVEL TOTALS:,673.31,2022
,2022 OFFICE OF THE MAJORITY LEADER,3,GENERAL EXPENDITURES,PRINTING AND REPRODUCTION,DETAIL,2022-07-27,GL,MED0117064, ,2022-07-19,2022-07-21,PHOTOGRAPHIC (TRANSFER),81.2,2022
,2022 OFFICE OF THE MAJORITY LEADER,3,GENERAL EXPENDITURES,PRINTING AND REPRODUCTION,DETAIL,2022-09-27,GL,MED0118656, ,2022-08-31,2022-09-22,PHOTOGRAPHIC (TRANSFER),42.4,2022
,2022 OFFICE OF THE MAJORITY LEADER,3,GENERAL EXPENDITURES,PRINTING AND REPRODUCTION,SUBTOTAL,   ,   ,   ,   ,   ,   ,PRINTING AND REPRODUCTION TOTALS:,123.6,2022
,2022 OFFICE OF THE MAJORITY LEADER,3,GENERAL EXPENDITURES,SUPPLIES AND MATERIALS,DETAIL,2022-07-29,AP,1583859,BSL GEM LASER EXPRESS LLC,2022-07-18,2022-07-18,OFFICE SUPPLIES (OUTSIDE) QTY - 2,204,2022
,2022 OFFICE OF THE MAJORITY LEADER,3,GENERAL EXPENDITURES,SUPPLIES AND MATERIALS,DETAIL,2022-08-01,AP,1583916,READYREFRESH BY NESTLE,2022-06-30,2022-06-30,WATER,112.28,2022
,2022 OFFICE OF THE MAJORITY LEADER,3,GENERAL EXPENDITURES,SUPPLIES AND MATERIALS,DETAIL,2022-08-31,AP,1592651,READYREFRESH BY NESTLE,2022-07-31,2022-07-31,WATER,99.3,2022
,2022 OFFICE OF THE MAJORITY LEADER,3,GENERAL EXPENDITURES,SUPPLIES AND MATERIALS,DETAIL,2022-09-27,AP,1600306,READYREFRESH BY NESTLE,2022-08-31,2022-08-31,WATER,151.22,2022
,2022 OFFICE OF THE MAJORITY LEADER,3,GENERAL EXPENDITURES,SUPPLIES AND MATERIALS,SUBTOTAL,   ,   ,   ,   ,   ,   ,SUPPLIES AND MATERIALS TOTALS:,566.8,2022
,2022 OFFICE OF THE MAJORITY LEADER,3,GENERAL EXPENDITURES,SUPPLIES AND MATERIALS,SUBTOTAL,   ,   ,   ,   ,   ,   ,GENERAL EXPENDITURES TOTALS:,807372.94,2022
,2022 OFFICE OF THE MAJORITY LEADER,3,GENERAL EXPENDITURES,SUPPLIES AND MATERIALS,GRAND TOTAL FOR ORGANIZATION,   ,   ,   ,   ,   ,   ,OFFICE TOTALS: ,807372.94,2022
,2022 OFFICE OF THE MAJORITY LEADER,3,INTERN ALLOWANCES,PERSONNEL COMPENSATION,DETAIL,   ,   ,   ,ALSOBROOKS-LANEY ALEXANDRA P.,2022-07-01,2022-08-31,MAJ LEADER PAID INTERN - HOUSE,2000,2022
,2022 OFFICE OF THE MAJORITY LEADER,3,INTERN ALLOWANCES,PERSONNEL COMPENSATION,DETAIL,   ,   ,   ,BARGE EMMA C.,2022-07-18,2022-08-31,MAJ LEADER PAID INTERN - HOUSE,2001,2022
,2022 OFFICE OF THE MAJORITY LEADER,3,INTERN ALLOWANCES,PERSONNEL COMPENSATION,DETAIL,   ,   ,   ,CIMA GIOVANNA C.,2022-07-01,2022-07-31,MAJ LEADER PAID INTERN - HOUSE,2000,2022
,2022 OFFICE OF THE MAJORITY LEADER,3,INTERN ALLOWANCES,PERSONNEL COMPENSATION,DETAIL,   ,   ,   ,GORDON SAMUEL B.,2022-07-01,2022-07-31,MAJ LEADER PAID INTERN - HOUSE,1000,2022
,2022 OFFICE OF THE MAJORITY LEADER,3,INTERN ALLOWANCES,PERSONNEL COMPENSATION,DETAIL,   ,   ,   ,GRAMLEY OWEN M.,2022-07-01,2022-08-31,MAJ LEADER PAID INTERN - HOUSE,2000,2022
,2022 OFFICE OF THE MAJORITY LEADER,3,INTERN ALLOWANCES,PERSONNEL COMPENSATION,DETAIL,   ,   ,   ,KAPASE KRISHNA S.,2022-07-18,2022-07-31,MAJ LEADER PAID INTERN - HOUSE,1001,2022
,2022 OFFICE OF THE MAJORITY LEADER,3,INTERN ALLOWANCES,PERSONNEL COMPENSATION,DETAIL,   ,   ,   ,MARTIN NICHOLAS J.,2022-07-18,2022-07-31,MAJ LEADER PAID INTERN - HOUSE,1001,2022
,2022 OFFICE OF THE MAJORITY LEADER,3,INTERN ALLOWANCES,PERSONNEL COMPENSATION,DETAIL,   ,   ,   ,SAGE NICHOLAS H.,2022-07-01,2022-08-14,MAJ LEADER PAID INTERN - HOUSE,553,2022
,2022 OFFICE OF THE MAJORITY LEADER,3,INTERN ALLOWANCES,PERSONNEL COMPENSATION,SUBTOTAL,   ,   ,   ,   ,   ,   ,PERSONNEL COMPENSATION TOTALS:,11556,2022
,2022 OFFICE OF THE MAJORITY LEADER,3,INTERN ALLOWANCES,PERSONNEL COMPENSATION,SUBTOTAL,   ,   ,   ,   ,   ,   ,INTERN ALLOWANCES TOTALS:,11556,2022
,2022 OFFICE OF THE MAJORITY LEADER,3,INTERN ALLOWANCES,PERSONNEL COMPENSATION,GRAND TOTAL FOR ORGANIZATION,   ,   ,   ,   ,   ,   ,OFFICE TOTALS: ,11556,2022
,2022 OFFICE OF THE MINORITY LEADER,3,GENERAL EXPENDITURES,PERSONNEL COMPENSATION,DETAIL,   ,   ,   ,BEDNAR MARK M,2022-07-01,2022-09-30,DIR OF STRATEGIC COMMUNICATION,37500,2022
,2022 OFFICE OF THE MINORITY LEADER,3,GENERAL EXPENDITURES,PERSONNEL COMPENSATION,DETAIL,   ,   ,   ,BERTOLINI STEVEN R.,2022-07-01,2022-09-30,STAFF ASSISTANT,15500,2022
,2022 OFFICE OF THE MINORITY LEADER,3,GENERAL EXPENDITURES,PERSONNEL COMPENSATION,DETAIL,   ,   ,   ,BIEN CHRISTOPHER A,2022-07-01,2022-09-30,DEPUTY DIR OF FLOOR OPERATIONS,33750,2022
,2022 OFFICE OF THE MINORITY LEADER,3,GENERAL EXPENDITURES,PERSONNEL COMPENSATION,DETAIL,   ,   ,   ,BOGOROWSKI HANNA C.,2022-07-01,2022-07-15,COMMUNICATIONS ADVISOR,5250,2022
,2022 OFFICE OF THE MINORITY LEADER,3,GENERAL EXPENDITURES,PERSONNEL COMPENSATION,DETAIL,   ,   ,   ,BOGOROWSKI HANNA C.,2022-07-01,2022-07-15,COMMUNICATIONS ADVISOR (OTHER COMPENSATION),2450,2022
,2022 OFFICE OF THE MINORITY LEADER,3,GENERAL EXPENDITURES,PERSONNEL COMPENSATION,DETAIL,   ,   ,   ,BONNER JENNIFER L,2022-07-01,2022-09-30,SCHEDULER,21000,2022
,2022 OFFICE OF THE MINORITY LEADER,3,GENERAL EXPENDITURES,PERSONNEL COMPENSATION,DETAIL,   ,   ,   ,BUCHANAN NATALIE L,2022-07-01,2022-09-30,DEPUTY CHIEF OF STAFF FOR MEMB,45000,2022
,2022 OFFICE OF THE MINORITY LEADER,3,GENERAL EXPENDITURES,PERSONNEL COMPENSATION,DETAIL,   ,   ,   ,BURKE ROBERT J,2022-07-01,2022-09-30,COMMUNICATIONS AIDE,16500,2022
,2022 OFFICE OF THE MINORITY LEADER,3,GENERAL EXPENDITURES,PERSONNEL COMPENSATION,DETAIL,   ,   ,   ,CAMERON CHRISTINA E,2022-07-01,2022-09-30,MEDIA AFFAIRS & OPERATIONS ADV,28500,2022
,2022 OFFICE OF THE MINORITY LEADER,3,GENERAL EXPENDITURES,PERSONNEL COMPENSATION,DETAIL,   ,   ,   ,CARR MACHALAGH,2022-07-01,2022-09-30,GENERAL COUNSEL,45000,2022
,2022 OFFICE OF THE MINORITY LEADER,3,GENERAL EXPENDITURES,PERSONNEL COMPENSATION,DETAIL,   ,   ,   ,CONSTANGY III HERBERT W,2022-07-01,2022-09-30,SHARED EMPLOYEE,30000,2022
,2022 OFFICE OF THE MINORITY LEADER,3,GENERAL EXPENDITURES,PERSONNEL COMPENSATION,DETAIL,   ,   ,   ,COOK KRISTOPHER D.,2022-07-01,2022-09-30,SHARED EMPLOYEE,18000,2022
,2022 OFFICE OF THE MINORITY LEADER,3,GENERAL EXPENDITURES,PERSONNEL COMPENSATION,DETAIL,   ,   ,   ,CORRELL CHARLES C,2022-07-01,2022-09-30,SPEECHWRITER,22500,2022
,2022 OFFICE OF THE MINORITY LEADER,3,GENERAL EXPENDITURES,PERSONNEL COMPENSATION,DETAIL,   ,   ,   ,DAYER KATHERINE J.,2022-07-01,2022-09-30,CLOAKROOM FLOOR ASSISTANT,16500,2022
,2022 OFFICE OF THE MINORITY LEADER,3,GENERAL EXPENDITURES,PERSONNEL COMPENSATION,DETAIL,   ,   ,   ,DOMENECH EMILY H,2022-07-01,2022-09-30,SENIOR POLICY ADVISOR,42000,2022
,2022 OFFICE OF THE MINORITY LEADER,3,GENERAL EXPENDITURES,PERSONNEL COMPENSATION,DETAIL,   ,   ,   ,DUNHAM WILL,2022-07-01,2022-09-30,DEP CHIEF OF STAFF FOR POLICY,45000,2022
,2022 OFFICE OF THE MINORITY LEADER,3,GENERAL EXPENDITURES,PERSONNEL COMPENSATION,DETAIL,   ,   ,   ,EARWOOD ELIZABETH K.,2022-07-01,2022-09-30,SHARED EMPLOYEE,15000,2022
,2022 OFFICE OF THE MINORITY LEADER,3,GENERAL EXPENDITURES,PERSONNEL COMPENSATION,DETAIL,   ,   ,   ,ENGLING MAXIMILIAN T,2022-07-01,2022-09-30,DEP DIR OF MEMBER SERVICES,37500,2022
,2022 OFFICE OF THE MINORITY LEADER,3,GENERAL EXPENDITURES,PERSONNEL COMPENSATION,DETAIL,   ,   ,   ,EXNER MICHELE P.,2022-07-01,2022-09-30,COMMUNICATIONS DIRECTOR,37500,2022
,2022 OFFICE OF THE MINORITY LEADER,3,GENERAL EXPENDITURES,PERSONNEL COMPENSATION,DETAIL,   ,   ,   ,GIAIER STEVEN S,2022-07-01,2022-09-30,SENIOR POLICY ADVISOR & COUNSE,42000,2022
,2022 OFFICE OF THE MINORITY LEADER,3,GENERAL EXPENDITURES,PERSONNEL COMPENSATION,DETAIL,   ,   ,   ,GILLESPIE JAMES M.,2022-07-01,2022-09-30,SPECIAL ASSISTANT TO THE REPUL,19500,2022
,2022 OFFICE OF THE MINORITY LEADER,3,GENERAL EXPENDITURES,PERSONNEL COMPENSATION,DETAIL,   ,   ,   ,GILMARTIN CHARLES P.,2022-07-01,2022-09-30,DEPUTY SPOKESMAN,19500,2022
,2022 OFFICE OF THE MINORITY LEADER,3,GENERAL EXPENDITURES,PERSONNEL COMPENSATION,DETAIL,   ,   ,   ,GOURDIKIAN ALEXANDRA G.,2022-07-01,2022-09-30,DIRECTOR OF OPERATIONS & SCHED,40500,2022
,2022 OFFICE OF THE MINORITY LEADER,3,GENERAL EXPENDITURES,PERSONNEL COMPENSATION,DETAIL,   ,   ,   ,HAULSEE TAYLOR S.,2022-07-01,2022-09-30,SHARED EMPLOYEE,30000,2022
,2022 OFFICE OF THE MINORITY LEADER,3,GENERAL EXPENDITURES,PERSONNEL COMPENSATION,DETAIL,   ,   ,   ,HILL PRESTON W,2022-07-01,2022-09-30,SENIOR POLICY ADVISOR,33750,2022
,2022 OFFICE OF THE MINORITY LEADER,3,GENERAL EXPENDITURES,PERSONNEL COMPENSATION,DETAIL,   ,   ,   ,HOCHSCHILD KEENAN N.,2022-07-01,2022-09-30,DIGITAL COMMUNICATIONS ADVISOR,21000,2022
,2022 OFFICE OF THE MINORITY LEADER,3,GENERAL EXPENDITURES,PERSONNEL COMPENSATION,DETAIL,   ,   ,   ,HOWELL MARGARET E.,2022-07-01,2022-09-30,GRAPHIC DESIGNER,18750,2022
,2022 OFFICE OF THE MINORITY LEADER,3,GENERAL EXPENDITURES,PERSONNEL COMPENSATION,DETAIL,   ,   ,   ,KELLY CARI R,2022-07-01,2022-09-30,SHARED EMPLOYEE,23250,2022
,2022 OFFICE OF THE MINORITY LEADER,3,GENERAL EXPENDITURES,PERSONNEL COMPENSATION,DETAIL,   ,   ,   ,KOTSOVOS ALEXANDRA W.,2022-07-01,2022-09-30,MEMBER SERVICES COORDINATOR,20250,2022
,2022 OFFICE OF THE MINORITY LEADER,3,GENERAL EXPENDITURES,PERSONNEL COMPENSATION,DETAIL,   ,   ,   ,LEGANSKI JOHN G,2022-07-01,2022-09-30,DEP CHIEF OF STAFF FOR FLOOR O,45000,2022
,2022 OFFICE OF THE MINORITY LEADER,3,GENERAL EXPENDITURES,PERSONNEL COMPENSATION,DETAIL,   ,   ,   ,LOMBARDI KYLE,2022-07-01,2022-09-30,SHARED EMPLOYEE,31500,2022
,2022 OFFICE OF THE MINORITY LEADER,3,GENERAL EXPENDITURES,PERSONNEL COMPENSATION,DETAIL,   ,   ,   ,LONG RYAN C,2022-07-01,2022-09-30,SR POLICY ADVISOR  & COUNSEL,42000,2022
,2022 OFFICE OF THE MINORITY LEADER,3,GENERAL EXPENDITURES,PERSONNEL COMPENSATION,DETAIL,   ,   ,   ,MARTINEZ BRITTANY N,2022-07-01,2022-09-30,CALIFORNIA PRESS SECRETARY,20250,2022
,2022 OFFICE OF THE MINORITY LEADER,3,GENERAL EXPENDITURES,PERSONNEL COMPENSATION,DETAIL,   ,   ,   ,MESHAD MICHAEL W.,2022-07-01,2022-07-31,STAFF ASSISTANT,4000,2022
,2022 OFFICE OF THE MINORITY LEADER,3,GENERAL EXPENDITURES,PERSONNEL COMPENSATION,DETAIL,   ,   ,   ,MEYER DANIEL P.,2022-07-01,2022-09-30,CHIEF OF STAFF,50925,2022
,2022 OFFICE OF THE MINORITY LEADER,3,GENERAL EXPENDITURES,PERSONNEL COMPENSATION,DETAIL,   ,   ,   ,MIN JAMES B.,2022-07-01,2022-09-30,DEPUTY CHIEF OF STAFF/COUNSEL,48000,2022
,2022 OFFICE OF THE MINORITY LEADER,3,GENERAL EXPENDITURES,PERSONNEL COMPENSATION,DETAIL,   ,   ,   ,MURPHY CULLEN D,2022-07-01,2022-09-30,CLOAKROOM FLOOR DIRECTOR,22500,2022
,2022 OFFICE OF THE MINORITY LEADER,3,GENERAL EXPENDITURES,PERSONNEL COMPENSATION,DETAIL,   ,   ,   ,SMITH CALEB J,2022-07-01,2022-09-30,DIGITAL COMMUNICATIONS DIRECTO,45000,2022
,2022 OFFICE OF THE MINORITY LEADER,3,GENERAL EXPENDITURES,PERSONNEL COMPENSATION,DETAIL,   ,   ,   ,SMITH TREVOR H,2022-07-01,2022-09-30,SHARED EMPLOYEE,25500,2022
,2022 OFFICE OF THE MINORITY LEADER,3,GENERAL EXPENDITURES,PERSONNEL COMPENSATION,DETAIL,   ,   ,   ,SMITHWICK KYLE B,2022-07-01,2022-09-27,SHARED EMPLOYEE,29100,2022
,2022 OFFICE OF THE MINORITY LEADER,3,GENERAL EXPENDITURES,PERSONNEL COMPENSATION,DETAIL,   ,   ,   ,SOUZA ALLEN R,2022-07-01,2022-09-30,NATIONAL SECURITY ADVISOR,42000,2022
,2022 OFFICE OF THE MINORITY LEADER,3,GENERAL EXPENDITURES,PERSONNEL COMPENSATION,DETAIL,   ,   ,   ,SPARKS MATTHEW E,2022-07-01,2022-09-30,DEPUTY CHIEF OF STAFF FOR COMM,45000,2022
,2022 OFFICE OF THE MINORITY LEADER,3,GENERAL EXPENDITURES,PERSONNEL COMPENSATION,DETAIL,   ,   ,   ,SPECHT BRITTAN G,2022-07-01,2022-09-30,DEPUTY POLICY DIRECTOR,42750,2022
,2022 OFFICE OF THE MINORITY LEADER,3,GENERAL EXPENDITURES,PERSONNEL COMPENSATION,SUBTOTAL,   ,   ,   ,   ,   ,   ,PERSONNEL COMPENSATION TOTALS:,1276475,2022
,2022 OFFICE OF THE MINORITY LEADER,3,GENERAL EXPENDITURES,TRAVEL,DETAIL,2022-07-12,AP,1576490,GIAIER STEVEN S,2022-06-16,2022-06-17,AIRFARE COMMERCIAL TRANSPORT,1117.81,2022
,2022 OFFICE OF THE MINORITY LEADER,3,GENERAL EXPENDITURES,TRAVEL,DETAIL,2022-07-12,AP,1576490,GIAIER STEVEN S,2022-06-16,2022-06-17,LODGING,162.15,2022
,2022 OFFICE OF THE MINORITY LEADER,3,GENERAL EXPENDITURES,TRAVEL,DETAIL,2022-07-12,AP,1576490,GIAIER STEVEN S,2022-06-17,2022-06-17,MEALS,17.44,2022
,2022 OFFICE OF THE MINORITY LEADER,3,GENERAL EXPENDITURES,TRAVEL,DETAIL,2022-07-12,AP,1576490,GIAIER STEVEN S,2022-06-16,2022-06-16,TAXI/RIDE SHARE,45.99,2022
,2022 OFFICE OF THE MINORITY LEADER,3,GENERAL EXPENDITURES,TRAVEL,DETAIL,2022-07-12,AP,1576490,GIAIER STEVEN S,2022-06-18,2022-06-18,TAXI/RIDE SHARE,26.34,2022
,2022 OFFICE OF THE MINORITY LEADER,3,GENERAL EXPENDITURES,TRAVEL,DETAIL,2022-07-12,AP,1576502,GIAIER STEVEN S,2022-06-01,2022-06-01,TAXI/RIDE SHARE,17.16,2022
,2022 OFFICE OF THE MINORITY LEADER,3,GENERAL EXPENDITURES,TRAVEL,DETAIL,2022-07-12,AP,1576502,GIAIER STEVEN S,2022-06-06,2022-06-06,TAXI/RIDE SHARE,54.08,2022
,2022 OFFICE OF THE MINORITY LEADER,3,GENERAL EXPENDITURES,TRAVEL,DETAIL,2022-07-12,AP,1576502,GIAIER STEVEN S,2022-06-07,2022-06-07,TAXI/RIDE SHARE,35.83,2022
,2022 OFFICE OF THE MINORITY LEADER,3,GENERAL EXPENDITURES,TRAVEL,DETAIL,2022-07-12,AP,1576502,GIAIER STEVEN S,2022-06-08,2022-06-08,TAXI/RIDE SHARE,40.55,2022
,2022 OFFICE OF THE MINORITY LEADER,3,GENERAL EXPENDITURES,TRAVEL,DETAIL,2022-07-12,AP,1576502,GIAIER STEVEN S,2022-06-09,2022-06-09,TAXI/RIDE SHARE,51.54,2022
,2022 OFFICE OF THE MINORITY LEADER,3,GENERAL EXPENDITURES,TRAVEL,DETAIL,2022-07-12,AP,1576502,GIAIER STEVEN S,2022-06-10,2022-06-10,TAXI/RIDE SHARE,41.7,2022
,2022 OFFICE OF THE MINORITY LEADER,3,GENERAL EXPENDITURES,TRAVEL,DETAIL,2022-07-12,AP,1576502,GIAIER STEVEN S,2022-06-13,2022-06-13,TAXI/RIDE SHARE,53.93,2022
,2022 OFFICE OF THE MINORITY LEADER,3,GENERAL EXPENDITURES,TRAVEL,DETAIL,2022-07-12,AP,1576502,GIAIER STEVEN S,2022-06-14,2022-06-14,TAXI/RIDE SHARE,59.52,2022
,2022 OFFICE OF THE MINORITY LEADER,3,GENERAL EXPENDITURES,TRAVEL,DETAIL,2022-07-12,AP,1576502,GIAIER STEVEN S,2022-06-15,2022-06-15,TAXI/RIDE SHARE,56.65,2022
,2022 OFFICE OF THE MINORITY LEADER,3,GENERAL EXPENDITURES,TRAVEL,DETAIL,2022-07-12,AP,1576502,GIAIER STEVEN S,2022-06-30,2022-06-30,TAXI/RIDE SHARE,45.44,2022
,2022 OFFICE OF THE MINORITY LEADER,3,GENERAL EXPENDITURES,TRAVEL,DETAIL,2022-07-26,AP,1573095,MARTINEZ BRITTANY N.,2022-03-18,2022-03-21,AIRFARE COMMERCIAL TRANSPORT,717.2,2022
,2022 OFFICE OF THE MINORITY LEADER,3,GENERAL EXPENDITURES,TRAVEL,DETAIL,2022-07-26,AP,1573095,MARTINEZ BRITTANY N.,2022-03-18,2022-03-19,LODGING,155.25,2022
,2022 OFFICE OF THE MINORITY LEADER,3,GENERAL EXPENDITURES,TRAVEL,DETAIL,2022-07-26,AP,1573095,MARTINEZ BRITTANY N.,2022-03-19,2022-03-21,LODGING,268.9,2022
,2022 OFFICE OF THE MINORITY LEADER,3,GENERAL EXPENDITURES,TRAVEL,DETAIL,2022-07-26,AP,1573095,MARTINEZ BRITTANY N.,2022-03-21,2022-03-22,LODGING,129.97,2022
,2022 OFFICE OF THE MINORITY LEADER,3,GENERAL EXPENDITURES,TRAVEL,DETAIL,2022-07-26,AP,1573095,MARTINEZ BRITTANY N.,2022-03-19,2022-03-19,MEALS,19.66,2022
,2022 OFFICE OF THE MINORITY LEADER,3,GENERAL EXPENDITURES,TRAVEL,DETAIL,2022-07-26,AP,1573095,MARTINEZ BRITTANY N.,2022-03-20,2022-03-20,MEALS,25.62,2022
,2022 OFFICE OF THE MINORITY LEADER,3,GENERAL EXPENDITURES,TRAVEL,DETAIL,2022-07-26,AP,1573095,MARTINEZ BRITTANY N.,2022-03-18,2022-03-18,WI-FI ON TRAVEL,19,2022
,2022 OFFICE OF THE MINORITY LEADER,3,GENERAL EXPENDITURES,TRAVEL,DETAIL,2022-07-26,AP,1573095,MARTINEZ BRITTANY N.,2022-03-23,2022-03-23,WI-FI ON TRAVEL,20,2022
,2022 OFFICE OF THE MINORITY LEADER,3,GENERAL EXPENDITURES,TRAVEL,DETAIL,2022-07-26,AP,1573095,MARTINEZ BRITTANY N.,2022-03-19,2022-03-22,CAR RENTAL,231.64,2022
,2022 OFFICE OF THE MINORITY LEADER,3,GENERAL EXPENDITURES,TRAVEL,DETAIL,2022-07-26,AP,1573095,MARTINEZ BRITTANY N.,2022-03-22,2022-03-22,GASOLINE,23.67,2022
,2022 OFFICE OF THE MINORITY LEADER,3,GENERAL EXPENDITURES,TRAVEL,DETAIL,2022-07-26,AP,1573095,MARTINEZ BRITTANY N.,2022-03-18,2022-03-18,TAXI/RIDE SHARE,35.05,2022
,2022 OFFICE OF THE MINORITY LEADER,3,GENERAL EXPENDITURES,TRAVEL,DETAIL,2022-07-26,AP,1573095,MARTINEZ BRITTANY N.,2022-03-19,2022-03-19,TAXI/RIDE SHARE,14.99,2022
,2022 OFFICE OF THE MINORITY LEADER,3,GENERAL EXPENDITURES,TRAVEL,DETAIL,2022-07-26,AP,1573095,MARTINEZ BRITTANY N.,2022-03-23,2022-03-23,TAXI/RIDE SHARE,91.66,2022
,2022 OFFICE OF THE MINORITY LEADER,3,GENERAL EXPENDITURES,TRAVEL,DETAIL,2022-07-27,AP,1576185,CAMERON CHRISTINA E.,2022-06-26,2022-06-26,AIRFARE COMMERCIAL TRANSPORT,226,2022
,2022 OFFICE OF THE MINORITY LEADER,3,GENERAL EXPENDITURES,TRAVEL,DETAIL,2022-07-27,AP,1576185,CAMERON CHRISTINA E.,2022-06-27,2022-06-27,MEALS,16.9,2022
,2022 OFFICE OF THE MINORITY LEADER,3,GENERAL EXPENDITURES,TRAVEL,DETAIL,2022-07-27,AP,1576185,CAMERON CHRISTINA E.,2022-06-28,2022-06-28,MEALS,29.1,2022
,2022 OFFICE OF THE MINORITY LEADER,3,GENERAL EXPENDITURES,TRAVEL,DETAIL,2022-07-27,AP,1576185,CAMERON CHRISTINA E.,2022-06-27,2022-06-27,TAXI/RIDE SHARE,72.09,2022
,2022 OFFICE OF THE MINORITY LEADER,3,GENERAL EXPENDITURES,TRAVEL,DETAIL,2022-07-27,AP,1576185,CAMERON CHRISTINA E.,2022-06-28,2022-06-28,TAXI/RIDE SHARE,34.98,2022
,2022 OFFICE OF THE MINORITY LEADER,3,GENERAL EXPENDITURES,TRAVEL,DETAIL,2022-07-28,AP,1582431,HOCHSCHILD KEENAN N.,2022-07-15,2022-07-15,MEALS,29.7,2022
,2022 OFFICE OF THE MINORITY LEADER,3,GENERAL EXPENDITURES,TRAVEL,DETAIL,2022-08-10,AP,1585833,GIAIER STEVEN S,2022-07-01,2022-07-01,TAXI/RIDE SHARE,20.09,2022
,2022 OFFICE OF THE MINORITY LEADER,3,GENERAL EXPENDITURES,TRAVEL,DETAIL,2022-08-10,AP,1585833,GIAIER STEVEN S,2022-07-07,2022-07-07,TAXI/RIDE SHARE,53.2,2022
,2022 OFFICE OF THE MINORITY LEADER,3,GENERAL EXPENDITURES,TRAVEL,DETAIL,2022-08-10,AP,1585833,GIAIER STEVEN S,2022-07-08,2022-07-08,TAXI/RIDE SHARE,40.77,2022
,2022 OFFICE OF THE MINORITY LEADER,3,GENERAL EXPENDITURES,TRAVEL,DETAIL,2022-08-10,AP,1585833,GIAIER STEVEN S,2022-07-11,2022-07-11,TAXI/RIDE SHARE,46.63,2022
,2022 OFFICE OF THE MINORITY LEADER,3,GENERAL EXPENDITURES,TRAVEL,DETAIL,2022-08-10,AP,1585833,GIAIER STEVEN S,2022-07-12,2022-07-12,TAXI/RIDE SHARE,43.52,2022
,2022 OFFICE OF THE MINORITY LEADER,3,GENERAL EXPENDITURES,TRAVEL,DETAIL,2022-08-10,AP,1585833,GIAIER STEVEN S,2022-07-13,2022-07-13,TAXI/RIDE SHARE,46.26,2022
,2022 OFFICE OF THE MINORITY LEADER,3,GENERAL EXPENDITURES,TRAVEL,DETAIL,2022-08-10,AP,1585833,GIAIER STEVEN S,2022-07-14,2022-07-14,TAXI/RIDE SHARE,38.17,2022
,2022 OFFICE OF THE MINORITY LEADER,3,GENERAL EXPENDITURES,TRAVEL,DETAIL,2022-08-10,AP,1585833,GIAIER STEVEN S,2022-07-15,2022-07-15,TAXI/RIDE SHARE,51.67,2022
,2022 OFFICE OF THE MINORITY LEADER,3,GENERAL EXPENDITURES,TRAVEL,DETAIL,2022-08-10,AP,1585833,GIAIER STEVEN S,2022-07-18,2022-07-18,TAXI/RIDE SHARE,42.01,2022
,2022 OFFICE OF THE MINORITY LEADER,3,GENERAL EXPENDITURES,TRAVEL,DETAIL,2022-08-10,AP,1585833,GIAIER STEVEN S,2022-07-19,2022-07-19,TAXI/RIDE SHARE,52.94,2022
,2022 OFFICE OF THE MINORITY LEADER,3,GENERAL EXPENDITURES,TRAVEL,DETAIL,2022-08-10,AP,1585833,GIAIER STEVEN S,2022-07-20,2022-07-20,TAXI/RIDE SHARE,75.68,2022
,2022 OFFICE OF THE MINORITY LEADER,3,GENERAL EXPENDITURES,TRAVEL,DETAIL,2022-08-10,AP,1585833,GIAIER STEVEN S,2022-07-21,2022-07-21,TAXI/RIDE SHARE,28.58,2022
,2022 OFFICE OF THE MINORITY LEADER,3,GENERAL EXPENDITURES,TRAVEL,DETAIL,2022-08-10,AP,1585845,GIAIER STEVEN S,2022-07-21,2022-07-21,TAXI/RIDE SHARE,36.69,2022
,2022 OFFICE OF THE MINORITY LEADER,3,GENERAL EXPENDITURES,TRAVEL,DETAIL,2022-08-10,AP,1585845,GIAIER STEVEN S,2022-07-22,2022-07-22,TAXI/RIDE SHARE,47.84,2022
,2022 OFFICE OF THE MINORITY LEADER,3,GENERAL EXPENDITURES,TRAVEL,DETAIL,2022-08-10,AP,1585845,GIAIER STEVEN S,2022-07-25,2022-07-25,TAXI/RIDE SHARE,47.8,2022
,2022 OFFICE OF THE MINORITY LEADER,3,GENERAL EXPENDITURES,TRAVEL,DETAIL,2022-08-10,AP,1585845,GIAIER STEVEN S,2022-07-26,2022-07-26,TAXI/RIDE SHARE,34.11,2022
,2022 OFFICE OF THE MINORITY LEADER,3,GENERAL EXPENDITURES,TRAVEL,DETAIL,2022-08-10,AP,1585845,GIAIER STEVEN S,2022-07-27,2022-07-27,TAXI/RIDE SHARE,37.7,2022
,2022 OFFICE OF THE MINORITY LEADER,3,GENERAL EXPENDITURES,TRAVEL,DETAIL,2022-08-10,AP,1585845,GIAIER STEVEN S,2022-07-28,2022-07-28,TAXI/RIDE SHARE,48.17,2022
,2022 OFFICE OF THE MINORITY LEADER,3,GENERAL EXPENDITURES,TRAVEL,DETAIL,2022-08-10,AP,1585845,GIAIER STEVEN S,2022-07-29,2022-07-29,TAXI/RIDE SHARE,44.12,2022
,2022 OFFICE OF THE MINORITY LEADER,3,GENERAL EXPENDITURES,TRAVEL,DETAIL,2022-08-18,AP,1585696,DOMENECH EMILY H.,2022-07-25,2022-07-26,AIRFARE COMMERCIAL TRANSPORT,930.18,2022
,2022 OFFICE OF THE MINORITY LEADER,3,GENERAL EXPENDITURES,TRAVEL,DETAIL,2022-08-18,AP,1585696,DOMENECH EMILY H.,2022-08-04,2022-08-07,AIRFARE COMMERCIAL TRANSPORT,512.96,2022
,2022 OFFICE OF THE MINORITY LEADER,3,GENERAL EXPENDITURES,TRAVEL,DETAIL,2022-08-18,AP,1585696,DOMENECH EMILY H.,2022-07-25,2022-07-26,LODGING,119.6,2022
,2022 OFFICE OF THE MINORITY LEADER,3,GENERAL EXPENDITURES,TRAVEL,DETAIL,2022-08-18,AP,1585696,DOMENECH EMILY H.,2022-08-04,2022-08-05,LODGING,161.03,2022
,2022 OFFICE OF THE MINORITY LEADER,3,GENERAL EXPENDITURES,TRAVEL,DETAIL,2022-08-18,AP,1585696,DOMENECH EMILY H.,2022-07-15,2022-07-15,MEALS,17.64,2022
,2022 OFFICE OF THE MINORITY LEADER,3,GENERAL EXPENDITURES,TRAVEL,DETAIL,2022-08-18,AP,1585696,DOMENECH EMILY H.,2022-07-25,2022-07-26,CAR RENTAL,89.99,2022
,2022 OFFICE OF THE MINORITY LEADER,3,GENERAL EXPENDITURES,TRAVEL,DETAIL,2022-08-18,AP,1585696,DOMENECH EMILY H.,2022-07-15,2022-07-15,GASOLINE,55.2,2022
,2022 OFFICE OF THE MINORITY LEADER,3,GENERAL EXPENDITURES,TRAVEL,DETAIL,2022-08-18,AP,1585696,DOMENECH EMILY H.,2022-07-26,2022-07-26,GASOLINE,12.41,2022
,2022 OFFICE OF THE MINORITY LEADER,3,GENERAL EXPENDITURES,TRAVEL,DETAIL,2022-08-18,AP,1585696,DOMENECH EMILY H.,2022-07-25,2022-07-25,TAXI/RIDE SHARE,14.53,2022
,2022 OFFICE OF THE MINORITY LEADER,3,GENERAL EXPENDITURES,TRAVEL,DETAIL,2022-08-18,AP,1585696,DOMENECH EMILY H.,2022-07-26,2022-07-26,TAXI/RIDE SHARE,24.62,2022
,2022 OFFICE OF THE MINORITY LEADER,3,GENERAL EXPENDITURES,TRAVEL,DETAIL,2022-08-18,AP,1585696,DOMENECH EMILY H.,2022-08-04,2022-08-04,TAXI/RIDE SHARE,49.85,2022
,2022 OFFICE OF THE MINORITY LEADER,3,GENERAL EXPENDITURES,TRAVEL,DETAIL,2022-08-18,AP,1585696,DOMENECH EMILY H.,2022-08-07,2022-08-07,TAXI/RIDE SHARE,23.35,2022
,2022 OFFICE OF THE MINORITY LEADER,3,GENERAL EXPENDITURES,TRAVEL,DETAIL,2022-08-18,AP,1585696,DOMENECH EMILY H.,2022-07-25,2022-07-26,PARKING,21.85,2022
,2022 OFFICE OF THE MINORITY LEADER,3,GENERAL EXPENDITURES,TRAVEL,DETAIL,2022-08-26,AP,1591455,CAMERON CHRISTINA E.,2022-08-02,2022-08-04,NON-AIRFARE COMMERCIAL TRANSP,259,2022
,2022 OFFICE OF THE MINORITY LEADER,3,GENERAL EXPENDITURES,TRAVEL,DETAIL,2022-08-26,AP,1591455,CAMERON CHRISTINA E.,2022-06-26,2022-06-26,MEALS,7.48,2022
,2022 OFFICE OF THE MINORITY LEADER,3,GENERAL EXPENDITURES,TRAVEL,DETAIL,2022-08-26,AP,1591455,CAMERON CHRISTINA E.,2022-08-03,2022-08-03,MEALS,7.96,2022
,2022 OFFICE OF THE MINORITY LEADER,3,GENERAL EXPENDITURES,TRAVEL,DETAIL,2022-08-26,AP,1591455,CAMERON CHRISTINA E.,2022-08-04,2022-08-04,MEALS,71.88,2022
,2022 OFFICE OF THE MINORITY LEADER,3,GENERAL EXPENDITURES,TRAVEL,DETAIL,2022-08-26,AP,1591455,CAMERON CHRISTINA E.,2022-06-26,2022-06-26,TAXI/RIDE SHARE,29.09,2022
,2022 OFFICE OF THE MINORITY LEADER,3,GENERAL EXPENDITURES,TRAVEL,DETAIL,2022-08-26,AP,1591455,CAMERON CHRISTINA E.,2022-08-02,2022-08-02,TAXI/RIDE SHARE,21.95,2022
,2022 OFFICE OF THE MINORITY LEADER,3,GENERAL EXPENDITURES,TRAVEL,DETAIL,2022-08-26,AP,1591455,CAMERON CHRISTINA E.,2022-08-03,2022-08-03,TAXI/RIDE SHARE,23.91,2022
,2022 OFFICE OF THE MINORITY LEADER,3,GENERAL EXPENDITURES,TRAVEL,DETAIL,2022-08-26,AP,1591455,CAMERON CHRISTINA E.,2022-08-04,2022-08-04,TAXI/RIDE SHARE,83.91,2022
,2022 OFFICE OF THE MINORITY LEADER,3,GENERAL EXPENDITURES,TRAVEL,DETAIL,2022-09-30,AP,1601212,SPARKS MATTHEW E.,2022-08-31,2022-08-31,AIRFARE COMMERCIAL TRANSPORT,341.96,2022
,2022 OFFICE OF THE MINORITY LEADER,3,GENERAL EXPENDITURES,TRAVEL,DETAIL,2022-09-30,AP,1601212,SPARKS MATTHEW E.,2022-09-06,2022-09-07,AIRFARE COMMERCIAL TRANSPORT,619.46,2022
,2022 OFFICE OF THE MINORITY LEADER,3,GENERAL EXPENDITURES,TRAVEL,DETAIL,2022-09-30,AP,1601212,SPARKS MATTHEW E.,2022-09-07,2022-09-07,AIRFARE COMMERCIAL TRANSPORT,305.98,2022
,2022 OFFICE OF THE MINORITY LEADER,3,GENERAL EXPENDITURES,TRAVEL,DETAIL,2022-09-30,AP,1601212,SPARKS MATTHEW E.,2022-09-06,2022-09-07,LODGING,189.24,2022
,2022 OFFICE OF THE MINORITY LEADER,3,GENERAL EXPENDITURES,TRAVEL,DETAIL,2022-09-30,AP,1601212,SPARKS MATTHEW E.,2022-09-06,2022-09-07,CAR RENTAL,104.35,2022
,2022 OFFICE OF THE MINORITY LEADER,3,GENERAL EXPENDITURES,TRAVEL,DETAIL,2022-09-30,AP,1601212,SPARKS MATTHEW E.,2022-09-07,2022-09-07,GASOLINE,13.97,2022
,2022 OFFICE OF THE MINORITY LEADER,3,GENERAL EXPENDITURES,TRAVEL,DETAIL,2022-09-30,AP,1601212,SPARKS MATTHEW E.,2022-08-31,2022-08-31,PARKING,22,2022
,2022 OFFICE OF THE MINORITY LEADER,3,GENERAL EXPENDITURES,TRAVEL,DETAIL,2022-09-30,AP,1601449,LEGANSKI JOHN G.,2022-09-22,2022-09-22,AIRFARE COMMERCIAL TRANSPORT,268.6,2022
,2022 OFFICE OF THE MINORITY LEADER,3,GENERAL EXPENDITURES,TRAVEL,DETAIL,2022-09-30,AP,1601449,LEGANSKI JOHN G.,2022-09-23,2022-09-23,AIRFARE COMMERCIAL TRANSPORT,181.98,2022
,2022 OFFICE OF THE MINORITY LEADER,3,GENERAL EXPENDITURES,TRAVEL,DETAIL,2022-09-30,AP,1601449,LEGANSKI JOHN G.,2022-09-22,2022-09-23,LODGING,143.19,2022
,2022 OFFICE OF THE MINORITY LEADER,3,GENERAL EXPENDITURES,TRAVEL,DETAIL,2022-09-30,AP,1601449,LEGANSKI JOHN G.,2022-09-22,2022-09-22,TAXI/RIDE SHARE,20.93,2022
,2022 OFFICE OF THE MINORITY LEADER,3,GENERAL EXPENDITURES,TRAVEL,DETAIL,2022-09-30,AP,1601449,LEGANSKI JOHN G.,2022-09-23,2022-09-23,TAXI/RIDE SHARE,93.88,2022
,2022 OFFICE OF THE MINORITY LEADER,3,GENERAL EXPENDITURES,TRAVEL,SUBTOTAL,   ,   ,   ,   ,   ,   ,TRAVEL TOTALS:,9667.39,2022
,2022 OFFICE OF THE MINORITY LEADER,3,GENERAL EXPENDITURES,RENT  COMMUNICATION  UTILITIES,DETAIL,2022-07-26,GL,EMS0117018, ,2022-06-01,2022-06-30,DC TELECOM EQUIP (TRANSFER),40,2022
,2022 OFFICE OF THE MINORITY LEADER,3,GENERAL EXPENDITURES,RENT  COMMUNICATION  UTILITIES,DETAIL,2022-07-26,GL,EMS0117018, ,2022-06-01,2022-06-30,DC TELECOM SERV (TRANSFER),570.75,2022
,2022 OFFICE OF THE MINORITY LEADER,3,GENERAL EXPENDITURES,RENT  COMMUNICATION  UTILITIES,DETAIL,2022-07-26,GL,EMS0117018, ,2022-06-01,2022-06-30,DC TELECOM TOLLS (TRANSFER),3113.56,2022
,2022 OFFICE OF THE MINORITY LEADER,3,GENERAL EXPENDITURES,RENT  COMMUNICATION  UTILITIES,DETAIL,2022-08-25,GL,EMS0117770, ,2022-07-01,2022-07-31,DC TELECOM EQUIP (TRANSFER),40,2022
,2022 OFFICE OF THE MINORITY LEADER,3,GENERAL EXPENDITURES,RENT  COMMUNICATION  UTILITIES,DETAIL,2022-08-25,GL,EMS0117770, ,2022-07-01,2022-07-31,DC TELECOM SERV (TRANSFER),570.75,2022
,2022 OFFICE OF THE MINORITY LEADER,3,GENERAL EXPENDITURES,RENT  COMMUNICATION  UTILITIES,DETAIL,2022-08-25,GL,EMS0117770, ,2022-07-01,2022-07-31,DC TELECOM TOLLS (TRANSFER),2853.71,2022
,2022 OFFICE OF THE MINORITY LEADER,3,GENERAL EXPENDITURES,RENT  COMMUNICATION  UTILITIES,DETAIL,2022-09-21,AP,1595881,CITI PCARD-GOOGLE  YouTube TV,2022-07-29,2022-08-28,UTILITIES,68.89,2022
,2022 OFFICE OF THE MINORITY LEADER,3,GENERAL EXPENDITURES,RENT  COMMUNICATION  UTILITIES,DETAIL,2022-09-28,GL,EMS0118774, ,2022-08-01,2022-08-31,DC TELECOM EQUIP (TRANSFER),36,2022
,2022 OFFICE OF THE MINORITY LEADER,3,GENERAL EXPENDITURES,RENT  COMMUNICATION  UTILITIES,DETAIL,2022-09-28,GL,EMS0118774, ,2022-08-01,2022-08-31,DC TELECOM SERV (TRANSFER),570.75,2022
,2022 OFFICE OF THE MINORITY LEADER,3,GENERAL EXPENDITURES,RENT  COMMUNICATION  UTILITIES,DETAIL,2022-09-28,GL,EMS0118774, ,2022-08-01,2022-08-31,DC TELECOM TOLLS (TRANSFER),2874.97,2022
,2022 OFFICE OF THE MINORITY LEADER,3,GENERAL EXPENDITURES,RENT  COMMUNICATION  UTILITIES,SUBTOTAL,   ,   ,   ,   ,   ,   ,RENT  COMMUNICATION  UTILITIES TOTALS:,10739.38,2022
,2022 OFFICE OF THE MINORITY LEADER,3,GENERAL EXPENDITURES,PRINTING AND REPRODUCTION,DETAIL,2022-08-23,AP,1589082,ACCURATE WORD,2022-08-11,2022-08-11,NON-FRANKABLE PRINTING & REPRO,43,2022
,2022 OFFICE OF THE MINORITY LEADER,3,GENERAL EXPENDITURES,PRINTING AND REPRODUCTION,DETAIL,2022-08-24,AP,1588922,CITI PCARD-DRI NEXTDAYFLYERS,2022-07-20,2022-07-20,NON-FRANKABLE PRINTING & REPRO,1233.97,2022
,2022 OFFICE OF THE MINORITY LEADER,3,GENERAL EXPENDITURES,PRINTING AND REPRODUCTION,DETAIL,2022-08-24,AP,1588922,CITI PCARD-VISTAPRINT,2022-07-20,2022-07-20,NON-FRANKABLE PRINTING & REPRO,862.19,2022
,2022 OFFICE OF THE MINORITY LEADER,3,GENERAL EXPENDITURES,PRINTING AND REPRODUCTION,DETAIL,2022-09-21,AP,1595881,CITI PCARD-VISTAPRINT,2022-07-21,2022-07-21,NON-FRANKABLE PRINTING & REPRO,852.51,2022
,2022 OFFICE OF THE MINORITY LEADER,3,GENERAL EXPENDITURES,PRINTING AND REPRODUCTION,DETAIL,2022-09-30,AP,1601438,COMPOSITION SYSTEMS INC,2022-09-16,2022-09-16,NON-FRANKABLE PRINTING & REPRO,732.6,2022
,2022 OFFICE OF THE MINORITY LEADER,3,GENERAL EXPENDITURES,PRINTING AND REPRODUCTION,DETAIL,2022-09-30,AP,1601439,COMPOSITION SYSTEMS INC,2022-09-21,2022-09-21,NON-FRANKABLE PRINTING & REPRO,1695.6,2022
,2022 OFFICE OF THE MINORITY LEADER,3,GENERAL EXPENDITURES,PRINTING AND REPRODUCTION,SUBTOTAL,   ,   ,   ,   ,   ,   ,PRINTING AND REPRODUCTION TOTALS:,5419.87,2022
,2022 OFFICE OF THE MINORITY LEADER,3,GENERAL EXPENDITURES,OTHER SERVICES,DETAIL,2022-07-16,AP,1578917,HOUSECALL LLC,2022-07-01,2022-07-31,TECHNOLOGY SERVICE CONTRACTS,5125,2022
,2022 OFFICE OF THE MINORITY LEADER,3,GENERAL EXPENDITURES,OTHER SERVICES,DETAIL,2022-08-16,AP,1589609,HOUSECALL LLC,2022-08-01,2022-08-31,TECHNOLOGY SERVICE CONTRACTS,5125,2022
,2022 OFFICE OF THE MINORITY LEADER,3,GENERAL EXPENDITURES,OTHER SERVICES,DETAIL,2022-08-24,AP,1588922,CITI PCARD-GOOGLE  YouTube TV,2022-06-29,2022-07-28,TECHNOLOGY SERVICE CONTRACTS,68.89,2022
,2022 OFFICE OF THE MINORITY LEADER,3,GENERAL EXPENDITURES,OTHER SERVICES,DETAIL,2022-09-08,AP,1592402,LEIDOS DIGITAL SOLUTIONS INC,2022-08-24,2022-08-24,WEB DEV HST EMAIL & RLTD SERV,7500,2022
,2022 OFFICE OF THE MINORITY LEADER,3,GENERAL EXPENDITURES,OTHER SERVICES,DETAIL,2022-09-15,AP,1594824,TEAM HARBINGER LLC,2022-09-19,2022-09-19,NON-TECHNOLOGY SERVICE CONTR,29418.99,2022
,2022 OFFICE OF THE MINORITY LEADER,3,GENERAL EXPENDITURES,OTHER SERVICES,DETAIL,2022-09-16,AP,1599385,HOUSECALL LLC,2022-09-01,2022-09-30,TECHNOLOGY SERVICE CONTRACTS,5125,2022
,2022 OFFICE OF THE MINORITY LEADER,3,GENERAL EXPENDITURES,OTHER SERVICES,DETAIL,2022-09-21,AP,1595881,CITI PCARD-MailChimp,2022-08-12,2022-09-11,WEB DEV HST EMAIL & RLTD SERV,710.2,2022
,2022 OFFICE OF THE MINORITY LEADER,3,GENERAL EXPENDITURES,OTHER SERVICES,DETAIL,2022-09-30,AP,1601432,TEAM HARBINGER LLC,2022-09-12,2022-09-20,NON-TECHNOLOGY SERVICE CONTR,33271.66,2022
,2022 OFFICE OF THE MINORITY LEADER,3,GENERAL EXPENDITURES,OTHER SERVICES,SUBTOTAL,   ,   ,   ,   ,   ,   ,OTHER SERVICES TOTALS:,86344.74,2022
,2022 OFFICE OF THE MINORITY LEADER,3,GENERAL EXPENDITURES,SUPPLIES AND MATERIALS,DETAIL,2022-07-13,AP,1577069,RELX INC DBA LEXISNEXIS,2022-04-01,2022-04-30,PUBLICATIONS/REFERENCE MAT'L,834,2022
,2022 OFFICE OF THE MINORITY LEADER,3,GENERAL EXPENDITURES,SUPPLIES AND MATERIALS,DETAIL,2022-07-14,AP,1577070,RELX INC DBA LEXISNEXIS,2022-06-30,2022-06-30,PUBLICATIONS/REFERENCE MAT'L,806.2,2022
,2022 OFFICE OF THE MINORITY LEADER,3,GENERAL EXPENDITURES,SUPPLIES AND MATERIALS,DETAIL,2022-07-14,AP,1577953,MIN JAMES B.,2022-07-13,2022-07-13,OFFICE SUPPLIES (OUTSIDE),130.32,2022
,2022 OFFICE OF THE MINORITY LEADER,3,GENERAL EXPENDITURES,SUPPLIES AND MATERIALS,DETAIL,2022-07-21,AP,1580189,CITI PCARD-ECAMM NETWORK LLC,2022-06-15,2023-06-15,SOFTWARE  LESS THAN  $500,192,2022
,2022 OFFICE OF THE MINORITY LEADER,3,GENERAL EXPENDITURES,SUPPLIES AND MATERIALS,DETAIL,2022-07-21,AP,1580189,CITI PCARD-GOOGLE  YouTube TV,2022-05-29,2022-06-28,PUBLICATIONS/REFERENCE MAT'L,68.89,2022
,2022 OFFICE OF THE MINORITY LEADER,3,GENERAL EXPENDITURES,SUPPLIES AND MATERIALS,DETAIL,2022-07-21,AP,1580189,CITI PCARD-RESTREAM INC.,2022-06-15,2023-06-15,SOFTWARE  LESS THAN  $500,490,2022
,2022 OFFICE OF THE MINORITY LEADER,3,GENERAL EXPENDITURES,SUPPLIES AND MATERIALS,DETAIL,2022-07-22,AP,1580043,CITI PCARD-Amazon.com 1X3553X62,2022-06-01,2022-06-01,OFFICE SUPPLIES (OUTSIDE),27.92,2022
,2022 OFFICE OF THE MINORITY LEADER,3,GENERAL EXPENDITURES,SUPPLIES AND MATERIALS,DETAIL,2022-07-22,AP,1580043,CITI PCARD-Amazon.com 4Y5HQ3XJ3,2022-06-16,2022-06-16,WATER,23.92,2022
,2022 OFFICE OF THE MINORITY LEADER,3,GENERAL EXPENDITURES,SUPPLIES AND MATERIALS,DETAIL,2022-07-22,AP,1580043,CITI PCARD-CAFE RIO CATERING,2022-06-09,2022-06-09,FOOD & BEVERAGE,553.4,2022
,2022 OFFICE OF THE MINORITY LEADER,3,GENERAL EXPENDITURES,SUPPLIES AND MATERIALS,DETAIL,2022-07-22,AP,1580043,CITI PCARD-CAFE RIO CORPORATE,2022-06-23,2022-06-23,FOOD & BEVERAGE,479.2,2022
,2022 OFFICE OF THE MINORITY LEADER,3,GENERAL EXPENDITURES,SUPPLIES AND MATERIALS,DETAIL,2022-07-22,AP,1580043,CITI PCARD-CHICK-FIL-A #03882,2022-05-10,2022-05-10,FOOD & BEVERAGE,895.62,2022
,2022 OFFICE OF THE MINORITY LEADER,3,GENERAL EXPENDITURES,SUPPLIES AND MATERIALS,DETAIL,2022-07-22,AP,1580043,CITI PCARD-FIRSTCHOICEAMERICANCOFF,2022-04-21,2022-04-21,FOOD & BEVERAGE,368.82,2022
,2022 OFFICE OF THE MINORITY LEADER,3,GENERAL EXPENDITURES,SUPPLIES AND MATERIALS,DETAIL,2022-07-22,AP,1580043,CITI PCARD-FIRSTCHOICEAMERICANCOFF,2022-05-19,2022-05-19,FOOD & BEVERAGE,734.72,2022
,2022 OFFICE OF THE MINORITY LEADER,3,GENERAL EXPENDITURES,SUPPLIES AND MATERIALS,DETAIL,2022-07-22,AP,1580043,CITI PCARD-FIRSTCHOICEAMERICANCOFF,2022-06-17,2022-06-17,FOOD & BEVERAGE,907.75,2022
,2022 OFFICE OF THE MINORITY LEADER,3,GENERAL EXPENDITURES,SUPPLIES AND MATERIALS,DETAIL,2022-07-22,AP,1580043,CITI PCARD-FTP FINANCIAL TIMES,2022-05-29,2022-06-28,PUBLICATIONS/REFERENCE MAT'L,59.5,2022
,2022 OFFICE OF THE MINORITY LEADER,3,GENERAL EXPENDITURES,SUPPLIES AND MATERIALS,DETAIL,2022-07-22,AP,1580043,CITI PCARD-LA TIMES SUBSCRIPTION,2022-06-14,2022-07-12,PUBLICATIONS/REFERENCE MAT'L,27.72,2022
,2022 OFFICE OF THE MINORITY LEADER,3,GENERAL EXPENDITURES,SUPPLIES AND MATERIALS,DETAIL,2022-07-22,AP,1580043,CITI PCARD-MailChimp,2022-06-12,2022-07-11,PUBLICATIONS/REFERENCE MAT'L,710.2,2022
,2022 OFFICE OF THE MINORITY LEADER,3,GENERAL EXPENDITURES,SUPPLIES AND MATERIALS,DETAIL,2022-07-22,AP,1580043,CITI PCARD-READYREFRESH BY NESTLE,2022-04-27,2022-05-26,WATER,131.3,2022
,2022 OFFICE OF THE MINORITY LEADER,3,GENERAL EXPENDITURES,SUPPLIES AND MATERIALS,DETAIL,2022-07-22,AP,1580043,CITI PCARD-SHARP ELECTRONICS CORPOR,2022-05-09,2022-05-09,OFFICE SUPPLIES (OUTSIDE),42.5,2022
,2022 OFFICE OF THE MINORITY LEADER,3,GENERAL EXPENDITURES,SUPPLIES AND MATERIALS,DETAIL,2022-07-22,AP,1580043,CITI PCARD-USHR CATERING,2022-06-07,2022-06-07,FOOD & BEVERAGE,99.25,2022
,2022 OFFICE OF THE MINORITY LEADER,3,GENERAL EXPENDITURES,SUPPLIES AND MATERIALS,DETAIL,2022-07-25,AP,1582959,CDW GOVERNMENT LLC,2022-07-20,2022-07-20,OFFICE SUPPLIES (OUTSIDE),753.14,2022
,2022 OFFICE OF THE MINORITY LEADER,3,GENERAL EXPENDITURES,SUPPLIES AND MATERIALS,DETAIL,2022-07-28,AP,1582431,HOCHSCHILD KEENAN N.,2022-05-16,2022-05-16,OFFICE SUPPLIES (OUTSIDE),103.88,2022
,2022 OFFICE OF THE MINORITY LEADER,3,GENERAL EXPENDITURES,SUPPLIES AND MATERIALS,DETAIL,2022-07-28,AP,1582431,HOCHSCHILD KEENAN N.,2022-06-22,2022-06-22,OFFICE SUPPLIES (OUTSIDE),18.27,2022
,2022 OFFICE OF THE MINORITY LEADER,3,GENERAL EXPENDITURES,SUPPLIES AND MATERIALS,DETAIL,2022-07-28,AP,1582431,HOCHSCHILD KEENAN N.,2022-06-15,2022-07-15,PUBLICATIONS/REFERENCE MAT'L,10,2022
,2022 OFFICE OF THE MINORITY LEADER,3,GENERAL EXPENDITURES,SUPPLIES AND MATERIALS,DETAIL,2022-07-28,AP,1582431,HOCHSCHILD KEENAN N.,2022-07-07,2022-07-07,PUBLICATIONS/REFERENCE MAT'L,49,2022
,2022 OFFICE OF THE MINORITY LEADER,3,GENERAL EXPENDITURES,SUPPLIES AND MATERIALS,DETAIL,2022-07-28,AP,1582431,HOCHSCHILD KEENAN N.,2022-07-15,2022-08-15,PUBLICATIONS/REFERENCE MAT'L,10,2022
,2022 OFFICE OF THE MINORITY LEADER,3,GENERAL EXPENDITURES,SUPPLIES AND MATERIALS,DETAIL,2022-07-31,GL,RMS0117194, ,2022-07-01,2022-07-31,OFFICE SUPPLY (TRANSFER),658.35,2022
,2022 OFFICE OF THE MINORITY LEADER,3,GENERAL EXPENDITURES,SUPPLIES AND MATERIALS,DETAIL,2022-08-16,AP,1586860,MIN JAMES B.,2022-08-11,2022-08-11,FOOD & BEVERAGE,1009.31,2022
,2022 OFFICE OF THE MINORITY LEADER,3,GENERAL EXPENDITURES,SUPPLIES AND MATERIALS,DETAIL,2022-08-18,AP,1587272,MIN JAMES B.,2022-08-14,2022-08-14,FOOD & BEVERAGE,31.02,2022
,2022 OFFICE OF THE MINORITY LEADER,3,GENERAL EXPENDITURES,SUPPLIES AND MATERIALS,DETAIL,2022-08-24,AP,1588922,CITI PCARD-Amazon.com CO0ES7PW3,2022-07-20,2022-07-20,OFFICE SUPPLIES (OUTSIDE),23.92,2022
,2022 OFFICE OF THE MINORITY LEADER,3,GENERAL EXPENDITURES,SUPPLIES AND MATERIALS,DETAIL,2022-08-24,AP,1588922,CITI PCARD-CAFE RIO CATERING,2022-07-27,2022-07-27,FOOD & BEVERAGE,479.2,2022
,2022 OFFICE OF THE MINORITY LEADER,3,GENERAL EXPENDITURES,SUPPLIES AND MATERIALS,DETAIL,2022-08-24,AP,1588922,CITI PCARD-CARMINES DC,2022-07-12,2022-07-12,FOOD & BEVERAGE,3481.17,2022
,2022 OFFICE OF THE MINORITY LEADER,3,GENERAL EXPENDITURES,SUPPLIES AND MATERIALS,DETAIL,2022-08-24,AP,1588922,CITI PCARD-CHICK-FIL-A #03882,2022-05-17,2022-05-17,FOOD & BEVERAGE,448.63,2022
,2022 OFFICE OF THE MINORITY LEADER,3,GENERAL EXPENDITURES,SUPPLIES AND MATERIALS,DETAIL,2022-08-24,AP,1588922,CITI PCARD-CHICK-FIL-A #03882,2022-07-13,2022-07-13,FOOD & BEVERAGE,427.15,2022
,2022 OFFICE OF THE MINORITY LEADER,3,GENERAL EXPENDITURES,SUPPLIES AND MATERIALS,DETAIL,2022-08-24,AP,1588922,CITI PCARD-CHICK-FIL-A #03882,2022-07-26,2022-07-26,FOOD & BEVERAGE,384.12,2022
,2022 OFFICE OF THE MINORITY LEADER,3,GENERAL EXPENDITURES,SUPPLIES AND MATERIALS,DETAIL,2022-08-24,AP,1588922,CITI PCARD-FIRSTCHOICEAMERICANCOFF,2022-07-18,2022-07-18,FOOD & BEVERAGE,830.14,2022
,2022 OFFICE OF THE MINORITY LEADER,3,GENERAL EXPENDITURES,SUPPLIES AND MATERIALS,DETAIL,2022-08-24,AP,1588922,CITI PCARD-FTP FINANCIAL TIMES,2022-06-29,2022-07-28,PUBLICATIONS/REFERENCE MAT'L,59.5,2022
,2022 OFFICE OF THE MINORITY LEADER,3,GENERAL EXPENDITURES,SUPPLIES AND MATERIALS,DETAIL,2022-08-24,AP,1588922,CITI PCARD-LA TIMES SUBSCRIPTION,2022-07-12,2022-08-09,PUBLICATIONS/REFERENCE MAT'L,27.72,2022
,2022 OFFICE OF THE MINORITY LEADER,3,GENERAL EXPENDITURES,SUPPLIES AND MATERIALS,DETAIL,2022-08-24,AP,1588922,CITI PCARD-MailChimp,2022-07-12,2022-08-11,PUBLICATIONS/REFERENCE MAT'L,710.2,2022
,2022 OFFICE OF THE MINORITY LEADER,3,GENERAL EXPENDITURES,SUPPLIES AND MATERIALS,DETAIL,2022-08-24,AP,1588922,CITI PCARD-QR-CODE-GENERATOR.COM,2022-07-19,2022-07-19,SOFTWARE  LESS THAN  $500,149.54,2022
,2022 OFFICE OF THE MINORITY LEADER,3,GENERAL EXPENDITURES,SUPPLIES AND MATERIALS,DETAIL,2022-08-24,AP,1588922,CITI PCARD-READYREFRESH BY NESTLE,2022-05-27,2022-06-26,WATER,91.39,2022
,2022 OFFICE OF THE MINORITY LEADER,3,GENERAL EXPENDITURES,SUPPLIES AND MATERIALS,DETAIL,2022-08-24,AP,1588922,CITI PCARD-USHR CATERING,2022-07-22,2022-07-22,FOOD & BEVERAGE,616.44,2022
,2022 OFFICE OF THE MINORITY LEADER,3,GENERAL EXPENDITURES,SUPPLIES AND MATERIALS,DETAIL,2022-08-24,AP,1588922,CITI PCARD-USHR CATERING,2022-07-27,2022-07-27,FOOD & BEVERAGE,147.38,2022
,2022 OFFICE OF THE MINORITY LEADER,3,GENERAL EXPENDITURES,SUPPLIES AND MATERIALS,DETAIL,2022-08-24,AP,1588922,CITI PCARD-WPY MissionBBQ NoVA,2022-07-19,2022-07-19,FOOD & BEVERAGE,679.53,2022
,2022 OFFICE OF THE MINORITY LEADER,3,GENERAL EXPENDITURES,SUPPLIES AND MATERIALS,DETAIL,2022-08-31,GL,RMS0117993, ,2022-08-01,2022-08-31,OFFICE SUPPLY (TRANSFER),30.77,2022
,2022 OFFICE OF THE MINORITY LEADER,3,GENERAL EXPENDITURES,SUPPLIES AND MATERIALS,DETAIL,2022-09-21,AP,1595881,CITI PCARD-AMAZON.COM 5G3V22723 AMZN,2022-07-28,2022-07-28,WATER,23.92,2022
,2022 OFFICE OF THE MINORITY LEADER,3,GENERAL EXPENDITURES,SUPPLIES AND MATERIALS,DETAIL,2022-09-21,AP,1595881,CITI PCARD-Box Inc.,2022-08-09,2023-08-08,SOFTWARE  LESS THAN  $500,432.83,2022
,2022 OFFICE OF THE MINORITY LEADER,3,GENERAL EXPENDITURES,SUPPLIES AND MATERIALS,DETAIL,2022-09-21,AP,1595881,CITI PCARD-CHICK-FIL-A #03882,2022-06-07,2022-06-07,FOOD & BEVERAGE,895.62,2022
,2022 OFFICE OF THE MINORITY LEADER,3,GENERAL EXPENDITURES,SUPPLIES AND MATERIALS,DETAIL,2022-09-21,AP,1595881,CITI PCARD-CHICK-FIL-A #03882,2022-06-10,2022-06-10,FOOD & BEVERAGE,356.57,2022
,2022 OFFICE OF THE MINORITY LEADER,3,GENERAL EXPENDITURES,SUPPLIES AND MATERIALS,DETAIL,2022-09-21,AP,1595881,CITI PCARD-FIRSTCHOICEAMERICANCOFF,2022-08-15,2022-08-15,FOOD & BEVERAGE,797.73,2022
,2022 OFFICE OF THE MINORITY LEADER,3,GENERAL EXPENDITURES,SUPPLIES AND MATERIALS,DETAIL,2022-09-21,AP,1595881,CITI PCARD-FTP FINANCIAL TIMES,2022-07-29,2022-08-28,PUBLICATIONS/REFERENCE MAT'L,59.5,2022
,2022 OFFICE OF THE MINORITY LEADER,3,GENERAL EXPENDITURES,SUPPLIES AND MATERIALS,DETAIL,2022-09-21,AP,1595881,CITI PCARD-LA TIMES SUBSCRIPTION,2022-08-09,2022-09-06,PUBLICATIONS/REFERENCE MAT'L,27.72,2022
,2022 OFFICE OF THE MINORITY LEADER,3,GENERAL EXPENDITURES,SUPPLIES AND MATERIALS,DETAIL,2022-09-21,AP,1595881,CITI PCARD-PREMIUMBEAT.COM,2022-07-29,2022-07-29,SOFTWARE  LESS THAN  $500,39.2,2022
,2022 OFFICE OF THE MINORITY LEADER,3,GENERAL EXPENDITURES,SUPPLIES AND MATERIALS,DETAIL,2022-09-21,AP,1595881,CITI PCARD-READYREFRESH BY NESTLE,2022-06-27,2022-07-26,WATER,155.24,2022
,2022 OFFICE OF THE MINORITY LEADER,3,GENERAL EXPENDITURES,SUPPLIES AND MATERIALS,DETAIL,2022-09-21,AP,1595881,CITI PCARD-SPROUT SOCIAL INC,2022-07-01,2023-07-01,SOFTWARE  LESS THAN  $500,1516.22,2022
,2022 OFFICE OF THE MINORITY LEADER,3,GENERAL EXPENDITURES,SUPPLIES AND MATERIALS,DETAIL,2022-09-21,AP,1595881,CITI PCARD-WINDOWS CATERING COMPANY,2022-07-14,2022-07-14,FOOD & BEVERAGE,927.5,2022
,2022 OFFICE OF THE MINORITY LEADER,3,GENERAL EXPENDITURES,SUPPLIES AND MATERIALS,DETAIL,2022-09-29,AP,1600984,5 DIAMONDS LLC,2022-09-22,2022-09-22,FOOD & BEVERAGE,12555.93,2022
,2022 OFFICE OF THE MINORITY LEADER,3,GENERAL EXPENDITURES,SUPPLIES AND MATERIALS,DETAIL,2022-09-30,AP,1601208,EXNER MICHELE P.,2022-09-09,2022-09-09,FOOD & BEVERAGE,36.19,2022
,2022 OFFICE OF THE MINORITY LEADER,3,GENERAL EXPENDITURES,SUPPLIES AND MATERIALS,DETAIL,2022-09-30,GL,RMS0118964, ,2022-09-01,2022-09-30,OFFICE SUPPLY (TRANSFER),677.01,2022
,2022 OFFICE OF THE MINORITY LEADER,3,GENERAL EXPENDITURES,SUPPLIES AND MATERIALS,SUBTOTAL,   ,   ,   ,   ,   ,   ,SUPPLIES AND MATERIALS TOTALS:,37314.18,2022
,2022 OFFICE OF THE MINORITY LEADER,3,GENERAL EXPENDITURES,EQUIPMENT,DETAIL,2022-07-12,AP,1576370,GULF PARTYLINE CORPORATION,2022-06-01,2022-06-30,COMPUTER SOFTW PURCH  LESS THAN $10 000,6000,2022
,2022 OFFICE OF THE MINORITY LEADER,3,GENERAL EXPENDITURES,EQUIPMENT,DETAIL,2022-07-25,AP,1582953,CDW GOVERNMENT LLC,2022-07-12,2022-07-12,COMPUTER HARDW PURCH  LESS THAN $25 000,6018.56,2022
,2022 OFFICE OF THE MINORITY LEADER,3,GENERAL EXPENDITURES,EQUIPMENT,DETAIL,2022-07-29,GL,MNT0117166, ,2022-07-01,2022-07-31,MAINTENANCE / REPAIRS,124,2022
,2022 OFFICE OF THE MINORITY LEADER,3,GENERAL EXPENDITURES,EQUIPMENT,DETAIL,2022-08-15,AP,1586214,GULF PARTYLINE CORPORATION,2022-07-01,2022-07-31,COMPUTER SOFTW PURCH  LESS THAN $10 000,6000,2022
,2022 OFFICE OF THE MINORITY LEADER,3,GENERAL EXPENDITURES,EQUIPMENT,DETAIL,2022-08-31,GL,MNT0117948, ,2022-08-01,2022-08-31,MAINTENANCE / REPAIRS,124,2022
,2022 OFFICE OF THE MINORITY LEADER,3,GENERAL EXPENDITURES,EQUIPMENT,DETAIL,2022-09-21,AP,1596185,GULF PARTYLINE CORPORATION,2022-08-01,2022-08-31,COMPUTER SOFTW PURCH  LESS THAN $10 000,6000,2022
,2022 OFFICE OF THE MINORITY LEADER,3,GENERAL EXPENDITURES,EQUIPMENT,DETAIL,2022-09-30,GL,MNT0118823, ,2022-09-01,2022-09-30,MAINTENANCE / REPAIRS,124,2022
,2022 OFFICE OF THE MINORITY LEADER,3,GENERAL EXPENDITURES,EQUIPMENT,SUBTOTAL,   ,   ,   ,   ,   ,   ,EQUIPMENT TOTALS:,24390.56,2022
,2022 OFFICE OF THE MINORITY LEADER,3,GENERAL EXPENDITURES,EQUIPMENT,SUBTOTAL,   ,   ,   ,   ,   ,   ,GENERAL EXPENDITURES TOTALS:,1450351.12,2022
,2022 OFFICE OF THE MINORITY LEADER,3,REPUBLICAN POLICY COMMITTEE,PERSONNEL COMPENSATION,DETAIL,   ,   ,   ,WALL KELSEY V,2022-07-01,2022-09-30,SHARED EMPLOYEE,18750,2022
,2022 OFFICE OF THE MINORITY LEADER,3,REPUBLICAN POLICY COMMITTEE,PERSONNEL COMPENSATION,SUBTOTAL,   ,   ,   ,   ,   ,   ,PERSONNEL COMPENSATION TOTALS:,18750,2022
,2022 OFFICE OF THE MINORITY LEADER,3,REPUBLICAN POLICY COMMITTEE,PERSONNEL COMPENSATION,SUBTOTAL,   ,   ,   ,   ,   ,   ,REPUBLICAN POLICY COMMITTEE TOTALS:,18750,2022
,2022 OFFICE OF THE MINORITY LEADER,3,REPUBLICAN POLICY COMMITTEE,PERSONNEL COMPENSATION,GRAND TOTAL FOR ORGANIZATION,   ,   ,   ,   ,   ,   ,OFFICE TOTALS: ,1469101.12,2022
,2022 OFFICE OF THE MINORITY LEADER,3,INTERN ALLOWANCES,PERSONNEL COMPENSATION,DETAIL,   ,   ,   ,BRATSCH HANNA H.,2022-07-05,2022-08-04,MIN LEADER PAID INTERN - HOUSE,1500,2022
,2022 OFFICE OF THE MINORITY LEADER,3,INTERN ALLOWANCES,PERSONNEL COMPENSATION,DETAIL,   ,   ,   ,CARVER SEAN D.,2022-09-06,2022-09-30,MIN LEADER PAID INTERN - HOUSE,625,2022
,2022 OFFICE OF THE MINORITY LEADER,3,INTERN ALLOWANCES,PERSONNEL COMPENSATION,DETAIL,   ,   ,   ,LANNING JOHN K.,2022-08-18,2022-09-30,MIN LEADER PAID INTERN - HOUSE,2866.67,2022
,2022 OFFICE OF THE MINORITY LEADER,3,INTERN ALLOWANCES,PERSONNEL COMPENSATION,DETAIL,   ,   ,   ,MCDANIEL STEPHEN E.,2022-09-06,2022-09-30,MIN LEADER PAID INTERN - HOUSE,625,2022
,2022 OFFICE OF THE MINORITY LEADER,3,INTERN ALLOWANCES,PERSONNEL COMPENSATION,DETAIL,   ,   ,   ,REID CAROLYN S.,2022-07-01,2022-07-08,MIN LEADER PAID INTERN - HOUSE,300,2022
,2022 OFFICE OF THE MINORITY LEADER,3,INTERN ALLOWANCES,PERSONNEL COMPENSATION,DETAIL,   ,   ,   ,RIEBLI SOPHIA V.,2022-07-01,2022-07-31,MIN LEADER PAID INTERN - HOUSE,1500,2022
,2022 OFFICE OF THE MINORITY LEADER,3,INTERN ALLOWANCES,PERSONNEL COMPENSATION,DETAIL,   ,   ,   ,ROBERTSON ISABELLA J.,2022-07-01,2022-07-31,MIN LEADER PAID INTERN - HOUSE,1500,2022
,2022 OFFICE OF THE MINORITY LEADER,3,INTERN ALLOWANCES,PERSONNEL COMPENSATION,DETAIL,   ,   ,   ,SOMMERS MARY A.,2022-07-05,2022-08-04,MIN LEADER PAID INTERN - HOUSE,1500,2022
,2022 OFFICE OF THE MINORITY LEADER,3,INTERN ALLOWANCES,PERSONNEL COMPENSATION,DETAIL,   ,   ,   ,STEVENS ABIGAIL E.,2022-07-01,2022-07-31,MIN LEADER PAID INTERN - HOUSE,1500,2022
,2022 OFFICE OF THE MINORITY LEADER,3,INTERN ALLOWANCES,PERSONNEL COMPENSATION,DETAIL,   ,   ,   ,THOMAS PAYSON S.,2022-08-01,2022-09-30,MIN LEADER PAID INTERN - HOUSE,800,2022
,2022 OFFICE OF THE MINORITY LEADER,3,INTERN ALLOWANCES,PERSONNEL COMPENSATION,DETAIL,   ,   ,   ,WILLIAMS LUKE H.,2022-09-06,2022-09-30,MIN LEADER PAID INTERN - HOUSE,1250,2022
,2022 OFFICE OF THE MINORITY LEADER,3,INTERN ALLOWANCES,PERSONNEL COMPENSATION,SUBTOTAL,   ,   ,   ,   ,   ,   ,PERSONNEL COMPENSATION TOTALS:,13966.67,2022
,2022 OFFICE OF THE MINORITY LEADER,3,INTERN ALLOWANCES,PERSONNEL COMPENSATION,SUBTOTAL,   ,   ,   ,   ,   ,   ,INTERN ALLOWANCES TOTALS:,13966.67,2022
,2022 OFFICE OF THE MINORITY LEADER,3,INTERN ALLOWANCES,PERSONNEL COMPENSATION,GRAND TOTAL FOR ORGANIZATION,   ,   ,   ,   ,   ,   ,OFFICE TOTALS: ,13966.67,2022
,2022 OFFICE OF THE MAJORITY WHIP,3,GENERAL EXPENDITURES,PERSONNEL COMPENSATION,DETAIL,   ,   ,   ,CAPPS HALEY K.,2022-07-01,2022-08-31,PAID INTERN,1916.66,2022
,2022 OFFICE OF THE MAJORITY WHIP,3,GENERAL EXPENDITURES,PERSONNEL COMPENSATION,DETAIL,   ,   ,   ,DERRICK HOPE E,2022-07-01,2022-09-30,COMMUNICATIONS DIRECTOR,42000,2022
,2022 OFFICE OF THE MAJORITY WHIP,3,GENERAL EXPENDITURES,PERSONNEL COMPENSATION,DETAIL,   ,   ,   ,ELLISON MATTHEW B.,2022-07-01,2022-09-30,POLICY DIRECTOR,30000,2022
,2022 OFFICE OF THE MAJORITY WHIP,3,GENERAL EXPENDITURES,PERSONNEL COMPENSATION,DETAIL,   ,   ,   ,FRIAS BRIANNA A.,2022-07-01,2022-09-30,DIGITAL DIRECTOR,19500,2022
,2022 OFFICE OF THE MAJORITY WHIP,3,GENERAL EXPENDITURES,PERSONNEL COMPENSATION,DETAIL,   ,   ,   ,GARRETT EMERALD P.,2022-07-01,2022-09-30,FLOOR ASSISTANT,17499.99,2022
,2022 OFFICE OF THE MAJORITY WHIP,3,GENERAL EXPENDITURES,PERSONNEL COMPENSATION,DETAIL,   ,   ,   ,KELLY SARAH,2022-07-01,2022-09-30,SENIOR ADVISOR,34250.01,2022
,2022 OFFICE OF THE MAJORITY WHIP,3,GENERAL EXPENDITURES,PERSONNEL COMPENSATION,DETAIL,   ,   ,   ,LAPRISE ZACHARY P.,2022-07-01,2022-09-30,STAFF ASSISTANT,12500.01,2022
,2022 OFFICE OF THE MAJORITY WHIP,3,GENERAL EXPENDITURES,PERSONNEL COMPENSATION,DETAIL,   ,   ,   ,LAWRENCE TAYLOR,2022-07-05,2022-09-30,STAFF ASSISTANT,12422.22,2022
,2022 OFFICE OF THE MAJORITY WHIP,3,GENERAL EXPENDITURES,PERSONNEL COMPENSATION,DETAIL,   ,   ,   ,LINK CRAIG C,2022-07-01,2022-09-30,FLOOR DIRECTOR AND GENERAL COU,42249.99,2022
,2022 OFFICE OF THE MAJORITY WHIP,3,GENERAL EXPENDITURES,PERSONNEL COMPENSATION,DETAIL,   ,   ,   ,LYLES III WILLIE,2022-07-01,2022-09-30,SENIOR ADVISOR & COUNSEL,42000,2022
,2022 OFFICE OF THE MAJORITY WHIP,3,GENERAL EXPENDITURES,PERSONNEL COMPENSATION,DETAIL,   ,   ,   ,MASON TAMIKA K,2022-07-01,2022-09-30,DIRECTOR OF TECHNOLOGY FOR FLO,23750.01,2022
,2022 OFFICE OF THE MAJORITY WHIP,3,GENERAL EXPENDITURES,PERSONNEL COMPENSATION,DETAIL,   ,   ,   ,MOORE DYLAN B.,2022-07-01,2022-09-02,LEGISLATIVE ASSISTANT,10850,2022
,2022 OFFICE OF THE MAJORITY WHIP,3,GENERAL EXPENDITURES,PERSONNEL COMPENSATION,DETAIL,   ,   ,   ,ROBINSON NATHAN A.,2022-08-01,2022-08-31,LEGISLATIVE ASSISTANT,6083.33,2022
,2022 OFFICE OF THE MAJORITY WHIP,3,GENERAL EXPENDITURES,PERSONNEL COMPENSATION,DETAIL,   ,   ,   ,ROBINSON NATHAN A.,2022-09-01,2022-09-30,LEGISLATIVE ASSISTANT,6083.33,2022
,2022 OFFICE OF THE MAJORITY WHIP,3,GENERAL EXPENDITURES,PERSONNEL COMPENSATION,DETAIL,   ,   ,   ,SAUNDERS NIA G.,2022-07-01,2022-07-29,PRESS ASSISTANT,4027.78,2022
,2022 OFFICE OF THE MAJORITY WHIP,3,GENERAL EXPENDITURES,PERSONNEL COMPENSATION,DETAIL,   ,   ,   ,SINGLETARY BARVETTA,2022-07-01,2022-09-30,SENIOR ADVISOR,41250,2022
,2022 OFFICE OF THE MAJORITY WHIP,3,GENERAL EXPENDITURES,PERSONNEL COMPENSATION,DETAIL,   ,   ,   ,STALLINGS BERNADINE A,2022-07-01,2022-09-30,DEPUTY COMM DIRECTOR,28749.99,2022
,2022 OFFICE OF THE MAJORITY WHIP,3,GENERAL EXPENDITURES,PERSONNEL COMPENSATION,DETAIL,   ,   ,   ,UBEZONU NNEMDILIM I,2022-07-01,2022-09-30,DEPUTY FLOOR DIRECTOR,21999.99,2022
,2022 OFFICE OF THE MAJORITY WHIP,3,GENERAL EXPENDITURES,PERSONNEL COMPENSATION,DETAIL,   ,   ,   ,WATKINS YELBERTON R.,2022-07-01,2022-09-30,CHIEF OF STAFF,45000,2022
,2022 OFFICE OF THE MAJORITY WHIP,3,GENERAL EXPENDITURES,PERSONNEL COMPENSATION,DETAIL,   ,   ,   ,WHITE CATHERINE L.,2022-07-25,2022-09-30,PRESS ASSISTANT,9900,2022
,2022 OFFICE OF THE MAJORITY WHIP,3,GENERAL EXPENDITURES,PERSONNEL COMPENSATION,DETAIL,   ,   ,   ,WILSON ASHLEIGH R.,2022-07-01,2022-08-31,LEGISLATIVE DIRECTOR,2497.22,2022
,2022 OFFICE OF THE MAJORITY WHIP,3,GENERAL EXPENDITURES,PERSONNEL COMPENSATION,SUBTOTAL,   ,   ,   ,   ,   ,   ,PERSONNEL COMPENSATION TOTALS:,454530.53,2022
,2022 OFFICE OF THE MAJORITY WHIP,3,GENERAL EXPENDITURES,TRAVEL,DETAIL,2022-09-07,AP,1593529,SINGLETARY BARVETTA,2022-08-04,2022-08-17,PRIVATE AUTO MILEAGE,1027.5,2022
,2022 OFFICE OF THE MAJORITY WHIP,3,GENERAL EXPENDITURES,TRAVEL,SUBTOTAL,   ,   ,   ,   ,   ,   ,TRAVEL TOTALS:,1027.5,2022
,2022 OFFICE OF THE MAJORITY WHIP,3,GENERAL EXPENDITURES,RENT  COMMUNICATION  UTILITIES,DETAIL,2022-07-26,GL,EMS0117018, ,2022-06-01,2022-06-30,DC TELECOM EQUIP (TRANSFER),76,2022
,2022 OFFICE OF THE MAJORITY WHIP,3,GENERAL EXPENDITURES,RENT  COMMUNICATION  UTILITIES,DETAIL,2022-07-26,GL,EMS0117018, ,2022-06-01,2022-06-30,DC TELECOM SERV (TRANSFER),295.75,2022
,2022 OFFICE OF THE MAJORITY WHIP,3,GENERAL EXPENDITURES,RENT  COMMUNICATION  UTILITIES,DETAIL,2022-07-26,GL,EMS0117018, ,2022-06-01,2022-06-30,DC TELECOM TOLLS (TRANSFER),1358.27,2022
,2022 OFFICE OF THE MAJORITY WHIP,3,GENERAL EXPENDITURES,RENT  COMMUNICATION  UTILITIES,DETAIL,2022-08-25,GL,EMS0117770, ,2022-07-01,2022-07-31,DC TELECOM EQUIP (TRANSFER),76,2022
,2022 OFFICE OF THE MAJORITY WHIP,3,GENERAL EXPENDITURES,RENT  COMMUNICATION  UTILITIES,DETAIL,2022-08-25,GL,EMS0117770, ,2022-07-01,2022-07-31,DC TELECOM SERV (TRANSFER),295.75,2022
,2022 OFFICE OF THE MAJORITY WHIP,3,GENERAL EXPENDITURES,RENT  COMMUNICATION  UTILITIES,DETAIL,2022-08-25,GL,EMS0117770, ,2022-07-01,2022-07-31,DC TELECOM TOLLS (TRANSFER),1308.4,2022
,2022 OFFICE OF THE MAJORITY WHIP,3,GENERAL EXPENDITURES,RENT  COMMUNICATION  UTILITIES,DETAIL,2022-09-28,GL,EMS0118774, ,2022-08-01,2022-08-31,DC TELECOM EQUIP (TRANSFER),76,2022
,2022 OFFICE OF THE MAJORITY WHIP,3,GENERAL EXPENDITURES,RENT  COMMUNICATION  UTILITIES,DETAIL,2022-09-28,GL,EMS0118774, ,2022-08-01,2022-08-31,DC TELECOM SERV (TRANSFER),295.75,2022
,2022 OFFICE OF THE MAJORITY WHIP,3,GENERAL EXPENDITURES,RENT  COMMUNICATION  UTILITIES,DETAIL,2022-09-28,GL,EMS0118774, ,2022-08-01,2022-08-31,DC TELECOM TOLLS (TRANSFER),2119.27,2022
,2022 OFFICE OF THE MAJORITY WHIP,3,GENERAL EXPENDITURES,RENT  COMMUNICATION  UTILITIES,SUBTOTAL,   ,   ,   ,   ,   ,   ,RENT  COMMUNICATION  UTILITIES TOTALS:,5901.19,2022
,2022 OFFICE OF THE MAJORITY WHIP,3,GENERAL EXPENDITURES,PRINTING AND REPRODUCTION,DETAIL,2022-08-23,AP,1590909,ACCURATE WORD,2022-07-01,2022-07-01,NON-FRANKABLE PRINTING & REPRO,151,2022
,2022 OFFICE OF THE MAJORITY WHIP,3,GENERAL EXPENDITURES,PRINTING AND REPRODUCTION,DETAIL,2022-08-23,AP,1590911,ACCURATE WORD,2022-07-22,2022-07-22,FRANKABLE PRINTING & REPROD,260,2022
,2022 OFFICE OF THE MAJORITY WHIP,3,GENERAL EXPENDITURES,PRINTING AND REPRODUCTION,SUBTOTAL,   ,   ,   ,   ,   ,   ,PRINTING AND REPRODUCTION TOTALS:,411,2022
,2022 OFFICE OF THE MAJORITY WHIP,3,GENERAL EXPENDITURES,OTHER SERVICES,DETAIL,2022-07-16,AP,1579565,FISCALNOTE INC,2022-07-01,2022-07-31,TECHNOLOGY SERVICE CONTRACTS,1895,2022
,2022 OFFICE OF THE MAJORITY WHIP,3,GENERAL EXPENDITURES,OTHER SERVICES,DETAIL,2022-08-16,AP,1590252,FISCALNOTE INC,2022-08-01,2022-08-31,TECHNOLOGY SERVICE CONTRACTS,1895,2022
,2022 OFFICE OF THE MAJORITY WHIP,3,GENERAL EXPENDITURES,OTHER SERVICES,DETAIL,2022-08-24,AP,1590893,1BRIGHTSTAR MEDIA,2022-08-01,2022-08-31,WEB DEV HST EMAIL & RLTD SERV,499,2022
,2022 OFFICE OF THE MAJORITY WHIP,3,GENERAL EXPENDITURES,OTHER SERVICES,DETAIL,2022-09-01,AP,1592322,CITI PCARD-DRYY GARMENT CARE,2022-06-14,2022-06-14,LAUNDRY SERVICES,99.89,2022
,2022 OFFICE OF THE MAJORITY WHIP,3,GENERAL EXPENDITURES,OTHER SERVICES,DETAIL,2022-09-08,AP,1593453,1BRIGHTSTAR MEDIA,2022-09-01,2022-09-30,WEB DEV HST EMAIL & RLTD SERV,499,2022
,2022 OFFICE OF THE MAJORITY WHIP,3,GENERAL EXPENDITURES,OTHER SERVICES,DETAIL,2022-09-08,AP,1593550,1BRIGHTSTAR MEDIA,2022-07-01,2022-07-31,WEB DEV HST EMAIL & RLTD SERV,499,2022
,2022 OFFICE OF THE MAJORITY WHIP,3,GENERAL EXPENDITURES,OTHER SERVICES,DETAIL,2022-09-16,AP,1600026,FISCALNOTE INC,2022-09-01,2022-09-30,TECHNOLOGY SERVICE CONTRACTS,1895,2022
,2022 OFFICE OF THE MAJORITY WHIP,3,GENERAL EXPENDITURES,OTHER SERVICES,SUBTOTAL,   ,   ,   ,   ,   ,   ,OTHER SERVICES TOTALS:,7281.89,2022
,2022 OFFICE OF THE MAJORITY WHIP,3,GENERAL EXPENDITURES,SUPPLIES AND MATERIALS,DETAIL,2022-07-31,GL,RMS0117194, ,2022-07-01,2022-07-31,OFFICE SUPPLY (TRANSFER),1018.3,2022
,2022 OFFICE OF THE MAJORITY WHIP,3,GENERAL EXPENDITURES,SUPPLIES AND MATERIALS,DETAIL,2022-08-09,AP,1584877,CITI PCARD-SAINT GERMAIN CATERING,2022-06-22,2022-06-22,FOOD & BEVERAGE,4127.5,2022
,2022 OFFICE OF THE MAJORITY WHIP,3,GENERAL EXPENDITURES,SUPPLIES AND MATERIALS,DETAIL,2022-08-10,GL,FRM0117953, ,2022-06-16,2022-07-21,FRAMING (TRANSFER),120,2022
,2022 OFFICE OF THE MAJORITY WHIP,3,GENERAL EXPENDITURES,SUPPLIES AND MATERIALS,DETAIL,2022-08-18,AP,1590803,REVIVE EVENTS AND CATERING,2022-06-15,2022-06-15,FOOD & BEVERAGE,3763,2022
,2022 OFFICE OF THE MAJORITY WHIP,3,GENERAL EXPENDITURES,SUPPLIES AND MATERIALS,DETAIL,2022-08-18,AP,1590811,REVIVE EVENTS AND CATERING,2022-07-14,2022-07-14,FOOD & BEVERAGE,3765,2022
,2022 OFFICE OF THE MAJORITY WHIP,3,GENERAL EXPENDITURES,SUPPLIES AND MATERIALS,DETAIL,2022-08-22,AP,1590806,REVIVE EVENTS AND CATERING,2022-06-23,2022-06-23,FOOD & BEVERAGE,3675,2022
,2022 OFFICE OF THE MAJORITY WHIP,3,GENERAL EXPENDITURES,SUPPLIES AND MATERIALS,DETAIL,2022-08-22,AP,1590820,REVIVE EVENTS AND CATERING,2022-07-20,2022-07-20,FOOD & BEVERAGE,3825,2022
,2022 OFFICE OF THE MAJORITY WHIP,3,GENERAL EXPENDITURES,SUPPLIES AND MATERIALS,DETAIL,2022-08-22,AP,1590825,REVIVE EVENTS AND CATERING,2022-07-28,2022-07-28,FOOD & BEVERAGE,3825,2022
,2022 OFFICE OF THE MAJORITY WHIP,3,GENERAL EXPENDITURES,SUPPLIES AND MATERIALS,DETAIL,2022-08-31,AP,1592310,STAPLES INC,2022-05-06,2022-05-06,OFFICE SUPPLIES (OUTSIDE),40.94,2022
,2022 OFFICE OF THE MAJORITY WHIP,3,GENERAL EXPENDITURES,SUPPLIES AND MATERIALS,DETAIL,2022-08-31,GL,RMS0117993, ,2022-08-01,2022-08-31,OFFICE SUPPLY (TRANSFER),78.09,2022
,2022 OFFICE OF THE MAJORITY WHIP,3,GENERAL EXPENDITURES,SUPPLIES AND MATERIALS,DETAIL,2022-09-01,AP,1592303,STAPLES INC,2022-01-12,2022-01-12,OFFICE SUPPLIES (OUTSIDE),296.93,2022
,2022 OFFICE OF THE MAJORITY WHIP,3,GENERAL EXPENDITURES,SUPPLIES AND MATERIALS,DETAIL,2022-09-01,AP,1592307,STAPLES INC,2022-01-20,2022-01-20,OFFICE SUPPLIES (OUTSIDE),235.18,2022
,2022 OFFICE OF THE MAJORITY WHIP,3,GENERAL EXPENDITURES,SUPPLIES AND MATERIALS,DETAIL,2022-09-01,AP,1592309,STAPLES INC,2022-04-08,2022-04-08,OFFICE SUPPLIES (OUTSIDE),146.99,2022
,2022 OFFICE OF THE MAJORITY WHIP,3,GENERAL EXPENDITURES,SUPPLIES AND MATERIALS,DETAIL,2022-09-01,AP,1592312,STAPLES INC,2022-06-11,2022-06-11,OFFICE SUPPLIES (OUTSIDE),42,2022
,2022 OFFICE OF THE MAJORITY WHIP,3,GENERAL EXPENDITURES,SUPPLIES AND MATERIALS,DETAIL,2022-09-01,AP,1592313,STAPLES INC,2022-06-15,2022-06-15,OFFICE SUPPLIES (OUTSIDE),43.6,2022
,2022 OFFICE OF THE MAJORITY WHIP,3,GENERAL EXPENDITURES,SUPPLIES AND MATERIALS,DETAIL,2022-09-01,AP,1592319,CITI PCARD-CANVA  I03452-25032144,2022-06-01,2022-06-30,SOFTWARE  LESS THAN  $500,31.8,2022
,2022 OFFICE OF THE MAJORITY WHIP,3,GENERAL EXPENDITURES,SUPPLIES AND MATERIALS,DETAIL,2022-09-01,AP,1592319,CITI PCARD-DD/BR #359701,2022-06-24,2022-06-24,FOOD & BEVERAGE,12.25,2022
,2022 OFFICE OF THE MAJORITY WHIP,3,GENERAL EXPENDITURES,SUPPLIES AND MATERIALS,DETAIL,2022-09-01,AP,1592319,CITI PCARD-NANDO S PERI PERI THE YAR,2022-07-13,2022-07-13,FOOD & BEVERAGE,109.67,2022
,2022 OFFICE OF THE MAJORITY WHIP,3,GENERAL EXPENDITURES,SUPPLIES AND MATERIALS,DETAIL,2022-09-01,AP,1592319,CITI PCARD-SQ  JON WRIGHT,2022-07-13,2022-07-13,FOOD & BEVERAGE,4291,2022
,2022 OFFICE OF THE MAJORITY WHIP,3,GENERAL EXPENDITURES,SUPPLIES AND MATERIALS,DETAIL,2022-09-01,AP,1592319,CITI PCARD-SQ  THE PRETZEL BAKERY,2022-05-19,2022-05-19,FOOD & BEVERAGE,150.8,2022
,2022 OFFICE OF THE MAJORITY WHIP,3,GENERAL EXPENDITURES,SUPPLIES AND MATERIALS,DETAIL,2022-09-01,AP,1592319,CITI PCARD-TALAY THAI RESTAURANT-,2022-07-26,2022-07-26,FOOD & BEVERAGE,326.7,2022
,2022 OFFICE OF THE MAJORITY WHIP,3,GENERAL EXPENDITURES,SUPPLIES AND MATERIALS,DETAIL,2022-09-01,AP,1592319,CITI PCARD-THE CAKE ROOM,2022-05-19,2022-05-19,FOOD & BEVERAGE,60.5,2022
,2022 OFFICE OF THE MAJORITY WHIP,3,GENERAL EXPENDITURES,SUPPLIES AND MATERIALS,DETAIL,2022-09-01,AP,1592319,CITI PCARD-TRADER JOE'S #622 QPS,2022-06-24,2022-06-24,FOOD & BEVERAGE,11.97,2022
,2022 OFFICE OF THE MAJORITY WHIP,3,GENERAL EXPENDITURES,SUPPLIES AND MATERIALS,DETAIL,2022-09-01,AP,1592322,CITI PCARD-COSTCO BY INSTACART,2022-06-08,2022-06-08,FOOD & BEVERAGE,315.39,2022
,2022 OFFICE OF THE MAJORITY WHIP,3,GENERAL EXPENDITURES,SUPPLIES AND MATERIALS,DETAIL,2022-09-01,AP,1592322,CITI PCARD-COSTCO BY INSTACART,2022-06-14,2022-06-14,FOOD & BEVERAGE,427.46,2022
,2022 OFFICE OF THE MAJORITY WHIP,3,GENERAL EXPENDITURES,SUPPLIES AND MATERIALS,DETAIL,2022-09-01,AP,1592322,CITI PCARD-INSTACART,2022-06-08,2022-06-08,FOOD & BEVERAGE,70.73,2022
,2022 OFFICE OF THE MAJORITY WHIP,3,GENERAL EXPENDITURES,SUPPLIES AND MATERIALS,DETAIL,2022-09-01,AP,1592322,CITI PCARD-INSTACART,2022-06-14,2022-06-14,FOOD & BEVERAGE,150.19,2022
,2022 OFFICE OF THE MAJORITY WHIP,3,GENERAL EXPENDITURES,SUPPLIES AND MATERIALS,DETAIL,2022-09-02,AP,1592304,STAPLES INC,2022-01-13,2022-01-13,OFFICE SUPPLIES (OUTSIDE),295.94,2022
,2022 OFFICE OF THE MAJORITY WHIP,3,GENERAL EXPENDITURES,SUPPLIES AND MATERIALS,DETAIL,2022-09-02,AP,1592305,STAPLES INC,2022-01-13,2022-01-13,OFFICE SUPPLIES (OUTSIDE),295.94,2022
,2022 OFFICE OF THE MAJORITY WHIP,3,GENERAL EXPENDITURES,SUPPLIES AND MATERIALS,DETAIL,2022-09-02,AP,1592306,STAPLES INC,2022-01-13,2022-01-13,OFFICE SUPPLIES (OUTSIDE),295.94,2022
,2022 OFFICE OF THE MAJORITY WHIP,3,GENERAL EXPENDITURES,SUPPLIES AND MATERIALS,DETAIL,2022-09-02,AP,1592311,STAPLES INC,2022-05-07,2022-05-07,OFFICE SUPPLIES (OUTSIDE),591.88,2022
,2022 OFFICE OF THE MAJORITY WHIP,3,GENERAL EXPENDITURES,SUPPLIES AND MATERIALS,DETAIL,2022-09-07,AP,1593219,CITI PCARD-CANVA  I03482-19605369,2022-07-01,2022-07-31,SOFTWARE  LESS THAN  $500,31.8,2022
,2022 OFFICE OF THE MAJORITY WHIP,3,GENERAL EXPENDITURES,SUPPLIES AND MATERIALS,DETAIL,2022-09-07,AP,1593219,CITI PCARD-IC  COSTCO BY INSTACAR,2022-07-08,2022-07-08,FOOD & BEVERAGE,62.23,2022
,2022 OFFICE OF THE MAJORITY WHIP,3,GENERAL EXPENDITURES,SUPPLIES AND MATERIALS,DETAIL,2022-09-07,AP,1593219,CITI PCARD-IC  COSTCO BY INSTACAR,2022-07-13,2022-07-13,FOOD & BEVERAGE,204.19,2022
,2022 OFFICE OF THE MAJORITY WHIP,3,GENERAL EXPENDITURES,SUPPLIES AND MATERIALS,DETAIL,2022-09-07,AP,1593219,CITI PCARD-IC  INSTACART,2022-07-06,2022-07-06,FOOD & BEVERAGE,67.2,2022
,2022 OFFICE OF THE MAJORITY WHIP,3,GENERAL EXPENDITURES,SUPPLIES AND MATERIALS,DETAIL,2022-09-07,AP,1593219,CITI PCARD-IC  INSTACART,2022-07-07,2022-07-07,FOOD & BEVERAGE,38.17,2022
,2022 OFFICE OF THE MAJORITY WHIP,3,GENERAL EXPENDITURES,SUPPLIES AND MATERIALS,DETAIL,2022-09-07,AP,1593219,CITI PCARD-IC  INSTACART,2022-07-08,2022-07-08,FOOD & BEVERAGE,97.79,2022
,2022 OFFICE OF THE MAJORITY WHIP,3,GENERAL EXPENDITURES,SUPPLIES AND MATERIALS,DETAIL,2022-09-07,AP,1593219,CITI PCARD-IC  INSTACART,2022-07-13,2022-07-13,FOOD & BEVERAGE,242.18,2022
,2022 OFFICE OF THE MAJORITY WHIP,3,GENERAL EXPENDITURES,SUPPLIES AND MATERIALS,DETAIL,2022-09-07,AP,1593219,CITI PCARD-IC  INSTACART,2022-07-19,2022-07-19,FOOD & BEVERAGE,14.7,2022
,2022 OFFICE OF THE MAJORITY WHIP,3,GENERAL EXPENDITURES,SUPPLIES AND MATERIALS,DETAIL,2022-09-07,AP,1593291,CITI PCARD-IC  COSTCO BY INSTACAR,2022-07-19,2022-07-19,FOOD & BEVERAGE,515.07,2022
,2022 OFFICE OF THE MAJORITY WHIP,3,GENERAL EXPENDITURES,SUPPLIES AND MATERIALS,DETAIL,2022-09-07,AP,1593291,CITI PCARD-IC  COSTCO BY INSTACAR,2022-07-20,2022-07-20,FOOD & BEVERAGE,127.03,2022
,2022 OFFICE OF THE MAJORITY WHIP,3,GENERAL EXPENDITURES,SUPPLIES AND MATERIALS,DETAIL,2022-09-07,AP,1593291,CITI PCARD-IC  COSTCO BY INSTACAR,2022-07-25,2022-07-25,FOOD & BEVERAGE,58.18,2022
,2022 OFFICE OF THE MAJORITY WHIP,3,GENERAL EXPENDITURES,SUPPLIES AND MATERIALS,DETAIL,2022-09-07,AP,1593291,CITI PCARD-IC  COSTCO BY INSTACAR,2022-07-27,2022-07-27,FOOD & BEVERAGE,182.84,2022
,2022 OFFICE OF THE MAJORITY WHIP,3,GENERAL EXPENDITURES,SUPPLIES AND MATERIALS,DETAIL,2022-09-07,AP,1593291,CITI PCARD-IC  INSTACART,2022-07-19,2022-07-19,FOOD & BEVERAGE,80.68,2022
,2022 OFFICE OF THE MAJORITY WHIP,3,GENERAL EXPENDITURES,SUPPLIES AND MATERIALS,DETAIL,2022-09-07,AP,1593291,CITI PCARD-IC  INSTACART,2022-07-21,2022-07-21,FOOD & BEVERAGE,18.46,2022
,2022 OFFICE OF THE MAJORITY WHIP,3,GENERAL EXPENDITURES,SUPPLIES AND MATERIALS,DETAIL,2022-09-07,AP,1593291,CITI PCARD-IC  INSTACART,2022-07-25,2022-07-25,FOOD & BEVERAGE,45.05,2022
,2022 OFFICE OF THE MAJORITY WHIP,3,GENERAL EXPENDITURES,SUPPLIES AND MATERIALS,DETAIL,2022-09-07,AP,1593291,CITI PCARD-IC  INSTACART,2022-07-27,2022-07-27,FOOD & BEVERAGE,196.72,2022
,2022 OFFICE OF THE MAJORITY WHIP,3,GENERAL EXPENDITURES,SUPPLIES AND MATERIALS,DETAIL,2022-09-07,AP,1593475,CITI PCARD-AMAZON.COM 418U01QE3 AMZN,2022-07-06,2022-07-06,OFFICE SUPPLIES (OUTSIDE),21.72,2022
,2022 OFFICE OF THE MAJORITY WHIP,3,GENERAL EXPENDITURES,SUPPLIES AND MATERIALS,DETAIL,2022-09-07,AP,1593475,CITI PCARD-AMZN Mktp US GM7JS6SS3,2022-08-16,2022-08-16,OFFICE SUPPLIES (OUTSIDE),53.09,2022
,2022 OFFICE OF THE MAJORITY WHIP,3,GENERAL EXPENDITURES,SUPPLIES AND MATERIALS,DETAIL,2022-09-07,AP,1593475,CITI PCARD-AMZN Mktp US L16K10VX3,2022-06-14,2022-06-14,HABITATION EXPENSE,84.99,2022
,2022 OFFICE OF THE MAJORITY WHIP,3,GENERAL EXPENDITURES,SUPPLIES AND MATERIALS,DETAIL,2022-09-07,AP,1593475,CITI PCARD-AMZN Mktp US X93QM7YS3,2022-06-16,2022-06-16,OFFICE SUPPLIES (OUTSIDE),21.96,2022
,2022 OFFICE OF THE MAJORITY WHIP,3,GENERAL EXPENDITURES,SUPPLIES AND MATERIALS,DETAIL,2022-09-07,AP,1593475,CITI PCARD-AMZN Mktp US YG3IA5NE3,2022-08-18,2022-08-18,OFFICE SUPPLIES (OUTSIDE),16.14,2022
,2022 OFFICE OF THE MAJORITY WHIP,3,GENERAL EXPENDITURES,SUPPLIES AND MATERIALS,DETAIL,2022-09-07,AP,1593475,CITI PCARD-Amazon.com B16U61OV3,2022-06-09,2022-06-09,OFFICE SUPPLIES (OUTSIDE),6.97,2022
,2022 OFFICE OF THE MAJORITY WHIP,3,GENERAL EXPENDITURES,SUPPLIES AND MATERIALS,DETAIL,2022-09-08,AP,1593328,CITI PCARD-AMAZON.COM H69PK6GZ3 AMZN,2022-07-26,2022-07-26,OFFICE SUPPLIES (OUTSIDE),279.39,2022
,2022 OFFICE OF THE MAJORITY WHIP,3,GENERAL EXPENDITURES,SUPPLIES AND MATERIALS,DETAIL,2022-09-08,AP,1593328,CITI PCARD-AMZN Mktp US 8X9QP8MA3,2022-07-18,2022-07-18,OFFICE SUPPLIES (OUTSIDE),124.7,2022
,2022 OFFICE OF THE MAJORITY WHIP,3,GENERAL EXPENDITURES,SUPPLIES AND MATERIALS,DETAIL,2022-09-08,AP,1593328,CITI PCARD-COSTCO BY INSTACART,2022-05-31,2022-05-31,FOOD & BEVERAGE,176.97,2022
,2022 OFFICE OF THE MAJORITY WHIP,3,GENERAL EXPENDITURES,SUPPLIES AND MATERIALS,DETAIL,2022-09-08,AP,1593328,CITI PCARD-COSTCO BY INSTACART,2022-06-22,2022-06-22,FOOD & BEVERAGE,71.52,2022
,2022 OFFICE OF THE MAJORITY WHIP,3,GENERAL EXPENDITURES,SUPPLIES AND MATERIALS,DETAIL,2022-09-08,AP,1593328,CITI PCARD-COSTCO BY INSTACART,2022-07-05,2022-07-05,FOOD & BEVERAGE,320.81,2022
,2022 OFFICE OF THE MAJORITY WHIP,3,GENERAL EXPENDITURES,SUPPLIES AND MATERIALS,DETAIL,2022-09-08,AP,1593328,CITI PCARD-INSTACART,2022-05-31,2022-05-31,FOOD & BEVERAGE,98.5,2022
,2022 OFFICE OF THE MAJORITY WHIP,3,GENERAL EXPENDITURES,SUPPLIES AND MATERIALS,DETAIL,2022-09-08,AP,1593328,CITI PCARD-INSTACART,2022-06-22,2022-06-22,FOOD & BEVERAGE,170.16,2022
,2022 OFFICE OF THE MAJORITY WHIP,3,GENERAL EXPENDITURES,SUPPLIES AND MATERIALS,DETAIL,2022-09-08,AP,1593328,CITI PCARD-INSTACART,2022-05-31,2022-05-31,OFFICE SUPPLIES (OUTSIDE),137.5,2022
,2022 OFFICE OF THE MAJORITY WHIP,3,GENERAL EXPENDITURES,SUPPLIES AND MATERIALS,DETAIL,2022-09-08,AP,1593328,CITI PCARD-INSTACART,2022-06-22,2022-06-22,OFFICE SUPPLIES (OUTSIDE),125.71,2022
,2022 OFFICE OF THE MAJORITY WHIP,3,GENERAL EXPENDITURES,SUPPLIES AND MATERIALS,DETAIL,2022-09-08,AP,1593468,CITI PCARD-IC  COSTCO BY INSTACAR,2022-07-29,2022-07-29,FOOD & BEVERAGE,336.55,2022
,2022 OFFICE OF THE MAJORITY WHIP,3,GENERAL EXPENDITURES,SUPPLIES AND MATERIALS,DETAIL,2022-09-08,AP,1593468,CITI PCARD-IC  COSTCO BY INSTACAR,2022-08-15,2022-08-15,FOOD & BEVERAGE,124.96,2022
,2022 OFFICE OF THE MAJORITY WHIP,3,GENERAL EXPENDITURES,SUPPLIES AND MATERIALS,DETAIL,2022-09-08,AP,1593468,CITI PCARD-IC  INSTACART,2022-07-29,2022-07-29,FOOD & BEVERAGE,43.58,2022
,2022 OFFICE OF THE MAJORITY WHIP,3,GENERAL EXPENDITURES,SUPPLIES AND MATERIALS,DETAIL,2022-09-08,AP,1593468,CITI PCARD-IC  INSTACART,2022-08-08,2022-08-08,FOOD & BEVERAGE,227.56,2022
,2022 OFFICE OF THE MAJORITY WHIP,3,GENERAL EXPENDITURES,SUPPLIES AND MATERIALS,DETAIL,2022-09-08,AP,1593468,CITI PCARD-IC  INSTACART,2022-08-15,2022-08-15,FOOD & BEVERAGE,36.91,2022
,2022 OFFICE OF THE MAJORITY WHIP,3,GENERAL EXPENDITURES,SUPPLIES AND MATERIALS,DETAIL,2022-09-08,AP,1593468,CITI PCARD-SAINT GERMAIN CATERING,2022-06-08,2022-06-08,FOOD & BEVERAGE,5293.2,2022
,2022 OFFICE OF THE MAJORITY WHIP,3,GENERAL EXPENDITURES,SUPPLIES AND MATERIALS,DETAIL,2022-09-08,AP,1593468,CITI PCARD-TALAY THAI RESTAURANT-,2022-06-23,2022-06-23,FOOD & BEVERAGE,279.25,2022
,2022 OFFICE OF THE MAJORITY WHIP,3,GENERAL EXPENDITURES,SUPPLIES AND MATERIALS,DETAIL,2022-09-08,AP,1593468,CITI PCARD-WE THE PIZZA,2022-06-15,2022-06-15,FOOD & BEVERAGE,429.81,2022
,2022 OFFICE OF THE MAJORITY WHIP,3,GENERAL EXPENDITURES,SUPPLIES AND MATERIALS,DETAIL,2022-09-08,AP,1593542,CITI PCARD-APPLE.COM/BILL,2022-05-01,2022-05-31,SOFTWARE  LESS THAN  $500,10.59,2022
,2022 OFFICE OF THE MAJORITY WHIP,3,GENERAL EXPENDITURES,SUPPLIES AND MATERIALS,DETAIL,2022-09-08,AP,1593542,CITI PCARD-IC  COSTCO BY INSTACAR,2022-08-08,2022-08-08,FOOD & BEVERAGE,57.46,2022
,2022 OFFICE OF THE MAJORITY WHIP,3,GENERAL EXPENDITURES,SUPPLIES AND MATERIALS,DETAIL,2022-09-30,GL,RMS0118964, ,2022-09-01,2022-09-30,OFFICE SUPPLY (TRANSFER),528.72,2022
,2022 OFFICE OF THE MAJORITY WHIP,3,GENERAL EXPENDITURES,SUPPLIES AND MATERIALS,SUBTOTAL,   ,   ,   ,   ,   ,   ,SUPPLIES AND MATERIALS TOTALS:,43501.7,2022
,2022 OFFICE OF THE MAJORITY WHIP,3,GENERAL EXPENDITURES,EQUIPMENT,DETAIL,2022-07-29,GL,MNT0117166, ,2022-07-01,2022-07-31,MAINTENANCE / REPAIRS,355,2022
,2022 OFFICE OF THE MAJORITY WHIP,3,GENERAL EXPENDITURES,EQUIPMENT,DETAIL,2022-08-31,GL,MNT0117948, ,2022-08-01,2022-08-31,MAINTENANCE / REPAIRS,355,2022
,2022 OFFICE OF THE MAJORITY WHIP,3,GENERAL EXPENDITURES,EQUIPMENT,DETAIL,2022-09-30,GL,MNT0118823, ,2022-09-01,2022-09-30,MAINTENANCE / REPAIRS,355,2022
,2022 OFFICE OF THE MAJORITY WHIP,3,GENERAL EXPENDITURES,EQUIPMENT,SUBTOTAL,   ,   ,   ,   ,   ,   ,EQUIPMENT TOTALS:,1065,2022
,2022 OFFICE OF THE MAJORITY WHIP,3,GENERAL EXPENDITURES,EQUIPMENT,SUBTOTAL,   ,   ,   ,   ,   ,   ,GENERAL EXPENDITURES TOTALS:,513718.81,2022
,2022 OFFICE OF THE MAJORITY WHIP,3,GENERAL EXPENDITURES,EQUIPMENT,GRAND TOTAL FOR ORGANIZATION,   ,   ,   ,   ,   ,   ,OFFICE TOTALS: ,513718.81,2022
,2021 OFFICE OF THE MAJORITY WHIP,3,GENERAL EXPENDITURES,SUPPLIES AND MATERIALS,DETAIL,2022-09-01,AP,1592297,STAPLES INC,2021-05-13,2021-05-13,OFFICE SUPPLIES (OUTSIDE),211.24,2022
,2021 OFFICE OF THE MAJORITY WHIP,3,GENERAL EXPENDITURES,SUPPLIES AND MATERIALS,DETAIL,2022-09-02,AP,1590936,STAPLES INC,2021-03-20,2021-03-20,OFFICE SUPPLIES (OUTSIDE),709.76,2022
,2021 OFFICE OF THE MAJORITY WHIP,3,GENERAL EXPENDITURES,SUPPLIES AND MATERIALS,DETAIL,2022-09-02,AP,1592298,STAPLES INC,2021-05-18,2021-05-18,OFFICE SUPPLIES (OUTSIDE),337.39,2022
,2021 OFFICE OF THE MAJORITY WHIP,3,GENERAL EXPENDITURES,SUPPLIES AND MATERIALS,DETAIL,2022-09-02,AP,1592299,STAPLES INC,2021-05-18,2021-05-18,OFFICE SUPPLIES (OUTSIDE),348.87,2022
,2021 OFFICE OF THE MAJORITY WHIP,3,GENERAL EXPENDITURES,SUPPLIES AND MATERIALS,DETAIL,2022-09-02,AP,1592300,STAPLES INC,2021-06-09,2021-06-09,OFFICE SUPPLIES (OUTSIDE),101.81,2022
,2021 OFFICE OF THE MAJORITY WHIP,3,GENERAL EXPENDITURES,SUPPLIES AND MATERIALS,DETAIL,2022-09-02,AP,1592301,STAPLES INC,2021-07-28,2021-07-28,OFFICE SUPPLIES (OUTSIDE),286.14,2022
,2021 OFFICE OF THE MAJORITY WHIP,3,GENERAL EXPENDITURES,SUPPLIES AND MATERIALS,DETAIL,2022-09-02,AP,1592302,STAPLES INC,2021-07-29,2021-07-29,OFFICE SUPPLIES (OUTSIDE),801.58,2022
,2021 OFFICE OF THE MAJORITY WHIP,3,GENERAL EXPENDITURES,SUPPLIES AND MATERIALS,DETAIL,2022-09-08,AP,1593223,STAPLES INC,2021-03-20,2021-03-20,OFFICE SUPPLIES (OUTSIDE),271.87,2022
,2021 OFFICE OF THE MAJORITY WHIP,3,GENERAL EXPENDITURES,SUPPLIES AND MATERIALS,DETAIL,2022-09-08,AP,1593542,CITI PCARD-THEPOSTANDCO ONLINE,2022-01-01,2022-12-31,PUBLICATIONS/REFERENCE MAT'L,155,2022
,2021 OFFICE OF THE MAJORITY WHIP,3,GENERAL EXPENDITURES,SUPPLIES AND MATERIALS,SUBTOTAL,   ,   ,   ,   ,   ,   ,SUPPLIES AND MATERIALS TOTALS:,3223.66,2022
,2021 OFFICE OF THE MAJORITY WHIP,3,GENERAL EXPENDITURES,SUPPLIES AND MATERIALS,SUBTOTAL,   ,   ,   ,   ,   ,   ,GENERAL EXPENDITURES TOTALS:,3223.66,2022
,2021 OFFICE OF THE MAJORITY WHIP,3,GENERAL EXPENDITURES,SUPPLIES AND MATERIALS,GRAND TOTAL FOR ORGANIZATION,   ,   ,   ,   ,   ,   ,OFFICE TOTALS: ,3223.66,2022
,2020 OFFICE OF THE MAJORITY WHIP,3,GENERAL EXPENDITURES,SUPPLIES AND MATERIALS,DETAIL,2022-08-30,AP,1590935,STAPLES INC,2020-10-08,2020-10-08,OFFICE SUPPLIES (OUTSIDE),813.32,2022
,2020 OFFICE OF THE MAJORITY WHIP,3,GENERAL EXPENDITURES,SUPPLIES AND MATERIALS,SUBTOTAL,   ,   ,   ,   ,   ,   ,SUPPLIES AND MATERIALS TOTALS:,813.32,2022
,2020 OFFICE OF THE MAJORITY WHIP,3,GENERAL EXPENDITURES,SUPPLIES AND MATERIALS,SUBTOTAL,   ,   ,   ,   ,   ,   ,GENERAL EXPENDITURES TOTALS:,813.32,2022
,2020 OFFICE OF THE MAJORITY WHIP,3,GENERAL EXPENDITURES,SUPPLIES AND MATERIALS,GRAND TOTAL FOR ORGANIZATION,   ,   ,   ,   ,   ,   ,OFFICE TOTALS: ,813.32,2022
,2022 OFFICE OF THE MAJORITY WHIP,3,INTERN ALLOWANCES,PERSONNEL COMPENSATION,DETAIL,   ,   ,   ,ARRADAZA JACELYN K.,2022-09-08,2022-09-30,MAJ WHIP PAID INTERN - HOUSE P,1916.67,2022
,2022 OFFICE OF THE MAJORITY WHIP,3,INTERN ALLOWANCES,PERSONNEL COMPENSATION,DETAIL,   ,   ,   ,EBERLIN VIRGINIA R.,2022-09-08,2022-09-30,MAJ WHIP PAID INTERN - HOUSE P,1916.67,2022
,2022 OFFICE OF THE MAJORITY WHIP,3,INTERN ALLOWANCES,PERSONNEL COMPENSATION,DETAIL,   ,   ,   ,LAL ISHAN S.,2022-09-09,2022-09-30,MAJ WHIP PAID INTERN - HOUSE P,1344.44,2022
,2022 OFFICE OF THE MAJORITY WHIP,3,INTERN ALLOWANCES,PERSONNEL COMPENSATION,DETAIL,   ,   ,   ,MILTON AARON C.,2022-07-01,2022-08-07,MAJ WHIP PAID INTERN - HOUSE P,3956.94,2022
,2022 OFFICE OF THE MAJORITY WHIP,3,INTERN ALLOWANCES,PERSONNEL COMPENSATION,DETAIL,   ,   ,   ,SAGAR ANITA,2022-07-11,2022-08-15,MAJ WHIP PAID INTERN - HOUSE P,3743.06,2022
,2022 OFFICE OF THE MAJORITY WHIP,3,INTERN ALLOWANCES,PERSONNEL COMPENSATION,SUBTOTAL,   ,   ,   ,   ,   ,   ,PERSONNEL COMPENSATION TOTALS:,12877.78,2022
,2022 OFFICE OF THE MAJORITY WHIP,3,INTERN ALLOWANCES,PERSONNEL COMPENSATION,SUBTOTAL,   ,   ,   ,   ,   ,   ,INTERN ALLOWANCES TOTALS:,12877.78,2022
,2022 OFFICE OF THE MAJORITY WHIP,3,INTERN ALLOWANCES,PERSONNEL COMPENSATION,GRAND TOTAL FOR ORGANIZATION,   ,   ,   ,   ,   ,   ,OFFICE TOTALS: ,12877.78,2022
,2022 OFFICE OF THE MINORITY WHIP,3,GENERAL EXPENDITURES,PERSONNEL COMPENSATION,DETAIL,   ,   ,   ,ACORNLEY MARK A.,2022-07-01,2022-09-30,FINANCIAL ADMINISTRATOR,5000.01,2022
,2022 OFFICE OF THE MINORITY WHIP,3,GENERAL EXPENDITURES,PERSONNEL COMPENSATION,DETAIL,   ,   ,   ,ADAMS SARA,2022-07-11,2022-09-30,SCHEDULER,10888.88,2022
,2022 OFFICE OF THE MINORITY WHIP,3,GENERAL EXPENDITURES,PERSONNEL COMPENSATION,DETAIL,   ,   ,   ,ADCOCK AUSTEN L,2022-07-01,2022-09-30,STAFF ASSISTANT,13250,2022
,2022 OFFICE OF THE MINORITY WHIP,3,GENERAL EXPENDITURES,PERSONNEL COMPENSATION,DETAIL,   ,   ,   ,BROOKE JR FRANCIS J.,2022-07-01,2022-09-30,LEGISLATIVE COUNSEL,23249.99,2022
,2022 OFFICE OF THE MINORITY WHIP,3,GENERAL EXPENDITURES,PERSONNEL COMPENSATION,DETAIL,   ,   ,   ,COMER II MICHAEL D,2022-07-01,2022-09-30,DEPUTY COMMUNICATIONS DIRECTOR,38249.99,2022
,2022 OFFICE OF THE MINORITY WHIP,3,GENERAL EXPENDITURES,PERSONNEL COMPENSATION,DETAIL,   ,   ,   ,FINE LAUREN R,2022-07-01,2022-09-30,COMMUNICATIONS DIRECTOR,28541.67,2022
,2022 OFFICE OF THE MINORITY WHIP,3,GENERAL EXPENDITURES,PERSONNEL COMPENSATION,DETAIL,   ,   ,   ,HORTON BRETT H.,2022-07-01,2022-09-30,CHIEF OF STAFF,50625,2022
,2022 OFFICE OF THE MINORITY WHIP,3,GENERAL EXPENDITURES,PERSONNEL COMPENSATION,DETAIL,   ,   ,   ,HOUT QUENTIN,2022-09-12,2022-09-30,STAFF ASSISTANT,2375,2022
,2022 OFFICE OF THE MINORITY WHIP,3,GENERAL EXPENDITURES,PERSONNEL COMPENSATION,DETAIL,   ,   ,   ,KOOHMARAIE BIJAN,2022-07-01,2022-09-30,COUNSEL,44500.01,2022
,2022 OFFICE OF THE MINORITY WHIP,3,GENERAL EXPENDITURES,PERSONNEL COMPENSATION,DETAIL,   ,   ,   ,KRIEGER ROBYN W,2022-07-01,2022-07-10,STAFF ASSISTANT,1527.78,2022
,2022 OFFICE OF THE MINORITY WHIP,3,GENERAL EXPENDITURES,PERSONNEL COMPENSATION,DETAIL,   ,   ,   ,LOVELL HUNTER J.,2022-07-01,2022-08-31,DEPUTY PRESS SECRETARY,3333.34,2022
,2022 OFFICE OF THE MINORITY WHIP,3,GENERAL EXPENDITURES,PERSONNEL COMPENSATION,DETAIL,   ,   ,   ,MCINTOSH ARTHUR R.,2022-07-01,2022-09-30,SPECIAL ASSISTANT,17500.01,2022
,2022 OFFICE OF THE MINORITY WHIP,3,GENERAL EXPENDITURES,PERSONNEL COMPENSATION,DETAIL,   ,   ,   ,MILLS MARTHA D.,2022-07-01,2022-09-30,PRESS ASSISTANT,13250,2022
,2022 OFFICE OF THE MINORITY WHIP,3,GENERAL EXPENDITURES,PERSONNEL COMPENSATION,DETAIL,   ,   ,   ,MILLS TY H.,2022-09-12,2022-09-30,STAFF ASSISTANT,2375,2022
,2022 OFFICE OF THE MINORITY WHIP,3,GENERAL EXPENDITURES,PERSONNEL COMPENSATION,DETAIL,   ,   ,   ,MINKLER ANN W.,2022-07-01,2022-09-30,COS TO THE CHIEF DEP WHIP,10500,2022
,2022 OFFICE OF THE MINORITY WHIP,3,GENERAL EXPENDITURES,PERSONNEL COMPENSATION,DETAIL,   ,   ,   ,MLINAR ALYENE S,2022-07-01,2022-09-30,POLICY ADVISOR,25850.01,2022
,2022 OFFICE OF THE MINORITY WHIP,3,GENERAL EXPENDITURES,PERSONNEL COMPENSATION,DETAIL,   ,   ,   ,NAFT JEFFREY C,2022-07-01,2022-09-30,COMMUNICATIONS ADVISOR,26500.01,2022
,2022 OFFICE OF THE MINORITY WHIP,3,GENERAL EXPENDITURES,PERSONNEL COMPENSATION,DETAIL,   ,   ,   ,NALLS DENNIS A,2022-07-01,2022-09-30,FLOOR ASSISTANT,26500.01,2022
,2022 OFFICE OF THE MINORITY WHIP,3,GENERAL EXPENDITURES,PERSONNEL COMPENSATION,DETAIL,   ,   ,   ,NAPIER BENJAMIN W,2022-07-01,2022-09-30,FLOOR DIRECTOR,43749.99,2022
,2022 OFFICE OF THE MINORITY WHIP,3,GENERAL EXPENDITURES,PERSONNEL COMPENSATION,DETAIL,   ,   ,   ,REISING JOHN B,2022-07-01,2022-09-30,MEMBER SERVICES DIRECTOR,50175,2022
,2022 OFFICE OF THE MINORITY WHIP,3,GENERAL EXPENDITURES,PERSONNEL COMPENSATION,DETAIL,   ,   ,   ,RYBCZYK REBECCA N.,2022-08-29,2022-09-30,LOUISIANA PRESS SECRETARY,1777.78,2022
,2022 OFFICE OF THE MINORITY WHIP,3,GENERAL EXPENDITURES,PERSONNEL COMPENSATION,DETAIL,   ,   ,   ,SCHMITZ ERIC T,2022-07-01,2022-09-30,COALITIONS COORDINATOR,33250.01,2022
,2022 OFFICE OF THE MINORITY WHIP,3,GENERAL EXPENDITURES,PERSONNEL COMPENSATION,DETAIL,   ,   ,   ,SEHER ELLEN G.,2022-07-01,2022-09-30,DIRECTOR OF OPERATIONS,45749.99,2022
,2022 OFFICE OF THE MINORITY WHIP,3,GENERAL EXPENDITURES,PERSONNEL COMPENSATION,DETAIL,   ,   ,   ,SUGARMAN ALEC J.,2022-07-01,2022-09-30,POLICY ADVISOR,39500,2022
,2022 OFFICE OF THE MINORITY WHIP,3,GENERAL EXPENDITURES,PERSONNEL COMPENSATION,DETAIL,   ,   ,   ,TARTAKOVSKY ANDREW,2022-07-01,2022-09-02,STAFF ASSISTANT,9250,2022
,2022 OFFICE OF THE MINORITY WHIP,3,GENERAL EXPENDITURES,PERSONNEL COMPENSATION,DETAIL,   ,   ,   ,WIEAND JR JEFFREY L,2022-07-01,2022-09-30,COUNSEL,28250,2022
,2022 OFFICE OF THE MINORITY WHIP,3,GENERAL EXPENDITURES,PERSONNEL COMPENSATION,SUBTOTAL,   ,   ,   ,   ,   ,   ,PERSONNEL COMPENSATION TOTALS:,595719.48,2022
,2022 OFFICE OF THE MINORITY WHIP,3,GENERAL EXPENDITURES,TRAVEL,DETAIL,2022-09-28,AP,1586917,CITIBANK GOV CARD SERVICE,2022-09-19,2022-09-22,AIRFARE COMMERCIAL TRANSPORT,281.2,2022
,2022 OFFICE OF THE MINORITY WHIP,3,GENERAL EXPENDITURES,TRAVEL,SUBTOTAL,   ,   ,   ,   ,   ,   ,TRAVEL TOTALS:,281.2,2022
,2022 OFFICE OF THE MINORITY WHIP,3,GENERAL EXPENDITURES,RENT  COMMUNICATION  UTILITIES,DETAIL,2022-07-26,GL,EMS0117018, ,2022-06-01,2022-06-30,DC TELECOM EQUIP (TRANSFER),208,2022
,2022 OFFICE OF THE MINORITY WHIP,3,GENERAL EXPENDITURES,RENT  COMMUNICATION  UTILITIES,DETAIL,2022-07-26,GL,EMS0117018, ,2022-06-01,2022-06-30,DC TELECOM SERV (TRANSFER),248,2022
,2022 OFFICE OF THE MINORITY WHIP,3,GENERAL EXPENDITURES,RENT  COMMUNICATION  UTILITIES,DETAIL,2022-07-26,GL,EMS0117018, ,2022-06-01,2022-06-30,DC TELECOM TOLLS (TRANSFER),6026.84,2022
,2022 OFFICE OF THE MINORITY WHIP,3,GENERAL EXPENDITURES,RENT  COMMUNICATION  UTILITIES,DETAIL,2022-08-01,AP,1578065,CITI PCARD-GOOGLE  YouTube TV,2022-06-25,2022-07-24,UTILITIES,68.89,2022
,2022 OFFICE OF THE MINORITY WHIP,3,GENERAL EXPENDITURES,RENT  COMMUNICATION  UTILITIES,DETAIL,2022-08-25,GL,EMS0117770, ,2022-07-01,2022-07-31,DC TELECOM EQUIP (TRANSFER),76,2022
,2022 OFFICE OF THE MINORITY WHIP,3,GENERAL EXPENDITURES,RENT  COMMUNICATION  UTILITIES,DETAIL,2022-08-25,GL,EMS0117770, ,2022-07-01,2022-07-31,DC TELECOM SERV (TRANSFER),248,2022
,2022 OFFICE OF THE MINORITY WHIP,3,GENERAL EXPENDITURES,RENT  COMMUNICATION  UTILITIES,DETAIL,2022-08-25,GL,EMS0117770, ,2022-07-01,2022-07-31,DC TELECOM TOLLS (TRANSFER),6373.4,2022
,2022 OFFICE OF THE MINORITY WHIP,3,GENERAL EXPENDITURES,RENT  COMMUNICATION  UTILITIES,DETAIL,2022-09-28,GL,EMS0118774, ,2022-08-01,2022-08-31,DC TELECOM EQUIP (TRANSFER),172,2022
,2022 OFFICE OF THE MINORITY WHIP,3,GENERAL EXPENDITURES,RENT  COMMUNICATION  UTILITIES,DETAIL,2022-09-28,GL,EMS0118774, ,2022-08-01,2022-08-31,DC TELECOM SERV (TRANSFER),248,2022
,2022 OFFICE OF THE MINORITY WHIP,3,GENERAL EXPENDITURES,RENT  COMMUNICATION  UTILITIES,DETAIL,2022-09-28,GL,EMS0118774, ,2022-08-01,2022-08-31,DC TELECOM TOLLS (TRANSFER),6077.01,2022
,2022 OFFICE OF THE MINORITY WHIP,3,GENERAL EXPENDITURES,RENT  COMMUNICATION  UTILITIES,SUBTOTAL,   ,   ,   ,   ,   ,   ,RENT  COMMUNICATION  UTILITIES TOTALS:,19746.14,2022
,2022 OFFICE OF THE MINORITY WHIP,3,GENERAL EXPENDITURES,PRINTING AND REPRODUCTION,DETAIL,2022-07-26,AP,1568911,ACCURATE WORD,2022-06-03,2022-06-03,NON-FRANKABLE PRINTING & REPRO,33,2022
,2022 OFFICE OF THE MINORITY WHIP,3,GENERAL EXPENDITURES,PRINTING AND REPRODUCTION,DETAIL,2022-07-26,AP,1576706,ACCURATE WORD,2022-07-01,2022-07-01,NON-FRANKABLE PRINTING & REPRO,33,2022
,2022 OFFICE OF THE MINORITY WHIP,3,GENERAL EXPENDITURES,PRINTING AND REPRODUCTION,DETAIL,2022-07-26,AP,1583143,ACCURATE WORD,2022-07-20,2022-07-20,NON-FRANKABLE PRINTING & REPRO,99,2022
,2022 OFFICE OF THE MINORITY WHIP,3,GENERAL EXPENDITURES,PRINTING AND REPRODUCTION,DETAIL,2022-09-07,AP,1587011,CITI PCARD-STK Shutterstock,2022-07-20,2022-08-19,FRANKABLE PRINTING & REPROD,49,2022
,2022 OFFICE OF THE MINORITY WHIP,3,GENERAL EXPENDITURES,PRINTING AND REPRODUCTION,DETAIL,2022-09-27,GL,MED0118656, ,2022-09-02,2022-09-02,PHOTOGRAPHIC (TRANSFER),5.1,2022
,2022 OFFICE OF THE MINORITY WHIP,3,GENERAL EXPENDITURES,PRINTING AND REPRODUCTION,SUBTOTAL,   ,   ,   ,   ,   ,   ,PRINTING AND REPRODUCTION TOTALS:,219.1,2022
,2022 OFFICE OF THE MINORITY WHIP,3,GENERAL EXPENDITURES,OTHER SERVICES,DETAIL,2022-08-01,AP,1578065,CITI PCARD-APPLE.COM/BILL,2022-05-29,2022-06-28,TECHNOLOGY SERVICE CONTRACTS,5.29,2022
,2022 OFFICE OF THE MINORITY WHIP,3,GENERAL EXPENDITURES,OTHER SERVICES,DETAIL,2022-08-01,AP,1578065,CITI PCARD-APPLE.COM/BILL,2022-05-30,2022-06-29,TECHNOLOGY SERVICE CONTRACTS,3.17,2022
,2022 OFFICE OF THE MINORITY WHIP,3,GENERAL EXPENDITURES,OTHER SERVICES,DETAIL,2022-08-01,AP,1578065,CITI PCARD-APPLE.COM/BILL,2022-06-09,2022-07-08,TECHNOLOGY SERVICE CONTRACTS,1.05,2022
,2022 OFFICE OF THE MINORITY WHIP,3,GENERAL EXPENDITURES,OTHER SERVICES,DETAIL,2022-08-01,AP,1578065,CITI PCARD-APPLE.COM/BILL,2022-06-23,2022-07-22,TECHNOLOGY SERVICE CONTRACTS,3.17,2022
,2022 OFFICE OF THE MINORITY WHIP,3,GENERAL EXPENDITURES,OTHER SERVICES,DETAIL,2022-08-01,AP,1578065,CITI PCARD-APPLE.COM/BILL,2022-06-28,2022-07-27,TECHNOLOGY SERVICE CONTRACTS,3.17,2022
,2022 OFFICE OF THE MINORITY WHIP,3,GENERAL EXPENDITURES,OTHER SERVICES,DETAIL,2022-08-01,AP,1578065,CITI PCARD-GOOGLE  Google Storage,2022-06-14,2022-07-13,TECHNOLOGY SERVICE CONTRACTS,10.59,2022
,2022 OFFICE OF THE MINORITY WHIP,3,GENERAL EXPENDITURES,OTHER SERVICES,DETAIL,2022-08-01,AP,1578065,CITI PCARD-MAILCHIMP    MISC,2022-06-07,2022-07-06,WEB DEV HST EMAIL & RLTD SERV,314.81,2022
,2022 OFFICE OF THE MINORITY WHIP,3,GENERAL EXPENDITURES,OTHER SERVICES,DETAIL,2022-09-07,AP,1587011,CITI PCARD-APPLE.COM/BILL,2022-06-28,2022-07-27,TECHNOLOGY SERVICE CONTRACTS,3.17,2022
,2022 OFFICE OF THE MINORITY WHIP,3,GENERAL EXPENDITURES,OTHER SERVICES,DETAIL,2022-09-07,AP,1587011,CITI PCARD-APPLE.COM/BILL,2022-06-29,2022-07-28,TECHNOLOGY SERVICE CONTRACTS,5.29,2022
,2022 OFFICE OF THE MINORITY WHIP,3,GENERAL EXPENDITURES,OTHER SERVICES,DETAIL,2022-09-07,AP,1587011,CITI PCARD-APPLE.COM/BILL,2022-06-30,2022-07-29,TECHNOLOGY SERVICE CONTRACTS,3.17,2022
,2022 OFFICE OF THE MINORITY WHIP,3,GENERAL EXPENDITURES,OTHER SERVICES,DETAIL,2022-09-07,AP,1587011,CITI PCARD-APPLE.COM/BILL,2022-07-09,2022-08-08,TECHNOLOGY SERVICE CONTRACTS,1.05,2022
,2022 OFFICE OF THE MINORITY WHIP,3,GENERAL EXPENDITURES,OTHER SERVICES,DETAIL,2022-09-07,AP,1587011,CITI PCARD-APPLE.COM/BILL,2022-07-23,2022-08-22,TECHNOLOGY SERVICE CONTRACTS,3.17,2022
,2022 OFFICE OF THE MINORITY WHIP,3,GENERAL EXPENDITURES,OTHER SERVICES,DETAIL,2022-09-07,AP,1587011,CITI PCARD-GOOGLE  Google Storage,2022-07-14,2022-08-13,TECHNOLOGY SERVICE CONTRACTS,10.59,2022
,2022 OFFICE OF THE MINORITY WHIP,3,GENERAL EXPENDITURES,OTHER SERVICES,DETAIL,2022-09-07,AP,1587011,CITI PCARD-GOOGLE  YouTube TV,2022-07-25,2022-08-24,TECHNOLOGY SERVICE CONTRACTS,68.89,2022
,2022 OFFICE OF THE MINORITY WHIP,3,GENERAL EXPENDITURES,OTHER SERVICES,DETAIL,2022-09-07,AP,1587011,CITI PCARD-MAILCHIMP    MISC,2022-07-07,2022-08-06,WEB DEV HST EMAIL & RLTD SERV,314.81,2022
,2022 OFFICE OF THE MINORITY WHIP,3,GENERAL EXPENDITURES,OTHER SERVICES,SUBTOTAL,   ,   ,   ,   ,   ,   ,OTHER SERVICES TOTALS:,751.39,2022
,2022 OFFICE OF THE MINORITY WHIP,3,GENERAL EXPENDITURES,SUPPLIES AND MATERIALS,DETAIL,2022-07-27,AP,1572367,GEORGE W ALLEN LLC,2022-06-16,2022-06-16,FOOD & BEVERAGE,19.79,2022
,2022 OFFICE OF THE MINORITY WHIP,3,GENERAL EXPENDITURES,SUPPLIES AND MATERIALS,DETAIL,2022-07-27,AP,1574761,GEORGE W ALLEN LLC,2022-06-23,2022-06-23,FOOD & BEVERAGE,29.73,2022
,2022 OFFICE OF THE MINORITY WHIP,3,GENERAL EXPENDITURES,SUPPLIES AND MATERIALS,DETAIL,2022-07-27,AP,1575150,QUENCH USA LLC,2022-07-01,2022-07-31,WATER,91.27,2022
,2022 OFFICE OF THE MINORITY WHIP,3,GENERAL EXPENDITURES,SUPPLIES AND MATERIALS,DETAIL,2022-07-27,AP,1583266,GEORGE W ALLEN LLC,2022-07-11,2022-07-11,FOOD & BEVERAGE,19.79,2022
,2022 OFFICE OF THE MINORITY WHIP,3,GENERAL EXPENDITURES,SUPPLIES AND MATERIALS,DETAIL,2022-07-29,AP,1583646,QUENCH USA LLC,2022-08-01,2022-08-31,WATER,91.27,2022
,2022 OFFICE OF THE MINORITY WHIP,3,GENERAL EXPENDITURES,SUPPLIES AND MATERIALS,DETAIL,2022-07-31,GL,RMS0117194, ,2022-07-01,2022-07-31,OFFICE SUPPLY (TRANSFER),66.99,2022
,2022 OFFICE OF THE MINORITY WHIP,3,GENERAL EXPENDITURES,SUPPLIES AND MATERIALS,DETAIL,2022-08-01,AP,1578065,CITI PCARD-AMAZON.COM 7V0Z84J33 AMZN,2022-06-21,2022-06-21,OFFICE SUPPLIES (OUTSIDE),73.7,2022
,2022 OFFICE OF THE MINORITY WHIP,3,GENERAL EXPENDITURES,SUPPLIES AND MATERIALS,DETAIL,2022-08-01,AP,1578065,CITI PCARD-AMZN Mktp US 1X2WA0ZM0,2022-05-30,2022-05-30,OFFICE SUPPLIES (OUTSIDE),591.32,2022
,2022 OFFICE OF THE MINORITY WHIP,3,GENERAL EXPENDITURES,SUPPLIES AND MATERIALS,DETAIL,2022-08-01,AP,1578065,CITI PCARD-Amazon.com,2022-05-30,2022-05-30,OFFICE SUPPLIES (OUTSIDE),-169.98,2022
,2022 OFFICE OF THE MINORITY WHIP,3,GENERAL EXPENDITURES,SUPPLIES AND MATERIALS,DETAIL,2022-08-01,AP,1578065,CITI PCARD-Amazon.com 0H69U85S3,2022-06-09,2022-06-09,OFFICE SUPPLIES (OUTSIDE),189.98,2022
,2022 OFFICE OF THE MINORITY WHIP,3,GENERAL EXPENDITURES,SUPPLIES AND MATERIALS,DETAIL,2022-08-01,AP,1578065,CITI PCARD-Amazon.com FK09Z3KA3,2022-06-07,2022-06-07,OFFICE SUPPLIES (OUTSIDE),180.61,2022
,2022 OFFICE OF THE MINORITY WHIP,3,GENERAL EXPENDITURES,SUPPLIES AND MATERIALS,DETAIL,2022-08-01,AP,1578065,CITI PCARD-NYTimes NYTimes,2022-06-18,2022-07-17,PUBLICATIONS/REFERENCE MAT'L,36.04,2022
,2022 OFFICE OF THE MINORITY WHIP,3,GENERAL EXPENDITURES,SUPPLIES AND MATERIALS,DETAIL,2022-08-01,AP,1578065,CITI PCARD-STK Shutterstock,2022-06-26,2022-07-25,SOFTWARE  LESS THAN  $500,169,2022
,2022 OFFICE OF THE MINORITY WHIP,3,GENERAL EXPENDITURES,SUPPLIES AND MATERIALS,DETAIL,2022-08-01,AP,1578065,CITI PCARD-SUB WASHPOST 015043157,2022-06-23,2022-07-22,PUBLICATIONS/REFERENCE MAT'L,10.6,2022
,2022 OFFICE OF THE MINORITY WHIP,3,GENERAL EXPENDITURES,SUPPLIES AND MATERIALS,DETAIL,2022-08-04,AP,1584997,COMER II MICHAEL D.,2022-07-29,2023-07-29,SOFTWARE  LESS THAN  $500,144,2022
,2022 OFFICE OF THE MINORITY WHIP,3,GENERAL EXPENDITURES,SUPPLIES AND MATERIALS,DETAIL,2022-08-10,GL,FRM0117953, ,2022-06-27,2022-07-18,FRAMING (TRANSFER),50,2022
,2022 OFFICE OF THE MINORITY WHIP,3,GENERAL EXPENDITURES,SUPPLIES AND MATERIALS,DETAIL,2022-09-07,AP,1587011,CITI PCARD-ADOBE CREATIVE CLOUD,2022-07-09,2023-07-08,SOFTWARE  LESS THAN  $500,635.87,2022
,2022 OFFICE OF THE MINORITY WHIP,3,GENERAL EXPENDITURES,SUPPLIES AND MATERIALS,DETAIL,2022-09-07,AP,1587011,CITI PCARD-AUDIO IMPLEMENTS LLC,2022-07-14,2022-07-14,OFFICE SUPPLIES (OUTSIDE),61.41,2022
,2022 OFFICE OF THE MINORITY WHIP,3,GENERAL EXPENDITURES,SUPPLIES AND MATERIALS,DETAIL,2022-09-07,AP,1587011,CITI PCARD-D J WALL-ST-JOURNAL,2022-07-20,2022-08-19,PUBLICATIONS/REFERENCE MAT'L,123.99,2022
,2022 OFFICE OF THE MINORITY WHIP,3,GENERAL EXPENDITURES,SUPPLIES AND MATERIALS,DETAIL,2022-09-07,AP,1587011,CITI PCARD-NYTimes NYTimes,2022-07-16,2022-08-15,PUBLICATIONS/REFERENCE MAT'L,36.04,2022
,2022 OFFICE OF THE MINORITY WHIP,3,GENERAL EXPENDITURES,SUPPLIES AND MATERIALS,DETAIL,2022-09-07,AP,1587011,CITI PCARD-STK Shutterstock,2022-07-22,2022-08-21,SOFTWARE  LESS THAN  $500,49,2022
,2022 OFFICE OF THE MINORITY WHIP,3,GENERAL EXPENDITURES,SUPPLIES AND MATERIALS,DETAIL,2022-09-07,AP,1587011,CITI PCARD-STK Shutterstock,2022-07-23,2022-08-22,SOFTWARE  LESS THAN  $500,49,2022
,2022 OFFICE OF THE MINORITY WHIP,3,GENERAL EXPENDITURES,SUPPLIES AND MATERIALS,DETAIL,2022-09-07,AP,1587011,CITI PCARD-STK Shutterstock,2022-07-26,2022-08-18,SOFTWARE  LESS THAN  $500,169,2022
,2022 OFFICE OF THE MINORITY WHIP,3,GENERAL EXPENDITURES,SUPPLIES AND MATERIALS,DETAIL,2022-09-07,AP,1587011,CITI PCARD-SUB WASHPOST 015043157,2022-07-21,2022-08-20,PUBLICATIONS/REFERENCE MAT'L,10.6,2022
,2022 OFFICE OF THE MINORITY WHIP,3,GENERAL EXPENDITURES,SUPPLIES AND MATERIALS,DETAIL,2022-09-07,AP,1593432,QUENCH USA LLC,2022-09-01,2022-09-30,WATER,91.27,2022
,2022 OFFICE OF THE MINORITY WHIP,3,GENERAL EXPENDITURES,SUPPLIES AND MATERIALS,DETAIL,2022-09-28,AP,1595966,CRITICAL MENTION,2022-07-03,2023-01-02,PUBLICATIONS/REFERENCE MAT'L,1500,2022
,2022 OFFICE OF THE MINORITY WHIP,3,GENERAL EXPENDITURES,SUPPLIES AND MATERIALS,DETAIL,2022-09-30,GL,RMS0118964, ,2022-09-01,2022-09-30,OFFICE SUPPLY (TRANSFER),196.33,2022
,2022 OFFICE OF THE MINORITY WHIP,3,GENERAL EXPENDITURES,SUPPLIES AND MATERIALS,SUBTOTAL,   ,   ,   ,   ,   ,   ,SUPPLIES AND MATERIALS TOTALS:,4516.62,2022
,2022 OFFICE OF THE MINORITY WHIP,3,GENERAL EXPENDITURES,EQUIPMENT,DETAIL,2022-07-20,AP,1582233,CDW GOVERNMENT LLC,2022-07-15,2022-07-15,COMPUTER HARDW PURCH  LESS THAN $25 000,7422.84,2022
,2022 OFFICE OF THE MINORITY WHIP,3,GENERAL EXPENDITURES,EQUIPMENT,DETAIL,2022-07-20,AP,1582233,CDW GOVERNMENT LLC,2022-07-15,2022-07-15,WARRANTIES QTY - 2,251.1,2022
,2022 OFFICE OF THE MINORITY WHIP,3,GENERAL EXPENDITURES,EQUIPMENT,DETAIL,2022-07-20,AP,1582233,CDW GOVERNMENT LLC,2022-07-15,2022-07-15,WARRANTIES,284.9,2022
,2022 OFFICE OF THE MINORITY WHIP,3,GENERAL EXPENDITURES,EQUIPMENT,DETAIL,2022-07-29,GL,MNT0117166, ,2022-07-01,2022-07-31,MAINTENANCE / REPAIRS,196,2022
,2022 OFFICE OF THE MINORITY WHIP,3,GENERAL EXPENDITURES,EQUIPMENT,DETAIL,2022-08-01,AP,1578065,CITI PCARD-AMZN Mktp US 1X2F36TN0,2022-05-30,2022-05-30,COMPUTER HARDW PURCH  LESS THAN $25 000,740.94,2022
,2022 OFFICE OF THE MINORITY WHIP,3,GENERAL EXPENDITURES,EQUIPMENT,DETAIL,2022-08-31,GL,MNT0117948, ,2022-08-01,2022-08-31,MAINTENANCE / REPAIRS,196,2022
,2022 OFFICE OF THE MINORITY WHIP,3,GENERAL EXPENDITURES,EQUIPMENT,DETAIL,2022-09-30,GL,MNT0118823, ,2022-09-01,2022-09-30,MAINTENANCE / REPAIRS,196,2022
,2022 OFFICE OF THE MINORITY WHIP,3,GENERAL EXPENDITURES,EQUIPMENT,SUBTOTAL,   ,   ,   ,   ,   ,   ,EQUIPMENT TOTALS:,9287.78,2022
,2022 OFFICE OF THE MINORITY WHIP,3,GENERAL EXPENDITURES,EQUIPMENT,SUBTOTAL,   ,   ,   ,   ,   ,   ,GENERAL EXPENDITURES TOTALS:,630521.71,2022
,2022 OFFICE OF THE MINORITY WHIP,3,GENERAL EXPENDITURES,EQUIPMENT,GRAND TOTAL FOR ORGANIZATION,   ,   ,   ,   ,   ,   ,OFFICE TOTALS: ,630521.71,2022
,2022 OFFICE OF THE MINORITY WHIP,3,INTERN ALLOWANCES,PERSONNEL COMPENSATION,DETAIL,   ,   ,   ,AGNEW CLARK L.,2022-07-18,2022-08-25,MIN WHIP PAID INTERN - HOUSE P,633.34,2022
,2022 OFFICE OF THE MINORITY WHIP,3,INTERN ALLOWANCES,PERSONNEL COMPENSATION,DETAIL,   ,   ,   ,BARBIERI ROCCO A.,2022-09-06,2022-09-30,MIN WHIP PAID INTERN - HOUSE P,625,2022
,2022 OFFICE OF THE MINORITY WHIP,3,INTERN ALLOWANCES,PERSONNEL COMPENSATION,DETAIL,   ,   ,   ,BLEH MAXWELL E.,2022-07-18,2022-08-19,MIN WHIP PAID INTERN - HOUSE P,533.34,2022
,2022 OFFICE OF THE MINORITY WHIP,3,INTERN ALLOWANCES,PERSONNEL COMPENSATION,DETAIL,   ,   ,   ,CRYSTAL COLE M.,2022-07-18,2022-09-30,MIN WHIP PAID INTERN - HOUSE P,1216.67,2022
,2022 OFFICE OF THE MINORITY WHIP,3,INTERN ALLOWANCES,PERSONNEL COMPENSATION,DETAIL,   ,   ,   ,CULPEPPER ROBERT F.,2022-07-01,2022-08-31,MIN WHIP PAID INTERN - HOUSE P,1000,2022
,2022 OFFICE OF THE MINORITY WHIP,3,INTERN ALLOWANCES,PERSONNEL COMPENSATION,DETAIL,   ,   ,   ,DRONET PRESLEY C.,2022-07-01,2022-07-15,MIN WHIP PAID INTERN - HOUSE P,250,2022
,2022 OFFICE OF THE MINORITY WHIP,3,INTERN ALLOWANCES,PERSONNEL COMPENSATION,DETAIL,   ,   ,   ,ERICKSON DAVID,2022-07-01,2022-07-15,MIN WHIP PAID INTERN - HOUSE P,250,2022
,2022 OFFICE OF THE MINORITY WHIP,3,INTERN ALLOWANCES,PERSONNEL COMPENSATION,DETAIL,   ,   ,   ,FINEGAN KERRIE E,2022-07-01,2022-07-15,MIN WHIP PAID INTERN - HOUSE P,250,2022
,2022 OFFICE OF THE MINORITY WHIP,3,INTERN ALLOWANCES,PERSONNEL COMPENSATION,DETAIL,   ,   ,   ,HARRISON AUSTIN K.,2022-09-09,2022-09-30,MIN WHIP PAID INTERN - HOUSE P,568.33,2022
,2022 OFFICE OF THE MINORITY WHIP,3,INTERN ALLOWANCES,PERSONNEL COMPENSATION,DETAIL,   ,   ,   ,HARVEY COLIN,2022-07-01,2022-07-15,MIN WHIP PAID INTERN - HOUSE P,250,2022
,2022 OFFICE OF THE MINORITY WHIP,3,INTERN ALLOWANCES,PERSONNEL COMPENSATION,DETAIL,   ,   ,   ,HELLMANN HANS R,2022-07-01,2022-07-15,MIN WHIP PAID INTERN - HOUSE P,250,2022
,2022 OFFICE OF THE MINORITY WHIP,3,INTERN ALLOWANCES,PERSONNEL COMPENSATION,DETAIL,   ,   ,   ,INGRAM EMILY K.,2022-07-18,2022-08-19,MIN WHIP PAID INTERN - HOUSE P,533.34,2022
,2022 OFFICE OF THE MINORITY WHIP,3,INTERN ALLOWANCES,PERSONNEL COMPENSATION,DETAIL,   ,   ,   ,LAGROUE LOGAN B.,2022-08-30,2022-09-30,MIN WHIP PAID INTERN - HOUSE P,465,2022
,2022 OFFICE OF THE MINORITY WHIP,3,INTERN ALLOWANCES,PERSONNEL COMPENSATION,DETAIL,   ,   ,   ,MADINCEA NICHOLAS A.,2022-07-01,2022-07-22,MIN WHIP PAID INTERN - HOUSE P,366.67,2022
,2022 OFFICE OF THE MINORITY WHIP,3,INTERN ALLOWANCES,PERSONNEL COMPENSATION,DETAIL,   ,   ,   ,MOHAN PRATAAP A.,2022-07-18,2022-08-19,MIN WHIP PAID INTERN - HOUSE P,533.34,2022
,2022 OFFICE OF THE MINORITY WHIP,3,INTERN ALLOWANCES,PERSONNEL COMPENSATION,DETAIL,   ,   ,   ,PAGE JACKSON W.,2022-07-18,2022-08-19,MIN WHIP PAID INTERN - HOUSE P,533.34,2022
,2022 OFFICE OF THE MINORITY WHIP,3,INTERN ALLOWANCES,PERSONNEL COMPENSATION,DETAIL,   ,   ,   ,POPE ELIZABETH A.,2022-07-01,2022-07-15,MIN WHIP PAID INTERN - HOUSE P,250,2022
,2022 OFFICE OF THE MINORITY WHIP,3,INTERN ALLOWANCES,PERSONNEL COMPENSATION,DETAIL,   ,   ,   ,SALOOM ELISE C.,2022-07-18,2022-08-19,MIN WHIP PAID INTERN - HOUSE P,533.34,2022
,2022 OFFICE OF THE MINORITY WHIP,3,INTERN ALLOWANCES,PERSONNEL COMPENSATION,DETAIL,   ,   ,   ,SCHULTZ ZACHARY A.,2022-07-18,2022-08-26,MIN WHIP PAID INTERN - HOUSE P,650,2022
,2022 OFFICE OF THE MINORITY WHIP,3,INTERN ALLOWANCES,PERSONNEL COMPENSATION,DETAIL,   ,   ,   ,SHILLINGLAW WILLIAM R.,2022-07-15,2022-08-19,MIN WHIP PAID INTERN - HOUSE P,583.34,2022
,2022 OFFICE OF THE MINORITY WHIP,3,INTERN ALLOWANCES,PERSONNEL COMPENSATION,DETAIL,   ,   ,   ,SMITH ZACHARY J.,2022-07-01,2022-07-15,MIN WHIP PAID INTERN - HOUSE P,250,2022
,2022 OFFICE OF THE MINORITY WHIP,3,INTERN ALLOWANCES,PERSONNEL COMPENSATION,DETAIL,   ,   ,   ,VAYNSHTEYN DANIEL E,2022-09-02,2022-09-30,MIN WHIP PAID INTERN - HOUSE P,493,2022
,2022 OFFICE OF THE MINORITY WHIP,3,INTERN ALLOWANCES,PERSONNEL COMPENSATION,SUBTOTAL,   ,   ,   ,   ,   ,   ,PERSONNEL COMPENSATION TOTALS:,11018.05,2022
,2022 OFFICE OF THE MINORITY WHIP,3,INTERN ALLOWANCES,PERSONNEL COMPENSATION,SUBTOTAL,   ,   ,   ,   ,   ,   ,INTERN ALLOWANCES TOTALS:,11018.05,2022
,2022 OFFICE OF THE MINORITY WHIP,3,INTERN ALLOWANCES,PERSONNEL COMPENSATION,GRAND TOTAL FOR ORGANIZATION,   ,   ,   ,   ,   ,   ,OFFICE TOTALS: ,11018.05,2022
,2022 DEMOCRATIC CAUCUS,3,GENERAL EXPENDITURES,PERSONNEL COMPENSATION,DETAIL,   ,   ,   ,ADAMS-MENENDEZ N. NATALIE,2022-07-01,2022-09-30,CAUCUS ASSISTANT,15000,2022
,2022 DEMOCRATIC CAUCUS,3,GENERAL EXPENDITURES,PERSONNEL COMPENSATION,DETAIL,   ,   ,   ,AMUSA JOSEPHINE O.,2022-07-01,2022-09-30,POLICY ADVISOR,17499.99,2022
,2022 DEMOCRATIC CAUCUS,3,GENERAL EXPENDITURES,PERSONNEL COMPENSATION,DETAIL,   ,   ,   ,ARAZI HADAR,2022-07-01,2022-09-30,VC-DIRECTOR OF OPERATIONS,5625,2022
,2022 DEMOCRATIC CAUCUS,3,GENERAL EXPENDITURES,PERSONNEL COMPENSATION,DETAIL,   ,   ,   ,BRAGIN GIDEON,2022-07-01,2022-09-30,EXECUTIVE DIRECTOR,42500.01,2022
,2022 DEMOCRATIC CAUCUS,3,GENERAL EXPENDITURES,PERSONNEL COMPENSATION,DETAIL,   ,   ,   ,CARRILLO MANUEL J,2022-07-01,2022-09-30,DIRECTOR OF OPERATIONS,32499.99,2022
,2022 DEMOCRATIC CAUCUS,3,GENERAL EXPENDITURES,PERSONNEL COMPENSATION,DETAIL,   ,   ,   ,CORNELL REBECCA T.,2022-07-01,2022-09-30,CHIEF OF STAFF TO THE VICE CHA,22500,2022
,2022 DEMOCRATIC CAUCUS,3,GENERAL EXPENDITURES,PERSONNEL COMPENSATION,DETAIL,   ,   ,   ,DANIEL JASMINE N.,2022-07-01,2022-09-30,DIGITAL ASSISTANT,15000,2022
,2022 DEMOCRATIC CAUCUS,3,GENERAL EXPENDITURES,PERSONNEL COMPENSATION,DETAIL,   ,   ,   ,DAWSON EARNESTINE E,2022-07-01,2022-09-30,DIGITAL DIRECTOR & ADVISOR TO,32499.99,2022
,2022 DEMOCRATIC CAUCUS,3,GENERAL EXPENDITURES,PERSONNEL COMPENSATION,DETAIL,   ,   ,   ,DESOWITZ-LEIBELL ZACHARY J.,2022-07-01,2022-08-01,DEPUTY PRESS SECRETARY,6458.33,2022
,2022 DEMOCRATIC CAUCUS,3,GENERAL EXPENDITURES,PERSONNEL COMPENSATION,DETAIL,   ,   ,   ,DICKERSON KALISE S.,2022-07-01,2022-09-30,SYSTEM ADMINISTRATOR,18750,2022
,2022 DEMOCRATIC CAUCUS,3,GENERAL EXPENDITURES,PERSONNEL COMPENSATION,DETAIL,   ,   ,   ,HERNANDEZ ITZEL N.,2022-07-01,2022-09-30,OPERATIONS COORDINATOR & MEMBE,16250.01,2022
,2022 DEMOCRATIC CAUCUS,3,GENERAL EXPENDITURES,PERSONNEL COMPENSATION,DETAIL,   ,   ,   ,JACKSON TASIA,2022-07-01,2022-09-30,CHIEF OF STAFF,5124.99,2022
,2022 DEMOCRATIC CAUCUS,3,GENERAL EXPENDITURES,PERSONNEL COMPENSATION,DETAIL,   ,   ,   ,MENSIE ALYSSA D,2022-07-01,2022-09-30,MEMBER SERVICES AND OUTREACH A,22500,2022
,2022 DEMOCRATIC CAUCUS,3,GENERAL EXPENDITURES,PERSONNEL COMPENSATION,DETAIL,   ,   ,   ,MUNOZ LOPEZ LAURA,2022-07-01,2022-09-30,MEMBER SERVICES AND OUTREACH A,22500,2022
,2022 DEMOCRATIC CAUCUS,3,GENERAL EXPENDITURES,PERSONNEL COMPENSATION,DETAIL,   ,   ,   ,MURALI ROHITH,2022-07-01,2022-09-29,DIGITAL INTERN,5625,2022
,2022 DEMOCRATIC CAUCUS,3,GENERAL EXPENDITURES,PERSONNEL COMPENSATION,DETAIL,   ,   ,   ,NORIEGA-MAY EMILY J,2022-07-01,2022-09-30,DEPUTY EXECUTIVE DIRECTOR,33750,2022
,2022 DEMOCRATIC CAUCUS,3,GENERAL EXPENDITURES,PERSONNEL COMPENSATION,DETAIL,   ,   ,   ,OH JUSTIN S,2022-07-01,2022-09-30,VC MEMBER SERVICES & OUTREACH,22500,2022
,2022 DEMOCRATIC CAUCUS,3,GENERAL EXPENDITURES,PERSONNEL COMPENSATION,DETAIL,   ,   ,   ,ROBINSON TEJAH R,2022-07-01,2022-09-30,CREATIVE MANAGER,18750,2022
,2022 DEMOCRATIC CAUCUS,3,GENERAL EXPENDITURES,PERSONNEL COMPENSATION,DETAIL,   ,   ,   ,SACHSE ANDREW M,2022-07-01,2022-09-30,DEP DIR OF MEMBER SERVICES,21812.49,2022
,2022 DEMOCRATIC CAUCUS,3,GENERAL EXPENDITURES,PERSONNEL COMPENSATION,DETAIL,   ,   ,   ,SHELDON ELIZABETH C.,2022-07-01,2022-09-30,PRESS ASSISTANT,15000,2022
,2022 DEMOCRATIC CAUCUS,3,GENERAL EXPENDITURES,PERSONNEL COMPENSATION,DETAIL,   ,   ,   ,STEPHENSON CHRISTIANA E,2022-07-01,2022-09-30,COMMUNICATIONS DIRECTOR,33750,2022
,2022 DEMOCRATIC CAUCUS,3,GENERAL EXPENDITURES,PERSONNEL COMPENSATION,DETAIL,   ,   ,   ,TSETSENGARID BUYANDELGER,2022-07-01,2022-09-30,CAUCUS ASSISTANT,15000,2022
,2022 DEMOCRATIC CAUCUS,3,GENERAL EXPENDITURES,PERSONNEL COMPENSATION,DETAIL,   ,   ,   ,VIZUETH BRIANNA,2022-08-08,2022-08-31,PRESS INTERN,1000.05,2022
,2022 DEMOCRATIC CAUCUS,3,GENERAL EXPENDITURES,PERSONNEL COMPENSATION,DETAIL,   ,   ,   ,WILLIAMS WAYNE K,2022-07-01,2022-09-30,SENIOR POLICY ADVISOR,27500.01,2022
,2022 DEMOCRATIC CAUCUS,3,GENERAL EXPENDITURES,PERSONNEL COMPENSATION,DETAIL,   ,   ,   ,WU TONIA S,2022-07-01,2022-09-30,SENIOR POLICY ADVISOR,17499.99,2022
,2022 DEMOCRATIC CAUCUS,3,GENERAL EXPENDITURES,PERSONNEL COMPENSATION,SUBTOTAL,   ,   ,   ,   ,   ,   ,PERSONNEL COMPENSATION TOTALS:,486895.85,2022
,2022 DEMOCRATIC CAUCUS,3,GENERAL EXPENDITURES,TRAVEL,DETAIL,2022-07-01,AP,1574372,CITI PCARD-HILTON PHILADELPHIA AT PE,2022-03-09,2022-03-10,LODGING,278.12,2022
,2022 DEMOCRATIC CAUCUS,3,GENERAL EXPENDITURES,TRAVEL,DETAIL,2022-07-21,AP,1580226,CARRILLO MANUEL J.,2022-06-14,2022-06-21,TAXI/RIDE SHARE,70.31,2022
,2022 DEMOCRATIC CAUCUS,3,GENERAL EXPENDITURES,TRAVEL,DETAIL,2022-07-21,AP,1580226,CARRILLO MANUEL J.,2022-07-11,2022-07-18,TAXI/RIDE SHARE,29.52,2022
,2022 DEMOCRATIC CAUCUS,3,GENERAL EXPENDITURES,TRAVEL,DETAIL,2022-07-21,AP,1580230,DAWSON EARNESTINE E.,2022-06-08,2022-06-23,TAXI/RIDE SHARE,90.05,2022
,2022 DEMOCRATIC CAUCUS,3,GENERAL EXPENDITURES,TRAVEL,DETAIL,2022-07-22,AP,1580233,AMUSA JOSEPHINE O.,2022-04-05,2022-04-06,PRIVATE AUTO MILEAGE,10.82,2022
,2022 DEMOCRATIC CAUCUS,3,GENERAL EXPENDITURES,TRAVEL,DETAIL,2022-07-22,AP,1580233,AMUSA JOSEPHINE O.,2022-06-14,2022-06-14,TAXI/RIDE SHARE,9.5,2022
,2022 DEMOCRATIC CAUCUS,3,GENERAL EXPENDITURES,TRAVEL,DETAIL,2022-07-22,AP,1580233,AMUSA JOSEPHINE O.,2022-04-05,2022-04-08,PARKING,66.15,2022
,2022 DEMOCRATIC CAUCUS,3,GENERAL EXPENDITURES,TRAVEL,DETAIL,2022-07-27,AP,1580220,BRAGIN GIDEON,2022-06-30,2022-06-30,NON-AIRFARE COMMERCIAL TRANSP,337,2022
,2022 DEMOCRATIC CAUCUS,3,GENERAL EXPENDITURES,TRAVEL,DETAIL,2022-07-27,AP,1580220,BRAGIN GIDEON,2022-06-29,2022-06-30,LODGING,47.39,2022
,2022 DEMOCRATIC CAUCUS,3,GENERAL EXPENDITURES,TRAVEL,DETAIL,2022-07-27,AP,1582499,DICKERSON KALISE S.,2022-06-22,2022-07-06,TAXI/RIDE SHARE,571.55,2022
,2022 DEMOCRATIC CAUCUS,3,GENERAL EXPENDITURES,TRAVEL,DETAIL,2022-08-23,AP,1590814,DAWSON EARNESTINE E.,2022-07-26,2022-07-27,TAXI/RIDE SHARE,61.4,2022
,2022 DEMOCRATIC CAUCUS,3,GENERAL EXPENDITURES,TRAVEL,DETAIL,2022-08-23,AP,1590827,DODD JOHNSON M.,2022-07-13,2022-07-28,PRIVATE AUTO MILEAGE,12.87,2022
,2022 DEMOCRATIC CAUCUS,3,GENERAL EXPENDITURES,TRAVEL,DETAIL,2022-08-23,AP,1590827,DODD JOHNSON M.,2022-07-12,2022-07-12,PARKING,15,2022
,2022 DEMOCRATIC CAUCUS,3,GENERAL EXPENDITURES,TRAVEL,DETAIL,2022-09-19,AP,1595919,TSETSENGARID BUYANDELGER,2022-07-19,2022-07-19,TAXI/RIDE SHARE,29.89,2022
,2022 DEMOCRATIC CAUCUS,3,GENERAL EXPENDITURES,TRAVEL,DETAIL,2022-09-19,AP,1595919,TSETSENGARID BUYANDELGER,2022-07-25,2022-07-25,TAXI/RIDE SHARE,15.79,2022
,2022 DEMOCRATIC CAUCUS,3,GENERAL EXPENDITURES,TRAVEL,SUBTOTAL,   ,   ,   ,   ,   ,   ,TRAVEL TOTALS:,1645.36,2022
,2022 DEMOCRATIC CAUCUS,3,GENERAL EXPENDITURES,RENT  COMMUNICATION  UTILITIES,DETAIL,2022-07-26,GL,EMS0117018, ,2022-06-01,2022-06-30,DC TELECOM EQUIP (TRANSFER),72,2022
,2022 DEMOCRATIC CAUCUS,3,GENERAL EXPENDITURES,RENT  COMMUNICATION  UTILITIES,DETAIL,2022-07-26,GL,EMS0117018, ,2022-06-01,2022-06-30,DC TELECOM SERV (TRANSFER),289,2022
,2022 DEMOCRATIC CAUCUS,3,GENERAL EXPENDITURES,RENT  COMMUNICATION  UTILITIES,DETAIL,2022-07-26,GL,EMS0117018, ,2022-06-01,2022-06-30,DC TELECOM TOLLS (TRANSFER),2547.53,2022
,2022 DEMOCRATIC CAUCUS,3,GENERAL EXPENDITURES,RENT  COMMUNICATION  UTILITIES,DETAIL,2022-08-25,GL,EMS0117770, ,2022-07-01,2022-07-31,DC TELECOM EQUIP (TRANSFER),372,2022
,2022 DEMOCRATIC CAUCUS,3,GENERAL EXPENDITURES,RENT  COMMUNICATION  UTILITIES,DETAIL,2022-08-25,GL,EMS0117770, ,2022-07-01,2022-07-31,DC TELECOM SERV (TRANSFER),289,2022
,2022 DEMOCRATIC CAUCUS,3,GENERAL EXPENDITURES,RENT  COMMUNICATION  UTILITIES,DETAIL,2022-08-25,GL,EMS0117770, ,2022-07-01,2022-07-31,DC TELECOM TOLLS (TRANSFER),2953.93,2022
,2022 DEMOCRATIC CAUCUS,3,GENERAL EXPENDITURES,RENT  COMMUNICATION  UTILITIES,DETAIL,2022-08-25,GL,MED0117762, ,2022-07-26,2022-08-18,HIR GRAPHICS (TRANSFER),129.5,2022
,2022 DEMOCRATIC CAUCUS,3,GENERAL EXPENDITURES,RENT  COMMUNICATION  UTILITIES,DETAIL,2022-09-27,GL,MED0118656, ,2022-09-13,2022-09-19,HIR GRAPHICS (TRANSFER),37.5,2022
,2022 DEMOCRATIC CAUCUS,3,GENERAL EXPENDITURES,RENT  COMMUNICATION  UTILITIES,DETAIL,2022-09-28,AP,1598720,CITI PCARD-USPS PO 1050091422,2022-07-27,2022-07-27,POSTAGE / COURIER / BOX RENTAL,51.4,2022
,2022 DEMOCRATIC CAUCUS,3,GENERAL EXPENDITURES,RENT  COMMUNICATION  UTILITIES,DETAIL,2022-09-28,GL,EMS0118774, ,2022-08-01,2022-08-31,DC TELECOM EQUIP (TRANSFER),68,2022
,2022 DEMOCRATIC CAUCUS,3,GENERAL EXPENDITURES,RENT  COMMUNICATION  UTILITIES,DETAIL,2022-09-28,GL,EMS0118774, ,2022-08-01,2022-08-31,DC TELECOM SERV (TRANSFER),273.5,2022
,2022 DEMOCRATIC CAUCUS,3,GENERAL EXPENDITURES,RENT  COMMUNICATION  UTILITIES,DETAIL,2022-09-28,GL,EMS0118774, ,2022-08-01,2022-08-31,DC TELECOM TOLLS (TRANSFER),3230.62,2022
,2022 DEMOCRATIC CAUCUS,3,GENERAL EXPENDITURES,RENT  COMMUNICATION  UTILITIES,SUBTOTAL,   ,   ,   ,   ,   ,   ,RENT  COMMUNICATION  UTILITIES TOTALS:,10313.98,2022
,2022 DEMOCRATIC CAUCUS,3,GENERAL EXPENDITURES,PRINTING AND REPRODUCTION,DETAIL,2022-07-01,AP,1574372,CITI PCARD-ACCURATE WORD LLC,2022-05-11,2022-05-11,NON-FRANKABLE PRINTING & REPRO,129,2022
,2022 DEMOCRATIC CAUCUS,3,GENERAL EXPENDITURES,PRINTING AND REPRODUCTION,DETAIL,2022-08-15,AP,1583240,CITI PCARD-ACCURATE WORD LLC,2022-06-21,2022-06-21,NON-FRANKABLE PRINTING & REPRO,43,2022
,2022 DEMOCRATIC CAUCUS,3,GENERAL EXPENDITURES,PRINTING AND REPRODUCTION,DETAIL,2022-08-30,AP,1592073,CITI PCARD-ACCURATE WORD LLC,2022-06-23,2022-06-23,NON-FRANKABLE PRINTING & REPRO,420,2022
,2022 DEMOCRATIC CAUCUS,3,GENERAL EXPENDITURES,PRINTING AND REPRODUCTION,SUBTOTAL,   ,   ,   ,   ,   ,   ,PRINTING AND REPRODUCTION TOTALS:,592,2022
,2022 DEMOCRATIC CAUCUS,3,GENERAL EXPENDITURES,OTHER SERVICES,DETAIL,2022-07-01,AP,1574372,CITI PCARD-DRYY GARMENT CARE,2022-04-29,2022-04-29,LAUNDRY SERVICES,134.47,2022
,2022 DEMOCRATIC CAUCUS,3,GENERAL EXPENDITURES,OTHER SERVICES,DETAIL,2022-07-01,AP,1574372,CITI PCARD-GOOGLE  Google Storage,2022-05-08,2022-06-08,TECHNOLOGY SERVICE CONTRACTS,2.11,2022
,2022 DEMOCRATIC CAUCUS,3,GENERAL EXPENDITURES,OTHER SERVICES,DETAIL,2022-07-28,AP,1583075,CITI PCARD-APPLE.COM/BILL,2022-05-20,2022-06-20,TECHNOLOGY SERVICE CONTRACTS,1.05,2022
,2022 DEMOCRATIC CAUCUS,3,GENERAL EXPENDITURES,OTHER SERVICES,DETAIL,2022-07-28,AP,1583075,CITI PCARD-DROPBOX RL6MRFQJ892C,2022-05-24,2022-06-24,TECHNOLOGY SERVICE CONTRACTS,12.71,2022
,2022 DEMOCRATIC CAUCUS,3,GENERAL EXPENDITURES,OTHER SERVICES,DETAIL,2022-07-28,AP,1583075,CITI PCARD-EIG CONSTANTCONTACT.COM,2022-05-01,2022-05-31,WEB DEV HST EMAIL & RLTD SERV,74.2,2022
,2022 DEMOCRATIC CAUCUS,3,GENERAL EXPENDITURES,OTHER SERVICES,DETAIL,2022-08-02,AP,1583238,CITI PCARD-GOOGLE  Google Storage,2022-06-08,2022-07-08,TECHNOLOGY SERVICE CONTRACTS,2.11,2022
,2022 DEMOCRATIC CAUCUS,3,GENERAL EXPENDITURES,OTHER SERVICES,DETAIL,2022-08-02,AP,1583243,CITI PCARD-DROPBOX Z8W88MBVJZR4,2022-06-24,2022-07-24,TECHNOLOGY SERVICE CONTRACTS,12.71,2022
,2022 DEMOCRATIC CAUCUS,3,GENERAL EXPENDITURES,OTHER SERVICES,DETAIL,2022-08-15,AP,1583240,CITI PCARD-APPLE.COM/BILL,2022-06-20,2022-07-20,TECHNOLOGY SERVICE CONTRACTS,1.05,2022
,2022 DEMOCRATIC CAUCUS,3,GENERAL EXPENDITURES,OTHER SERVICES,DETAIL,2022-08-15,AP,1583240,CITI PCARD-DRYY GARMENT CARE,2022-06-21,2022-06-21,LAUNDRY SERVICES,115.26,2022
,2022 DEMOCRATIC CAUCUS,3,GENERAL EXPENDITURES,OTHER SERVICES,DETAIL,2022-08-23,AP,1590814,DAWSON EARNESTINE E.,2022-03-21,2022-06-20,TECHNOLOGY SERVICE CONTRACTS,12.68,2022
,2022 DEMOCRATIC CAUCUS,3,GENERAL EXPENDITURES,OTHER SERVICES,DETAIL,2022-08-30,AP,1592073,CITI PCARD-GOOGLE  Google Storage,2022-07-08,2022-08-08,TECHNOLOGY SERVICE CONTRACTS,2.11,2022
,2022 DEMOCRATIC CAUCUS,3,GENERAL EXPENDITURES,OTHER SERVICES,DETAIL,2022-09-28,AP,1598720,CITI PCARD-APPLE.COM/BILL,2022-07-20,2022-08-20,TECHNOLOGY SERVICE CONTRACTS,1.05,2022
,2022 DEMOCRATIC CAUCUS,3,GENERAL EXPENDITURES,OTHER SERVICES,DETAIL,2022-09-30,AP,1601303,CITI PCARD-DROPBOX 72N46JFXZD87,2022-07-24,2022-08-24,TECHNOLOGY SERVICE CONTRACTS,12.71,2022
,2022 DEMOCRATIC CAUCUS,3,GENERAL EXPENDITURES,OTHER SERVICES,SUBTOTAL,   ,   ,   ,   ,   ,   ,OTHER SERVICES TOTALS:,384.22,2022
,2022 DEMOCRATIC CAUCUS,3,GENERAL EXPENDITURES,SUPPLIES AND MATERIALS,DETAIL,2022-07-01,AP,1574372,CITI PCARD-AMZN MKTP US 1L3BT7NF2 AM,2022-05-11,2022-05-11,OFFICE SUPPLIES (OUTSIDE),26.88,2022
,2022 DEMOCRATIC CAUCUS,3,GENERAL EXPENDITURES,SUPPLIES AND MATERIALS,DETAIL,2022-07-01,AP,1574372,CITI PCARD-AMZN Mktp US 136EK4O61,2022-04-28,2022-04-28,FOOD & BEVERAGE,28.15,2022
,2022 DEMOCRATIC CAUCUS,3,GENERAL EXPENDITURES,SUPPLIES AND MATERIALS,DETAIL,2022-07-01,AP,1574372,CITI PCARD-Amazon.com 136J94ZA1,2022-04-28,2022-04-28,FOOD & BEVERAGE,72,2022
,2022 DEMOCRATIC CAUCUS,3,GENERAL EXPENDITURES,SUPPLIES AND MATERIALS,DETAIL,2022-07-01,AP,1574372,CITI PCARD-Amazon.com 1Q14X3VD2,2022-04-28,2022-04-28,FOOD & BEVERAGE,85,2022
,2022 DEMOCRATIC CAUCUS,3,GENERAL EXPENDITURES,SUPPLIES AND MATERIALS,DETAIL,2022-07-01,AP,1574372,CITI PCARD-B&H PHOTO 800-606-6969,2022-05-04,2022-05-04,OFFICE SUPPLIES (OUTSIDE),186.54,2022
,2022 DEMOCRATIC CAUCUS,3,GENERAL EXPENDITURES,SUPPLIES AND MATERIALS,DETAIL,2022-07-01,AP,1574372,CITI PCARD-CANVA  I03413-9708270,2022-05-07,2022-06-06,SOFTWARE  LESS THAN  $500,12.99,2022
,2022 DEMOCRATIC CAUCUS,3,GENERAL EXPENDITURES,SUPPLIES AND MATERIALS,DETAIL,2022-07-01,AP,1574372,CITI PCARD-EIG CONSTANTCONTACT.COM,2022-04-01,2022-04-30,SOFTWARE  LESS THAN  $500,74.2,2022
,2022 DEMOCRATIC CAUCUS,3,GENERAL EXPENDITURES,SUPPLIES AND MATERIALS,DETAIL,2022-07-01,AP,1574372,CITI PCARD-ENVATO,2022-05-15,2022-06-15,SOFTWARE  LESS THAN  $500,33,2022
,2022 DEMOCRATIC CAUCUS,3,GENERAL EXPENDITURES,SUPPLIES AND MATERIALS,DETAIL,2022-07-01,AP,1574372,CITI PCARD-NANDO S PERI PERI THE YAR,2022-04-28,2022-04-28,FOOD & BEVERAGE,1313.25,2022
,2022 DEMOCRATIC CAUCUS,3,GENERAL EXPENDITURES,SUPPLIES AND MATERIALS,DETAIL,2022-07-01,AP,1574372,CITI PCARD-NEW CONGRESSIONAL LIQUORS,2022-05-10,2022-05-10,FOOD & BEVERAGE,7.95,2022
,2022 DEMOCRATIC CAUCUS,3,GENERAL EXPENDITURES,SUPPLIES AND MATERIALS,DETAIL,2022-07-01,AP,1574372,CITI PCARD-SPOTIFY,2022-05-02,2022-06-01,SOFTWARE  LESS THAN  $500,10.59,2022
,2022 DEMOCRATIC CAUCUS,3,GENERAL EXPENDITURES,SUPPLIES AND MATERIALS,DETAIL,2022-07-01,AP,1574372,CITI PCARD-STREAMYARD.COM,2022-05-15,2022-06-15,SOFTWARE  LESS THAN  $500,49,2022
,2022 DEMOCRATIC CAUCUS,3,GENERAL EXPENDITURES,SUPPLIES AND MATERIALS,DETAIL,2022-07-01,AP,1574372,CITI PCARD-TEAISM PENN QUARTER,2022-05-10,2022-05-10,FOOD & BEVERAGE,328.1,2022
,2022 DEMOCRATIC CAUCUS,3,GENERAL EXPENDITURES,SUPPLIES AND MATERIALS,DETAIL,2022-07-21,AP,1580226,CARRILLO MANUEL J.,2022-07-13,2022-07-13,FOOD & BEVERAGE,154.97,2022
,2022 DEMOCRATIC CAUCUS,3,GENERAL EXPENDITURES,SUPPLIES AND MATERIALS,DETAIL,2022-07-21,AP,1580226,CARRILLO MANUEL J.,2022-07-13,2022-07-13,OFFICE SUPPLIES (OUTSIDE),41.54,2022
,2022 DEMOCRATIC CAUCUS,3,GENERAL EXPENDITURES,SUPPLIES AND MATERIALS,DETAIL,2022-07-21,AP,1580230,DAWSON EARNESTINE E.,2022-05-31,2022-05-31,FOOD & BEVERAGE,15.11,2022
,2022 DEMOCRATIC CAUCUS,3,GENERAL EXPENDITURES,SUPPLIES AND MATERIALS,DETAIL,2022-07-21,AP,1580230,DAWSON EARNESTINE E.,2022-05-31,2022-05-31,OFFICE SUPPLIES (OUTSIDE),45.99,2022
,2022 DEMOCRATIC CAUCUS,3,GENERAL EXPENDITURES,SUPPLIES AND MATERIALS,DETAIL,2022-07-21,AP,1580230,DAWSON EARNESTINE E.,2022-06-23,2022-07-23,SOFTWARE  LESS THAN  $500,0.99,2022
,2022 DEMOCRATIC CAUCUS,3,GENERAL EXPENDITURES,SUPPLIES AND MATERIALS,DETAIL,2022-07-27,AP,1580220,BRAGIN GIDEON,2022-06-30,2022-06-30,FOOD & BEVERAGE,29.64,2022
,2022 DEMOCRATIC CAUCUS,3,GENERAL EXPENDITURES,SUPPLIES AND MATERIALS,DETAIL,2022-07-28,AP,1583075,CITI PCARD-AMZN Mktp US 1R7FV9AH2,2022-05-20,2022-05-20,OFFICE SUPPLIES (OUTSIDE),80.99,2022
,2022 DEMOCRATIC CAUCUS,3,GENERAL EXPENDITURES,SUPPLIES AND MATERIALS,DETAIL,2022-07-28,AP,1583075,CITI PCARD-AMZN Mktp US 1X1C843A0,2022-05-26,2022-05-26,FOOD & BEVERAGE,65.66,2022
,2022 DEMOCRATIC CAUCUS,3,GENERAL EXPENDITURES,SUPPLIES AND MATERIALS,DETAIL,2022-07-28,AP,1583075,CITI PCARD-AMZN Mktp US 1X4TU8VA1,2022-05-23,2022-05-23,OFFICE SUPPLIES (OUTSIDE),55.91,2022
,2022 DEMOCRATIC CAUCUS,3,GENERAL EXPENDITURES,SUPPLIES AND MATERIALS,DETAIL,2022-07-28,AP,1583075,CITI PCARD-LEGISTORM LLC,2022-05-18,2022-06-18,PUBLICATIONS/REFERENCE MAT'L,11.95,2022
,2022 DEMOCRATIC CAUCUS,3,GENERAL EXPENDITURES,SUPPLIES AND MATERIALS,DETAIL,2022-07-28,AP,1583075,CITI PCARD-SAINT GERMAIN CATERING,2022-05-11,2022-05-11,FOOD & BEVERAGE,3023,2022
,2022 DEMOCRATIC CAUCUS,3,GENERAL EXPENDITURES,SUPPLIES AND MATERIALS,DETAIL,2022-07-28,AP,1583075,CITI PCARD-SQ  PERUVIAN BROTHERS,2022-05-17,2022-05-17,FOOD & BEVERAGE,1000,2022
,2022 DEMOCRATIC CAUCUS,3,GENERAL EXPENDITURES,SUPPLIES AND MATERIALS,DETAIL,2022-07-28,AP,1583075,CITI PCARD-TRINT,2022-05-16,2022-06-16,SOFTWARE  LESS THAN  $500,75,2022
,2022 DEMOCRATIC CAUCUS,3,GENERAL EXPENDITURES,SUPPLIES AND MATERIALS,DETAIL,2022-07-28,AP,1583075,CITI PCARD-USHR CATERING,2022-05-16,2022-05-16,FOOD & BEVERAGE,50.06,2022
,2022 DEMOCRATIC CAUCUS,3,GENERAL EXPENDITURES,SUPPLIES AND MATERIALS,DETAIL,2022-07-28,AP,1583075,CITI PCARD-WE THE PIZZA,2022-05-19,2022-05-19,FOOD & BEVERAGE,720,2022
,2022 DEMOCRATIC CAUCUS,3,GENERAL EXPENDITURES,SUPPLIES AND MATERIALS,DETAIL,2022-07-31,GL,RMS0117194, ,2022-07-01,2022-07-31,OFFICE SUPPLY (TRANSFER),381.24,2022
,2022 DEMOCRATIC CAUCUS,3,GENERAL EXPENDITURES,SUPPLIES AND MATERIALS,DETAIL,2022-08-01,AP,1582529,STEPHENSON CHRISTIANA E.,2022-06-28,2022-07-18,FOOD & BEVERAGE,370.57,2022
,2022 DEMOCRATIC CAUCUS,3,GENERAL EXPENDITURES,SUPPLIES AND MATERIALS,DETAIL,2022-08-01,AP,1583916,READYREFRESH BY NESTLE,2022-06-30,2022-06-30,WATER,67.9,2022
,2022 DEMOCRATIC CAUCUS,3,GENERAL EXPENDITURES,SUPPLIES AND MATERIALS,DETAIL,2022-08-02,AP,1583238,CITI PCARD-AMAZON.COM SY8XZ0KM3 AMZN,2022-06-01,2022-06-01,FOOD & BEVERAGE,81.01,2022
,2022 DEMOCRATIC CAUCUS,3,GENERAL EXPENDITURES,SUPPLIES AND MATERIALS,DETAIL,2022-08-02,AP,1583238,CITI PCARD-AMZN Mktp US 8L5258Q83,2022-06-03,2022-06-03,OFFICE SUPPLIES (OUTSIDE),159.99,2022
,2022 DEMOCRATIC CAUCUS,3,GENERAL EXPENDITURES,SUPPLIES AND MATERIALS,DETAIL,2022-08-02,AP,1583238,CITI PCARD-AMZN Mktp US GK4M32ZA3,2022-06-01,2022-06-01,FOOD & BEVERAGE,54.54,2022
,2022 DEMOCRATIC CAUCUS,3,GENERAL EXPENDITURES,SUPPLIES AND MATERIALS,DETAIL,2022-08-02,AP,1583238,CITI PCARD-AMZN Mktp US TI30D0QL3,2022-06-14,2022-06-14,OFFICE SUPPLIES (OUTSIDE),31.98,2022
,2022 DEMOCRATIC CAUCUS,3,GENERAL EXPENDITURES,SUPPLIES AND MATERIALS,DETAIL,2022-08-02,AP,1583238,CITI PCARD-AMZN Mktp US UV1G66K33,2022-06-01,2022-06-01,FOOD & BEVERAGE,23.98,2022
,2022 DEMOCRATIC CAUCUS,3,GENERAL EXPENDITURES,SUPPLIES AND MATERIALS,DETAIL,2022-08-02,AP,1583238,CITI PCARD-BED BATH & BEYOND #651,2022-06-03,2022-06-03,OFFICE SUPPLIES (OUTSIDE),157.91,2022
,2022 DEMOCRATIC CAUCUS,3,GENERAL EXPENDITURES,SUPPLIES AND MATERIALS,DETAIL,2022-08-02,AP,1583238,CITI PCARD-CANVA  I03444-19424113,2022-06-07,2022-07-07,SOFTWARE  LESS THAN  $500,12.99,2022
,2022 DEMOCRATIC CAUCUS,3,GENERAL EXPENDITURES,SUPPLIES AND MATERIALS,DETAIL,2022-08-02,AP,1583238,CITI PCARD-DOMINO'S 4326,2022-06-16,2022-06-16,FOOD & BEVERAGE,207.11,2022
,2022 DEMOCRATIC CAUCUS,3,GENERAL EXPENDITURES,SUPPLIES AND MATERIALS,DETAIL,2022-08-02,AP,1583238,CITI PCARD-ENVATO,2022-06-15,2022-07-15,SOFTWARE  LESS THAN  $500,33,2022
,2022 DEMOCRATIC CAUCUS,3,GENERAL EXPENDITURES,SUPPLIES AND MATERIALS,DETAIL,2022-08-02,AP,1583238,CITI PCARD-Elmira StarGazette,2022-06-13,2022-07-13,PUBLICATIONS/REFERENCE MAT'L,1.06,2022
,2022 DEMOCRATIC CAUCUS,3,GENERAL EXPENDITURES,SUPPLIES AND MATERIALS,DETAIL,2022-08-02,AP,1583238,CITI PCARD-GRAMMARLY CO8L7CME3,2022-06-04,2023-06-04,SOFTWARE  LESS THAN  $500,144,2022
,2022 DEMOCRATIC CAUCUS,3,GENERAL EXPENDITURES,SUPPLIES AND MATERIALS,DETAIL,2022-08-02,AP,1583238,CITI PCARD-SAINT GERMAIN CATERING,2022-06-08,2022-06-08,FOOD & BEVERAGE,3262.8,2022
,2022 DEMOCRATIC CAUCUS,3,GENERAL EXPENDITURES,SUPPLIES AND MATERIALS,DETAIL,2022-08-02,AP,1583238,CITI PCARD-SPOTIFY,2022-06-02,2022-07-02,SOFTWARE  LESS THAN  $500,10.59,2022
,2022 DEMOCRATIC CAUCUS,3,GENERAL EXPENDITURES,SUPPLIES AND MATERIALS,DETAIL,2022-08-02,AP,1583238,CITI PCARD-STREAMYARD.COM,2022-06-15,2022-07-15,SOFTWARE  LESS THAN  $500,49,2022
,2022 DEMOCRATIC CAUCUS,3,GENERAL EXPENDITURES,SUPPLIES AND MATERIALS,DETAIL,2022-08-02,AP,1583243,CITI PCARD-AMZN Mktp US E40OH9PE3,2022-06-21,2022-06-21,OFFICE SUPPLIES (OUTSIDE),80.43,2022
,2022 DEMOCRATIC CAUCUS,3,GENERAL EXPENDITURES,SUPPLIES AND MATERIALS,DETAIL,2022-08-02,AP,1583243,CITI PCARD-Amazon Tips 9O15619U3,2022-06-22,2022-06-22,FOOD & BEVERAGE,5,2022
,2022 DEMOCRATIC CAUCUS,3,GENERAL EXPENDITURES,SUPPLIES AND MATERIALS,DETAIL,2022-08-02,AP,1583243,CITI PCARD-SAINT GERMAIN CATERING,2022-06-14,2022-06-14,FOOD & BEVERAGE,3095,2022
,2022 DEMOCRATIC CAUCUS,3,GENERAL EXPENDITURES,SUPPLIES AND MATERIALS,DETAIL,2022-08-02,AP,1583243,CITI PCARD-SAINT GERMAIN CATERING,2022-06-16,2022-06-16,FOOD & BEVERAGE,2834,2022
,2022 DEMOCRATIC CAUCUS,3,GENERAL EXPENDITURES,SUPPLIES AND MATERIALS,DETAIL,2022-08-02,AP,1583243,CITI PCARD-USHR CATERING,2022-06-15,2022-06-15,FOOD & BEVERAGE,211.6,2022
,2022 DEMOCRATIC CAUCUS,3,GENERAL EXPENDITURES,SUPPLIES AND MATERIALS,DETAIL,2022-08-15,AP,1583240,CITI PCARD-AMZN Mktp US,2022-05-23,2022-05-23,OFFICE SUPPLIES (OUTSIDE),-26,2022
,2022 DEMOCRATIC CAUCUS,3,GENERAL EXPENDITURES,SUPPLIES AND MATERIALS,DETAIL,2022-08-15,AP,1583240,CITI PCARD-AMZN Mktp US 1R8I232W2,2022-05-23,2022-05-23,OFFICE SUPPLIES (OUTSIDE),26,2022
,2022 DEMOCRATIC CAUCUS,3,GENERAL EXPENDITURES,SUPPLIES AND MATERIALS,DETAIL,2022-08-15,AP,1583240,CITI PCARD-AMZN Mktp US 6J8NH0GN3,2022-06-21,2022-06-21,OFFICE SUPPLIES (OUTSIDE),31.98,2022
,2022 DEMOCRATIC CAUCUS,3,GENERAL EXPENDITURES,SUPPLIES AND MATERIALS,DETAIL,2022-08-15,AP,1583240,CITI PCARD-AMZN Mktp US J93NI1AY3,2022-06-21,2022-06-21,FOOD & BEVERAGE,27.27,2022
,2022 DEMOCRATIC CAUCUS,3,GENERAL EXPENDITURES,SUPPLIES AND MATERIALS,DETAIL,2022-08-15,AP,1583240,CITI PCARD-AMZN Mktp US KD99C6BL3,2022-06-21,2022-06-21,OFFICE SUPPLIES (OUTSIDE),17.8,2022
,2022 DEMOCRATIC CAUCUS,3,GENERAL EXPENDITURES,SUPPLIES AND MATERIALS,DETAIL,2022-08-15,AP,1583240,CITI PCARD-APPLE.COM/BILL,2022-06-15,2022-07-15,SOFTWARE  LESS THAN  $500,3.17,2022
,2022 DEMOCRATIC CAUCUS,3,GENERAL EXPENDITURES,SUPPLIES AND MATERIALS,DETAIL,2022-08-15,AP,1583240,CITI PCARD-APPLE.COM/US,2022-06-14,2022-06-14,OFFICE SUPPLIES (OUTSIDE),20.14,2022
,2022 DEMOCRATIC CAUCUS,3,GENERAL EXPENDITURES,SUPPLIES AND MATERIALS,DETAIL,2022-08-15,AP,1583240,CITI PCARD-BESTBUYCOM806656495052,2022-06-22,2022-06-22,OFFICE SUPPLIES (OUTSIDE),447.95,2022
,2022 DEMOCRATIC CAUCUS,3,GENERAL EXPENDITURES,SUPPLIES AND MATERIALS,DETAIL,2022-08-15,AP,1583240,CITI PCARD-LEGISTORM LLC,2022-06-18,2022-07-18,PUBLICATIONS/REFERENCE MAT'L,11.95,2022
,2022 DEMOCRATIC CAUCUS,3,GENERAL EXPENDITURES,SUPPLIES AND MATERIALS,DETAIL,2022-08-15,AP,1583240,CITI PCARD-SAINT GERMAIN CATERING,2022-06-21,2022-06-21,FOOD & BEVERAGE,3342,2022
,2022 DEMOCRATIC CAUCUS,3,GENERAL EXPENDITURES,SUPPLIES AND MATERIALS,DETAIL,2022-08-15,AP,1583240,CITI PCARD-TRINT,2022-06-16,2022-07-16,SOFTWARE  LESS THAN  $500,75,2022
,2022 DEMOCRATIC CAUCUS,3,GENERAL EXPENDITURES,SUPPLIES AND MATERIALS,DETAIL,2022-08-15,AP,1585570,CITI PCARD-AMAZON.COM 0E24J6M43 AMZN,2022-06-22,2022-06-22,FOOD & BEVERAGE,72.95,2022
,2022 DEMOCRATIC CAUCUS,3,GENERAL EXPENDITURES,SUPPLIES AND MATERIALS,DETAIL,2022-08-15,AP,1585570,CITI PCARD-AMAZON.COM 0E24J6M43 AMZN,2022-06-22,2022-06-22,OFFICE SUPPLIES (OUTSIDE),2.98,2022
,2022 DEMOCRATIC CAUCUS,3,GENERAL EXPENDITURES,SUPPLIES AND MATERIALS,DETAIL,2022-08-15,AP,1585570,CITI PCARD-AMZN Mktp US 9924U07C3,2022-06-22,2022-06-22,FOOD & BEVERAGE,35.94,2022
,2022 DEMOCRATIC CAUCUS,3,GENERAL EXPENDITURES,SUPPLIES AND MATERIALS,DETAIL,2022-08-15,AP,1585570,CITI PCARD-AMZN Mktp US 9924U07C3,2022-06-22,2022-06-22,OFFICE SUPPLIES (OUTSIDE),21.99,2022
,2022 DEMOCRATIC CAUCUS,3,GENERAL EXPENDITURES,SUPPLIES AND MATERIALS,DETAIL,2022-08-15,AP,1585570,CITI PCARD-BESTBUYCOM806656495052,2022-06-22,2022-06-22,OFFICE SUPPLIES (OUTSIDE),899.99,2022
,2022 DEMOCRATIC CAUCUS,3,GENERAL EXPENDITURES,SUPPLIES AND MATERIALS,DETAIL,2022-08-15,AP,1585570,CITI PCARD-HARRISTEETER #383,2022-06-01,2022-06-01,FOOD & BEVERAGE,362.34,2022
,2022 DEMOCRATIC CAUCUS,3,GENERAL EXPENDITURES,SUPPLIES AND MATERIALS,DETAIL,2022-08-23,AP,1590814,DAWSON EARNESTINE E.,2022-07-25,2022-07-25,LEGISLATIVE PLNNG FOOD AND BEV,33.28,2022
,2022 DEMOCRATIC CAUCUS,3,GENERAL EXPENDITURES,SUPPLIES AND MATERIALS,DETAIL,2022-08-30,AP,1592073,CITI PCARD-AMAZON.COM MI4YV4MJ3 AMZN,2022-07-11,2022-07-11,FOOD & BEVERAGE,74.22,2022
,2022 DEMOCRATIC CAUCUS,3,GENERAL EXPENDITURES,SUPPLIES AND MATERIALS,DETAIL,2022-08-30,AP,1592073,CITI PCARD-AMAZON.COM MI4YV4MJ3 AMZN,2022-07-11,2022-07-11,OFFICE SUPPLIES (OUTSIDE),18.06,2022
,2022 DEMOCRATIC CAUCUS,3,GENERAL EXPENDITURES,SUPPLIES AND MATERIALS,DETAIL,2022-08-30,AP,1592073,CITI PCARD-AMAZON.COM YS06W6BL3 AMZN,2022-07-07,2022-07-07,FOOD & BEVERAGE,93.54,2022
,2022 DEMOCRATIC CAUCUS,3,GENERAL EXPENDITURES,SUPPLIES AND MATERIALS,DETAIL,2022-08-30,AP,1592073,CITI PCARD-APSTYLEBOOK.COM,2022-07-13,2023-07-13,SOFTWARE  LESS THAN  $500,33.92,2022
,2022 DEMOCRATIC CAUCUS,3,GENERAL EXPENDITURES,SUPPLIES AND MATERIALS,DETAIL,2022-08-30,AP,1592073,CITI PCARD-CANVA  I03474-18212465,2022-07-07,2022-08-07,SOFTWARE  LESS THAN  $500,12.99,2022
,2022 DEMOCRATIC CAUCUS,3,GENERAL EXPENDITURES,SUPPLIES AND MATERIALS,DETAIL,2022-08-30,AP,1592073,CITI PCARD-DOMINO'S 4326,2022-07-14,2022-07-14,FOOD & BEVERAGE,1300.75,2022
,2022 DEMOCRATIC CAUCUS,3,GENERAL EXPENDITURES,SUPPLIES AND MATERIALS,DETAIL,2022-08-30,AP,1592073,CITI PCARD-ENVATO,2022-07-15,2022-08-15,SOFTWARE  LESS THAN  $500,33,2022
,2022 DEMOCRATIC CAUCUS,3,GENERAL EXPENDITURES,SUPPLIES AND MATERIALS,DETAIL,2022-08-30,AP,1592073,CITI PCARD-HARRISTEETER #383,2022-07-12,2022-07-12,FOOD & BEVERAGE,360.66,2022
,2022 DEMOCRATIC CAUCUS,3,GENERAL EXPENDITURES,SUPPLIES AND MATERIALS,DETAIL,2022-08-30,AP,1592073,CITI PCARD-SAFEWAY 2892,2022-07-12,2022-07-12,FOOD & BEVERAGE,35.05,2022
,2022 DEMOCRATIC CAUCUS,3,GENERAL EXPENDITURES,SUPPLIES AND MATERIALS,DETAIL,2022-08-30,AP,1592073,CITI PCARD-SAINT GERMAIN CATERING,2022-07-13,2022-07-13,FOOD & BEVERAGE,5445,2022
,2022 DEMOCRATIC CAUCUS,3,GENERAL EXPENDITURES,SUPPLIES AND MATERIALS,DETAIL,2022-08-30,AP,1592073,CITI PCARD-SLICE ELLASWOODFIREDPI,2022-07-15,2022-07-15,FOOD & BEVERAGE,170.14,2022
,2022 DEMOCRATIC CAUCUS,3,GENERAL EXPENDITURES,SUPPLIES AND MATERIALS,DETAIL,2022-08-30,AP,1592073,CITI PCARD-SPOTIFY,2022-07-02,2022-08-02,SOFTWARE  LESS THAN  $500,10.59,2022
,2022 DEMOCRATIC CAUCUS,3,GENERAL EXPENDITURES,SUPPLIES AND MATERIALS,DETAIL,2022-08-30,AP,1592073,CITI PCARD-STREAMYARD.COM,2022-07-15,2022-08-15,SOFTWARE  LESS THAN  $500,49,2022
,2022 DEMOCRATIC CAUCUS,3,GENERAL EXPENDITURES,SUPPLIES AND MATERIALS,DETAIL,2022-08-30,AP,1592073,CITI PCARD-TEAISM PENN QUARTER,2022-07-13,2022-07-13,FOOD & BEVERAGE,143.7,2022
,2022 DEMOCRATIC CAUCUS,3,GENERAL EXPENDITURES,SUPPLIES AND MATERIALS,DETAIL,2022-08-30,AP,1592073,CITI PCARD-USHR CATERING,2022-06-13,2022-06-13,FOOD & BEVERAGE,1359.87,2022
,2022 DEMOCRATIC CAUCUS,3,GENERAL EXPENDITURES,SUPPLIES AND MATERIALS,DETAIL,2022-08-30,AP,1592073,CITI PCARD-VERIZON WRLS D6248-01,2022-07-12,2022-07-12,OFFICE SUPPLIES (OUTSIDE),9.99,2022
,2022 DEMOCRATIC CAUCUS,3,GENERAL EXPENDITURES,SUPPLIES AND MATERIALS,DETAIL,2022-08-31,AP,1592651,READYREFRESH BY NESTLE,2022-07-31,2022-07-31,WATER,80.88,2022
,2022 DEMOCRATIC CAUCUS,3,GENERAL EXPENDITURES,SUPPLIES AND MATERIALS,DETAIL,2022-08-31,GL,RMS0117993, ,2022-08-01,2022-08-31,OFFICE SUPPLY (TRANSFER),107.3,2022
,2022 DEMOCRATIC CAUCUS,3,GENERAL EXPENDITURES,SUPPLIES AND MATERIALS,DETAIL,2022-09-19,AP,1595919,TSETSENGARID BUYANDELGER,2022-05-16,2022-05-16,FOOD & BEVERAGE,5.16,2022
,2022 DEMOCRATIC CAUCUS,3,GENERAL EXPENDITURES,SUPPLIES AND MATERIALS,DETAIL,2022-09-19,AP,1595919,TSETSENGARID BUYANDELGER,2022-06-06,2022-06-06,FOOD & BEVERAGE,54.18,2022
,2022 DEMOCRATIC CAUCUS,3,GENERAL EXPENDITURES,SUPPLIES AND MATERIALS,DETAIL,2022-09-19,AP,1595919,TSETSENGARID BUYANDELGER,2022-06-12,2022-06-12,FOOD & BEVERAGE,27.73,2022
,2022 DEMOCRATIC CAUCUS,3,GENERAL EXPENDITURES,SUPPLIES AND MATERIALS,DETAIL,2022-09-19,AP,1595919,TSETSENGARID BUYANDELGER,2022-06-21,2022-06-21,FOOD & BEVERAGE,32.53,2022
,2022 DEMOCRATIC CAUCUS,3,GENERAL EXPENDITURES,SUPPLIES AND MATERIALS,DETAIL,2022-09-19,AP,1595919,TSETSENGARID BUYANDELGER,2022-07-18,2022-07-18,FOOD & BEVERAGE,40.38,2022
,2022 DEMOCRATIC CAUCUS,3,GENERAL EXPENDITURES,SUPPLIES AND MATERIALS,DETAIL,2022-09-19,AP,1595919,TSETSENGARID BUYANDELGER,2022-09-12,2022-09-12,FOOD & BEVERAGE,17.48,2022
,2022 DEMOCRATIC CAUCUS,3,GENERAL EXPENDITURES,SUPPLIES AND MATERIALS,DETAIL,2022-09-19,AP,1596016,NORIEGA-MAY EMILY J,2022-09-13,2022-09-13,FOOD & BEVERAGE,43.68,2022
,2022 DEMOCRATIC CAUCUS,3,GENERAL EXPENDITURES,SUPPLIES AND MATERIALS,DETAIL,2022-09-22,AP,1598678,CITI PCARD-AC HOTEL WASHINGTON DC,2022-07-21,2022-07-21,FOOD & BEVERAGE,9560.46,2022
,2022 DEMOCRATIC CAUCUS,3,GENERAL EXPENDITURES,SUPPLIES AND MATERIALS,DETAIL,2022-09-27,AP,1600306,READYREFRESH BY NESTLE,2022-08-31,2022-08-31,WATER,34.99,2022
,2022 DEMOCRATIC CAUCUS,3,GENERAL EXPENDITURES,SUPPLIES AND MATERIALS,DETAIL,2022-09-28,AP,1598720,CITI PCARD-AMZN Mktp US DY46B7Y23,2022-07-26,2022-07-26,OFFICE SUPPLIES (OUTSIDE),31.98,2022
,2022 DEMOCRATIC CAUCUS,3,GENERAL EXPENDITURES,SUPPLIES AND MATERIALS,DETAIL,2022-09-28,AP,1598720,CITI PCARD-APPLE.COM/US,2022-07-20,2022-07-20,OFFICE SUPPLIES (OUTSIDE),108.76,2022
,2022 DEMOCRATIC CAUCUS,3,GENERAL EXPENDITURES,SUPPLIES AND MATERIALS,DETAIL,2022-09-28,AP,1598720,CITI PCARD-HARRISTEETER #383,2022-07-18,2022-07-18,FOOD & BEVERAGE,120.5,2022
,2022 DEMOCRATIC CAUCUS,3,GENERAL EXPENDITURES,SUPPLIES AND MATERIALS,DETAIL,2022-09-28,AP,1598720,CITI PCARD-SAINT GERMAIN CATERING,2022-07-19,2022-07-19,FOOD & BEVERAGE,5776,2022
,2022 DEMOCRATIC CAUCUS,3,GENERAL EXPENDITURES,SUPPLIES AND MATERIALS,DETAIL,2022-09-28,AP,1598720,CITI PCARD-SAINT GERMAIN CATERING,2022-07-27,2022-07-27,FOOD & BEVERAGE,-300,2022
,2022 DEMOCRATIC CAUCUS,3,GENERAL EXPENDITURES,SUPPLIES AND MATERIALS,DETAIL,2022-09-28,AP,1598720,CITI PCARD-SAINT GERMAIN CATERING,2022-07-28,2022-07-28,FOOD & BEVERAGE,2269.72,2022
,2022 DEMOCRATIC CAUCUS,3,GENERAL EXPENDITURES,SUPPLIES AND MATERIALS,DETAIL,2022-09-28,AP,1598720,CITI PCARD-TRINT,2022-07-16,2022-08-16,SOFTWARE  LESS THAN  $500,75,2022
,2022 DEMOCRATIC CAUCUS,3,GENERAL EXPENDITURES,SUPPLIES AND MATERIALS,DETAIL,2022-09-28,AP,1598720,CITI PCARD-USHR CATERING,2022-07-15,2022-07-15,FOOD & BEVERAGE,750,2022
,2022 DEMOCRATIC CAUCUS,3,GENERAL EXPENDITURES,SUPPLIES AND MATERIALS,DETAIL,2022-09-28,AP,1598720,CITI PCARD-USHR CATERING,2022-07-18,2022-07-18,FOOD & BEVERAGE,1616.87,2022
,2022 DEMOCRATIC CAUCUS,3,GENERAL EXPENDITURES,SUPPLIES AND MATERIALS,DETAIL,2022-09-28,AP,1598720,CITI PCARD-USHR CATERING,2022-07-26,2022-07-26,FOOD & BEVERAGE,3398.79,2022
,2022 DEMOCRATIC CAUCUS,3,GENERAL EXPENDITURES,SUPPLIES AND MATERIALS,DETAIL,2022-09-28,AP,1598720,CITI PCARD-WHOLEFDS SCP #10563,2022-07-26,2022-07-26,FOOD & BEVERAGE,56.12,2022
,2022 DEMOCRATIC CAUCUS,3,GENERAL EXPENDITURES,SUPPLIES AND MATERIALS,DETAIL,2022-09-30,AP,1601303,CITI PCARD-AMZN MKTP US 7B1V54HK3 AM,2022-07-22,2022-07-22,OFFICE SUPPLIES (OUTSIDE),168.2,2022
,2022 DEMOCRATIC CAUCUS,3,GENERAL EXPENDITURES,SUPPLIES AND MATERIALS,DETAIL,2022-09-30,AP,1601303,CITI PCARD-AMZN Mktp US 2345303E3,2022-06-07,2022-06-07,FOOD & BEVERAGE,17.99,2022
,2022 DEMOCRATIC CAUCUS,3,GENERAL EXPENDITURES,SUPPLIES AND MATERIALS,DETAIL,2022-09-30,AP,1601303,CITI PCARD-AMZN Mktp US 2345303E3,2022-06-07,2022-06-07,OFFICE SUPPLIES (OUTSIDE),16.91,2022
,2022 DEMOCRATIC CAUCUS,3,GENERAL EXPENDITURES,SUPPLIES AND MATERIALS,DETAIL,2022-09-30,AP,1601303,CITI PCARD-AMZN Mktp US 979900K13,2022-07-20,2022-07-20,FOOD & BEVERAGE,39.99,2022
,2022 DEMOCRATIC CAUCUS,3,GENERAL EXPENDITURES,SUPPLIES AND MATERIALS,DETAIL,2022-09-30,AP,1601303,CITI PCARD-AMZN Mktp US GA6GU54F3,2022-07-13,2022-07-13,OFFICE SUPPLIES (OUTSIDE),788.92,2022
,2022 DEMOCRATIC CAUCUS,3,GENERAL EXPENDITURES,SUPPLIES AND MATERIALS,DETAIL,2022-09-30,AP,1601303,CITI PCARD-APPLE.COM/BILL,2022-07-14,2022-08-14,SOFTWARE  LESS THAN  $500,34.92,2022
,2022 DEMOCRATIC CAUCUS,3,GENERAL EXPENDITURES,SUPPLIES AND MATERIALS,DETAIL,2022-09-30,AP,1601303,CITI PCARD-APPLE.COM/US,2022-07-14,2022-07-14,OFFICE SUPPLIES (OUTSIDE),712.32,2022
,2022 DEMOCRATIC CAUCUS,3,GENERAL EXPENDITURES,SUPPLIES AND MATERIALS,DETAIL,2022-09-30,AP,1601303,CITI PCARD-APPLE.COM/US,2022-07-16,2022-07-16,OFFICE SUPPLIES (OUTSIDE),263.94,2022
,2022 DEMOCRATIC CAUCUS,3,GENERAL EXPENDITURES,SUPPLIES AND MATERIALS,DETAIL,2022-09-30,AP,1601303,CITI PCARD-Amazon.com 197QM70L3,2022-07-20,2022-07-20,FOOD & BEVERAGE,28.33,2022
,2022 DEMOCRATIC CAUCUS,3,GENERAL EXPENDITURES,SUPPLIES AND MATERIALS,DETAIL,2022-09-30,AP,1601303,CITI PCARD-B&H PHOTO 800-606-6969,2022-07-18,2022-07-18,OFFICE SUPPLIES (OUTSIDE),112.2,2022
,2022 DEMOCRATIC CAUCUS,3,GENERAL EXPENDITURES,SUPPLIES AND MATERIALS,DETAIL,2022-09-30,AP,1601303,CITI PCARD-EIG CONSTANTCONTACT.COM,2022-05-30,2022-06-30,SOFTWARE  LESS THAN  $500,74.2,2022
,2022 DEMOCRATIC CAUCUS,3,GENERAL EXPENDITURES,SUPPLIES AND MATERIALS,DETAIL,2022-09-30,AP,1601303,CITI PCARD-GENUINEINK.COM,2022-06-22,2022-06-22,OFFICE SUPPLIES (OUTSIDE),738,2022
,2022 DEMOCRATIC CAUCUS,3,GENERAL EXPENDITURES,SUPPLIES AND MATERIALS,DETAIL,2022-09-30,AP,1601303,CITI PCARD-HP  HP.COM STORE,2022-07-07,2022-07-07,OFFICE SUPPLIES (OUTSIDE),2072.39,2022
,2022 DEMOCRATIC CAUCUS,3,GENERAL EXPENDITURES,SUPPLIES AND MATERIALS,DETAIL,2022-09-30,AP,1601303,CITI PCARD-LEGISTORM LLC,2022-07-18,2022-08-18,PUBLICATIONS/REFERENCE MAT'L,11.95,2022
,2022 DEMOCRATIC CAUCUS,3,GENERAL EXPENDITURES,SUPPLIES AND MATERIALS,DETAIL,2022-09-30,GL,RMS0118964, ,2022-09-01,2022-09-30,OFFICE SUPPLY (TRANSFER),525.36,2022
,2022 DEMOCRATIC CAUCUS,3,GENERAL EXPENDITURES,SUPPLIES AND MATERIALS,SUBTOTAL,   ,   ,   ,   ,   ,   ,SUPPLIES AND MATERIALS TOTALS:,62945.5,2022
,2022 DEMOCRATIC CAUCUS,3,GENERAL EXPENDITURES,EQUIPMENT,DETAIL,2022-07-29,GL,MNT0117166, ,2022-07-01,2022-07-31,MAINTENANCE / REPAIRS,490,2022
